Workbook

Sheet INTRO
C1: The current version should be used in countries non-endemic for onchocerciasis
B2: Joint request for selected PC medicines
B4: As part of global efforts to accelerate expansion of preventive chemotherapy (PC) for control and elimination of lymphatic filariasis, schistosomiasis and soil-transmitted helminthiases, the World Health Organization (WHO) facilitates the supply of albendazole 400 mg tablets (GSK) to national lymphatic filariasis elimination programmes and national soil-transmitted helminth control programmes; diethylcarbamazine citrate 100 mg tablets (Eisai) to national lymphatic filariasis elimination programmes; mebendazole 500 mg tablets (J&J) for national soil-transmitted helminth control programmes; and praziquantel 600 mg tablets (Merck KGaA) for school-age children to national schistosomiasis control programmes. WHO also collaborates to supply ivermectin 3 mg tablets (Merck) for onchocerciasis and lymphatic filariasis donation programmes. This Excel-based tool is designed to assist countries in quantifying the number of tablets of relevant PC medicines required to reach the planned target population and districts for the year of request. Output of the tool is a joint request for PC medicines, which can be printed, signed and submitted to WHO to request these medicines.
B6: Structure of the application (worksheets):
B8: INTRO | C8: This worksheet includes guides on how to complete the joint request for selected PC medicines and information about the status of PC for endemic diseases in the country.
B9: COUNTRY_INFO | C9: This worksheet includes information about administrative structure of the country, population by age group, status of endemicity for each disease, population requiring PC and planned interventions.
B10: DEC, ALB_MBD and PZQ | C10: These worksheets include information about endemic districts targeted for treatment with specified PC medicines, treatment plan, and number of tablets required and requested.
B11: SUMMARY | C11: This worksheet includes summary of number of tablets requested, information about stock, and date for submission of requested medicines. Before generating the report (run macros) please select the medicine for which the report is needed. Follow the same rule to see the number of people to be treated for the specific disease. This worksheet should be printed and submitted as a joint request for selected PC medicines (see the instruction for submission in the SUMMARY worksheet).
B13: Instruction for data entry
B15: Most of the cells in the above-mentioned worksheets include formula that are calculated automatically according to the treatment policy recommended by WHO for each disease. See the link http://www.who.int/neglected_diseases/preventive_chemotherapy/pct_manual/en/index.html
B17: Please enter your data into the cells according to their colour code:
C19: White - cell is not protected. Please enter the value of the requested indicator.
C21: Yellow - cell is protected and includes name of indicator. No data entry required.
C23: Orange - cell is not protected and includes a drop-down menu. Please select the value from the drop-down list.
C26: Green - cell is not protected and includes formula. Please change the value only if your data are different from those that are calculated automatically.
C29: Blue - cell is protected and includes formula. No data entry required.
B31: Country data
B33: COUNTRY | E33: Swaziland
B35: Year for request of the medicine | E35: 2018
B37: Is country endemic for lymphatic filariasis (LF)? | E37: Non-endemic
B39: Is country endemic for onchocerciasis (ONCHO)? | E39: Non-endemic
B41: Is country endemic for soil-transmitted helminthiases (STH)? | E41: Endemic
B43: Is country endemic for schistosomiasis (SCH)? | E43: Endemic
B45: How many administrative units in the country? | E45: 55
B47: If demographical data at the second administrative level are not available by age group, please enter the proportion (%) of population by age group in the country. If data are available, please leave these cells blank.
B48: Preschool-age children (PreSAC) - aged 1-4 years | E48: 0.133
B49: School-age children (SAC) - aged 5-14 years | E49: 0.233
B50: Adults - aged 15 years and older | E50: 0.634

Sheet COUNTRY_INFO
A1: COUNTRY INFORMATION
A2: Administrative structure, population by age group, status of endemicity and planned interventions
A4: TOTAL | D4: =SUM(D$9:D$1000) -> 1018449 | E4: =SUM(E$9:E$1000) -> 135454 | F4: =SUM(F$9:F$1000) -> 237302 | G4: =SUM(G$9:G$1000) -> 645697 | K4: =SUM(K$9:K$1000) -> 0 | L4: =SUM(L$9:L$1000) -> 21259 | M4: =SUM(M$9:M$1000) -> 190593.55
A6: Country administrative structure | D6: Population | H6: Endemicity | K6: Population requiring PC | N6: Number of treatment rounds planned for the year | Q6: Epidemiological surveys planned for the year
A7: Country | B7: Province/State | C7: District | D7: Total | E7: PreSAC | F7: SAC | G7: Adults | H7: LF | I7: STH | J7: SCH | K7: LF | L7: STH | M7: SCH | N7: LF | O7: STH | P7: SCH | Q7: LF | R7: STH | S7: SCH | T7: IU_ID | U7: IU_Name
A8: 1
A9: =IF(INTRO!$E$33<>0,INTRO!$E$33, " ") -> Swaziland | B9: Hhohho | C9: Hhukwini | D9: 9837 | E9: =IF(INTRO!$E$48="","",ROUND($D9*INTRO!$E$48,0)) -> 1308 | F9: =IF(INTRO!$E$49="","",ROUND($D9*INTRO!$E$49,0)) -> 2292 | G9: =IF(INTRO!$E$50="","",ROUND($D9*INTRO!$E$50,0)) -> 6237 | H9: 0 | I9: 2 | J9: 1 | K9: =IF(INTRO!$E$37="Endemic",IF($H9>0,IF($H9=4,"Unknown",IF($H9=99,"Stopped",$D9)),0),"Not required") -> Not required | L9: =IF(INTRO!$E$41="Endemic", IF(AND($I9>1, $I9<5), IF($I9=4, "Unknown", E9+F9), 0),"Not required") -> 3600 | M9: =IF(INTRO!$E$43="Endemic", IF(AND($J9>0,$J9<5), IF($J9=4,"Unknown", IF($J9=1, $F9*0.33, IF($J9=2, $F9*0.5+$G9*0.2, SUM(F9:G9)))), 0),"Not required") -> 756.36 | N9: 0 | O9: 1 | P9: 1 | T9: 45404 | U9: Hhukwini
A10: =IF(INTRO!$E$33<>0,INTRO!$E$33, " ") -> Swaziland | B10: Hhohho | C10: Lobamba | D10: 25968 | E10: =IF(INTRO!$E$48="","",ROUND($D10*INTRO!$E$48,0)) -> 3454 | F10: =IF(INTRO!$E$49="","",ROUND($D10*INTRO!$E$49,0)) -> 6051 | G10: =IF(INTRO!$E$50="","",ROUND($D10*INTRO!$E$50,0)) -> 16464 | H10: 0 | I10: 1 | J10: 1 | K10: =IF(INTRO!$E$37="Endemic",IF($H10>0,IF($H10=4,"Unknown",IF($H10=99,"Stopped",$D10)),0),"Not required") -> Not required | L10: =IF(INTRO!$E$41="Endemic", IF(AND($I10>1, $I10<5), IF($I10=4, "Unknown", E10+F10), 0),"Not required") -> 0 | M10: =IF(INTRO!$E$43="Endemic", IF(AND($J10>0,$J10<5), IF($J10=4,"Unknown", IF($J10=1, $F10*0.33, IF($J10=2, $F10*0.5+$G10*0.2, SUM(F10:G10)))), 0),"Not required") -> 1996.83 | N10: 0 | O10: 1 | P10: 1 | T10: 45405 | U10: Lobamba
A11: =IF(INTRO!$E$33<>0,INTRO!$E$33, " ") -> Swaziland | B11: Hhohho | C11: Mandlangempisi | D11: 16972 | E11: =IF(INTRO!$E$48="","",ROUND($D11*INTRO!$E$48,0)) -> 2257 | F11: =IF(INTRO!$E$49="","",ROUND($D11*INTRO!$E$49,0)) -> 3954 | G11: =IF(INTRO!$E$50="","",ROUND($D11*INTRO!$E$50,0)) -> 10760 | H11: 0 | I11: 1 | J11: 1 | K11: =IF(INTRO!$E$37="Endemic",IF($H11>0,IF($H11=4,"Unknown",IF($H11=99,"Stopped",$D11)),0),"Not required") -> Not required | L11: =IF(INTRO!$E$41="Endemic", IF(AND($I11>1, $I11<5), IF($I11=4, "Unknown", E11+F11), 0),"Not required") -> 0 | M11: =IF(INTRO!$E$43="Endemic", IF(AND($J11>0,$J11<5), IF($J11=4,"Unknown", IF($J11=1, $F11*0.33, IF($J11=2, $F11*0.5+$G11*0.2, SUM(F11:G11)))), 0),"Not required") -> 1304.82 | N11: 0 | O11: 1 | P11: 1 | T11: 45406 | U11: Mandlangempisi
A12: =IF(INTRO!$E$33<>0,INTRO!$E$33, " ") -> Swaziland | B12: Hhohho | C12: Maphalaleni | D12: 19454 | E12: =IF(INTRO!$E$48="","",ROUND($D12*INTRO!$E$48,0)) -> 2587 | F12: =IF(INTRO!$E$49="","",ROUND($D12*INTRO!$E$49,0)) -> 4533 | G12: =IF(INTRO!$E$50="","",ROUND($D12*INTRO!$E$50,0)) -> 12334 | H12: 0 | I12: 1 | J12: 2 | K12: =IF(INTRO!$E$37="Endemic",IF($H12>0,IF($H12=4,"Unknown",IF($H12=99,"Stopped",$D12)),0),"Not required") -> Not required | L12: =IF(INTRO!$E$41="Endemic", IF(AND($I12>1, $I12<5), IF($I12=4, "Unknown", E12+F12), 0),"Not required") -> 0 | M12: =IF(INTRO!$E$43="Endemic", IF(AND($J12>0,$J12<5), IF($J12=4,"Unknown", IF($J12=1, $F12*0.33, IF($J12=2, $F12*0.5+$G12*0.2, SUM(F12:G12)))), 0),"Not required") -> 4733.3 | N12: 0 | O12: 1 | P12: 1 | T12: 45412 | U12: Maphalaleni
A13: =IF(INTRO!$E$33<>0,INTRO!$E$33, " ") -> Swaziland | B13: Hhohho | C13: Mayiwane | D13: 15120 | E13: =IF(INTRO!$E$48="","",ROUND($D13*INTRO!$E$48,0)) -> 2011 | F13: =IF(INTRO!$E$49="","",ROUND($D13*INTRO!$E$49,0)) -> 3523 | G13: =IF(INTRO!$E$50="","",ROUND($D13*INTRO!$E$50,0)) -> 9586 | H13: 0 | I13: 1 | J13: 2 | K13: =IF(INTRO!$E$37="Endemic",IF($H13>0,IF($H13=4,"Unknown",IF($H13=99,"Stopped",$D13)),0),"Not required") -> Not required | L13: =IF(INTRO!$E$41="Endemic", IF(AND($I13>1, $I13<5), IF($I13=4, "Unknown", E13+F13), 0),"Not required") -> 0 | M13: =IF(INTRO!$E$43="Endemic", IF(AND($J13>0,$J13<5), IF($J13=4,"Unknown", IF($J13=1, $F13*0.33, IF($J13=2, $F13*0.5+$G13*0.2, SUM(F13:G13)))), 0),"Not required") -> 3678.7 | N13: 0 | O13: 1 | P13: 1 | T13: 45407 | U13: Mayiwane
A14: =IF(INTRO!$E$33<>0,INTRO!$E$33, " ") -> Swaziland | B14: Hhohho | C14: Mbabane East | D14: 36792 | E14: =IF(INTRO!$E$48="","",ROUND($D14*INTRO!$E$48,0)) -> 4893 | F14: =IF(INTRO!$E$49="","",ROUND($D14*INTRO!$E$49,0)) -> 8573 | G14: =IF(INTRO!$E$50="","",ROUND($D14*INTRO!$E$50,0)) -> 23326 | H14: 0 | I14: 1 | J14: 1 | K14: =IF(INTRO!$E$37="Endemic",IF($H14>0,IF($H14=4,"Unknown",IF($H14=99,"Stopped",$D14)),0),"Not required") -> Not required | L14: =IF(INTRO!$E$41="Endemic", IF(AND($I14>1, $I14<5), IF($I14=4, "Unknown", E14+F14), 0),"Not required") -> 0 | M14: =IF(INTRO!$E$43="Endemic", IF(AND($J14>0,$J14<5), IF($J14=4,"Unknown", IF($J14=1, $F14*0.33, IF($J14=2, $F14*0.5+$G14*0.2, SUM(F14:G14)))), 0),"Not required") -> 2829.09 | N14: 0 | O14: 1 | P14: 1 | T14: 45408 | U14: Mbabane East
A15: =IF(INTRO!$E$33<>0,INTRO!$E$33, " ") -> Swaziland | B15: Hhohho | C15: Mbabane West | D15: 23489 | E15: =IF(INTRO!$E$48="","",ROUND($D15*INTRO!$E$48,0)) -> 3124 | F15: =IF(INTRO!$E$49="","",ROUND($D15*INTRO!$E$49,0)) -> 5473 | G15: =IF(INTRO!$E$50="","",ROUND($D15*INTRO!$E$50,0)) -> 14892 | H15: 0 | I15: 1 | J15: 1 | K15: =IF(INTRO!$E$37="Endemic",IF($H15>0,IF($H15=4,"Unknown",IF($H15=99,"Stopped",$D15)),0),"Not required") -> Not required | L15: =IF(INTRO!$E$41="Endemic", IF(AND($I15>1, $I15<5), IF($I15=4, "Unknown", E15+F15), 0),"Not required") -> 0 | M15: =IF(INTRO!$E$43="Endemic", IF(AND($J15>0,$J15<5), IF($J15=4,"Unknown", IF($J15=1, $F15*0.33, IF($J15=2, $F15*0.5+$G15*0.2, SUM(F15:G15)))), 0),"Not required") -> 1806.09 | N15: 0 | O15: 1 | P15: 1 | T15: 45409 | U15: Mbabane West
A16: =IF(INTRO!$E$33<>0,INTRO!$E$33, " ") -> Swaziland | B16: Hhohho | C16: Mhlangatane | D16: 22421 | E16: =IF(INTRO!$E$48="","",ROUND($D16*INTRO!$E$48,0)) -> 2982 | F16: =IF(INTRO!$E$49="","",ROUND($D16*INTRO!$E$49,0)) -> 5224 | G16: =IF(INTRO!$E$50="","",ROUND($D16*INTRO!$E$50,0)) -> 14215 | H16: 0 | I16: 1 | J16: 2 | K16: =IF(INTRO!$E$37="Endemic",IF($H16>0,IF($H16=4,"Unknown",IF($H16=99,"Stopped",$D16)),0),"Not required") -> Not required | L16: =IF(INTRO!$E$41="Endemic", IF(AND($I16>1, $I16<5), IF($I16=4, "Unknown", E16+F16), 0),"Not required") -> 0 | M16: =IF(INTRO!$E$43="Endemic", IF(AND($J16>0,$J16<5), IF($J16=4,"Unknown", IF($J16=1, $F16*0.33, IF($J16=2, $F16*0.5+$G16*0.2, SUM(F16:G16)))), 0),"Not required") -> 5455 | N16: 0 | O16: 1 | P16: 1 | T16: 45410 | U16: Mhlangatane
A17: =IF(INTRO!$E$33<>0,INTRO!$E$33, " ") -> Swaziland | B17: Hhohho | C17: Motjane | D17: 30890 | E17: =IF(INTRO!$E$48="","",ROUND($D17*INTRO!$E$48,0)) -> 4108 | F17: =IF(INTRO!$E$49="","",ROUND($D17*INTRO!$E$49,0)) -> 7197 | G17: =IF(INTRO!$E$50="","",ROUND($D17*INTRO!$E$50,0)) -> 19584 | H17: 0 | I17: 2 | J17: 1 | K17: =IF(INTRO!$E$37="Endemic",IF($H17>0,IF($H17=4,"Unknown",IF($H17=99,"Stopped",$D17)),0),"Not required") -> Not required | L17: =IF(INTRO!$E$41="Endemic", IF(AND($I17>1, $I17<5), IF($I17=4, "Unknown", E17+F17), 0),"Not required") -> 11305 | M17: =IF(INTRO!$E$43="Endemic", IF(AND($J17>0,$J17<5), IF($J17=4,"Unknown", IF($J17=1, $F17*0.33, IF($J17=2, $F17*0.5+$G17*0.2, SUM(F17:G17)))), 0),"Not required") -> 2375.01 | N17: 0 | O17: 1 | P17: 1 | T17: 45411 | U17: Motjane
A18: =IF(INTRO!$E$33<>0,INTRO!$E$33, " ") -> Swaziland | B18: Hhohho | C18: Ndzingeni | D18: 19115 | E18: =IF(INTRO!$E$48="","",ROUND($D18*INTRO!$E$48,0)) -> 2542 | F18: =IF(INTRO!$E$49="","",ROUND($D18*INTRO!$E$49,0)) -> 4454 | G18: =IF(INTRO!$E$50="","",ROUND($D18*INTRO!$E$50,0)) -> 12119 | H18: 0 | I18: 1 | J18: 1 | K18: =IF(INTRO!$E$37="Endemic",IF($H18>0,IF($H18=4,"Unknown",IF($H18=99,"Stopped",$D18)),0),"Not required") -> Not required | L18: =IF(INTRO!$E$41="Endemic", IF(AND($I18>1, $I18<5), IF($I18=4, "Unknown", E18+F18), 0),"Not required") -> 0 | M18: =IF(INTRO!$E$43="Endemic", IF(AND($J18>0,$J18<5), IF($J18=4,"Unknown", IF($J18=1, $F18*0.33, IF($J18=2, $F18*0.5+$G18*0.2, SUM(F18:G18)))), 0),"Not required") -> 1469.82 | N18: 0 | O18: 1 | P18: 1 | T18: 45413 | U18: Ndzingeni
A19: =IF(INTRO!$E$33<>0,INTRO!$E$33, " ") -> Swaziland | B19: Hhohho | C19: Nkhaba | D19: 15704 | E19: =IF(INTRO!$E$48="","",ROUND($D19*INTRO!$E$48,0)) -> 2089 | F19: =IF(INTRO!$E$49="","",ROUND($D19*INTRO!$E$49,0)) -> 3659 | G19: =IF(INTRO!$E$50="","",ROUND($D19*INTRO!$E$50,0)) -> 9956 | H19: 0 | I19: 1 | J19: 1 | K19: =IF(INTRO!$E$37="Endemic",IF($H19>0,IF($H19=4,"Unknown",IF($H19=99,"Stopped",$D19)),0),"Not required") -> Not required | L19: =IF(INTRO!$E$41="Endemic", IF(AND($I19>1, $I19<5), IF($I19=4, "Unknown", E19+F19), 0),"Not required") -> 0 | M19: =IF(INTRO!$E$43="Endemic", IF(AND($J19>0,$J19<5), IF($J19=4,"Unknown", IF($J19=1, $F19*0.33, IF($J19=2, $F19*0.5+$G19*0.2, SUM(F19:G19)))), 0),"Not required") -> 1207.47 | N19: 0 | O19: 1 | P19: 1 | T19: 45414 | U19: Nkhaba
A20: =IF(INTRO!$E$33<>0,INTRO!$E$33, " ") -> Swaziland | B20: Hhohho | C20: Ntfonjeni | D20: 21142 | E20: =IF(INTRO!$E$48="","",ROUND($D20*INTRO!$E$48,0)) -> 2812 | F20: =IF(INTRO!$E$49="","",ROUND($D20*INTRO!$E$49,0)) -> 4926 | G20: =IF(INTRO!$E$50="","",ROUND($D20*INTRO!$E$50,0)) -> 13404 | H20: 0 | I20: 1 | J20: 1 | K20: =IF(INTRO!$E$37="Endemic",IF($H20>0,IF($H20=4,"Unknown",IF($H20=99,"Stopped",$D20)),0),"Not required") -> Not required | L20: =IF(INTRO!$E$41="Endemic", IF(AND($I20>1, $I20<5), IF($I20=4, "Unknown", E20+F20), 0),"Not required") -> 0 | M20: =IF(INTRO!$E$43="Endemic", IF(AND($J20>0,$J20<5), IF($J20=4,"Unknown", IF($J20=1, $F20*0.33, IF($J20=2, $F20*0.5+$G20*0.2, SUM(F20:G20)))), 0),"Not required") -> 1625.58 | N20: 0 | O20: 1 | P20: 1 | T20: 45415 | U20: Ntfonjeni
A21: =IF(INTRO!$E$33<>0,INTRO!$E$33, " ") -> Swaziland | B21: Hhohho | C21: Pigg's Peak | D21: 17359 | E21: =IF(INTRO!$E$48="","",ROUND($D21*INTRO!$E$48,0)) -> 2309 | F21: =IF(INTRO!$E$49="","",ROUND($D21*INTRO!$E$49,0)) -> 4045 | G21: =IF(INTRO!$E$50="","",ROUND($D21*INTRO!$E$50,0)) -> 11006 | H21: 0 | I21: 2 | J21: 1 | K21: =IF(INTRO!$E$37="Endemic",IF($H21>0,IF($H21=4,"Unknown",IF($H21=99,"Stopped",$D21)),0),"Not required") -> Not required | L21: =IF(INTRO!$E$41="Endemic", IF(AND($I21>1, $I21<5), IF($I21=4, "Unknown", E21+F21), 0),"Not required") -> 6354 | M21: =IF(INTRO!$E$43="Endemic", IF(AND($J21>0,$J21<5), IF($J21=4,"Unknown", IF($J21=1, $F21*0.33, IF($J21=2, $F21*0.5+$G21*0.2, SUM(F21:G21)))), 0),"Not required") -> 1334.85 | N21: 0 | O21: 1 | P21: 1 | T21: 45416 | U21: Pigg's Peak
A22: =IF(INTRO!$E$33<>0,INTRO!$E$33, " ") -> Swaziland | B22: Hhohho | C22: Timphisini | D22: 8471 | E22: =IF(INTRO!$E$48="","",ROUND($D22*INTRO!$E$48,0)) -> 1127 | F22: =IF(INTRO!$E$49="","",ROUND($D22*INTRO!$E$49,0)) -> 1974 | G22: =IF(INTRO!$E$50="","",ROUND($D22*INTRO!$E$50,0)) -> 5371 | H22: 0 | I22: 1 | J22: 2 | K22: =IF(INTRO!$E$37="Endemic",IF($H22>0,IF($H22=4,"Unknown",IF($H22=99,"Stopped",$D22)),0),"Not required") -> Not required | L22: =IF(INTRO!$E$41="Endemic", IF(AND($I22>1, $I22<5), IF($I22=4, "Unknown", E22+F22), 0),"Not required") -> 0 | M22: =IF(INTRO!$E$43="Endemic", IF(AND($J22>0,$J22<5), IF($J22=4,"Unknown", IF($J22=1, $F22*0.33, IF($J22=2, $F22*0.5+$G22*0.2, SUM(F22:G22)))), 0),"Not required") -> 2061.2 | N22: 0 | O22: 1 | P22: 1 | T22: 45417 | U22: Timphisini
A23: =IF(INTRO!$E$33<>0,INTRO!$E$33, " ") -> Swaziland | B23: Lubombo | C23: Dvokodvweni | D23: 28252 | E23: =IF(INTRO!$E$48="","",ROUND($D23*INTRO!$E$48,0)) -> 3758 | F23: =IF(INTRO!$E$49="","",ROUND($D23*INTRO!$E$49,0)) -> 6583 | G23: =IF(INTRO!$E$50="","",ROUND($D23*INTRO!$E$50,0)) -> 17912 | H23: 0 | I23: 1 | J23: 1 | K23: =IF(INTRO!$E$37="Endemic",IF($H23>0,IF($H23=4,"Unknown",IF($H23=99,"Stopped",$D23)),0),"Not required") -> Not required | L23: =IF(INTRO!$E$41="Endemic", IF(AND($I23>1, $I23<5), IF($I23=4, "Unknown", E23+F23), 0),"Not required") -> 0 | M23: =IF(INTRO!$E$43="Endemic", IF(AND($J23>0,$J23<5), IF($J23=4,"Unknown", IF($J23=1, $F23*0.33, IF($J23=2, $F23*0.5+$G23*0.2, SUM(F23:G23)))), 0),"Not required") -> 2172.39 | N23: 0 | O23: 1 | P23: 1 | T23: 45418 | U23: Dvokodvweni
A24: =IF(INTRO!$E$33<>0,INTRO!$E$33, " ") -> Swaziland | B24: Lubombo | C24: Hlane | D24: 7091 | E24: =IF(INTRO!$E$48="","",ROUND($D24*INTRO!$E$48,0)) -> 943 | F24: =IF(INTRO!$E$49="","",ROUND($D24*INTRO!$E$49,0)) -> 1652 | G24: =IF(INTRO!$E$50="","",ROUND($D24*INTRO!$E$50,0)) -> 4496 | H24: 0 | I24: 1 | J24: 2 | K24: =IF(INTRO!$E$37="Endemic",IF($H24>0,IF($H24=4,"Unknown",IF($H24=99,"Stopped",$D24)),0),"Not required") -> Not required | L24: =IF(INTRO!$E$41="Endemic", IF(AND($I24>1, $I24<5), IF($I24=4, "Unknown", E24+F24), 0),"Not required") -> 0 | M24: =IF(INTRO!$E$43="Endemic", IF(AND($J24>0,$J24<5), IF($J24=4,"Unknown", IF($J24=1, $F24*0.33, IF($J24=2, $F24*0.5+$G24*0.2, SUM(F24:G24)))), 0),"Not required") -> 1725.2 | N24: 0 | O24: 1 | P24: 1 | T24: 45419 | U24: Hlane
A25: =IF(INTRO!$E$33<>0,INTRO!$E$33, " ") -> Swaziland | B25: Lubombo | C25: Lomahasha | D25: 22239 | E25: =IF(INTRO!$E$48="","",ROUND($D25*INTRO!$E$48,0)) -> 2958 | F25: =IF(INTRO!$E$49="","",ROUND($D25*INTRO!$E$49,0)) -> 5182 | G25: =IF(INTRO!$E$50="","",ROUND($D25*INTRO!$E$50,0)) -> 14100 | H25: 0 | I25: 1 | J25: 2 | K25: =IF(INTRO!$E$37="Endemic",IF($H25>0,IF($H25=4,"Unknown",IF($H25=99,"Stopped",$D25)),0),"Not required") -> Not required | L25: =IF(INTRO!$E$41="Endemic", IF(AND($I25>1, $I25<5), IF($I25=4, "Unknown", E25+F25), 0),"Not required") -> 0 | M25: =IF(INTRO!$E$43="Endemic", IF(AND($J25>0,$J25<5), IF($J25=4,"Unknown", IF($J25=1, $F25*0.33, IF($J25=2, $F25*0.5+$G25*0.2, SUM(F25:G25)))), 0),"Not required") -> 5411 | N25: 0 | O25: 1 | P25: 1 | T25: 45420 | U25: Lomahasha
A26: =IF(INTRO!$E$33<>0,INTRO!$E$33, " ") -> Swaziland | B26: Lubombo | C26: Lubuli | D26: 14419 | E26: =IF(INTRO!$E$48="","",ROUND($D26*INTRO!$E$48,0)) -> 1918 | F26: =IF(INTRO!$E$49="","",ROUND($D26*INTRO!$E$49,0)) -> 3360 | G26: =IF(INTRO!$E$50="","",ROUND($D26*INTRO!$E$50,0)) -> 9142 | H26: 0 | I26: 1 | J26: 1 | K26: =IF(INTRO!$E$37="Endemic",IF($H26>0,IF($H26=4,"Unknown",IF($H26=99,"Stopped",$D26)),0),"Not required") -> Not required | L26: =IF(INTRO!$E$41="Endemic", IF(AND($I26>1, $I26<5), IF($I26=4, "Unknown", E26+F26), 0),"Not required") -> 0 | M26: =IF(INTRO!$E$43="Endemic", IF(AND($J26>0,$J26<5), IF($J26=4,"Unknown", IF($J26=1, $F26*0.33, IF($J26=2, $F26*0.5+$G26*0.2, SUM(F26:G26)))), 0),"Not required") -> 1108.8 | N26: 0 | O26: 1 | P26: 1 | T26: 45421 | U26: Lubuli
A27: =IF(INTRO!$E$33<>0,INTRO!$E$33, " ") -> Swaziland | B27: Lubombo | C27: Lugongolweni | D27: 15519 | E27: =IF(INTRO!$E$48="","",ROUND($D27*INTRO!$E$48,0)) -> 2064 | F27: =IF(INTRO!$E$49="","",ROUND($D27*INTRO!$E$49,0)) -> 3616 | G27: =IF(INTRO!$E$50="","",ROUND($D27*INTRO!$E$50,0)) -> 9839 | H27: 0 | I27: 1 | J27: 2 | K27: =IF(INTRO!$E$37="Endemic",IF($H27>0,IF($H27=4,"Unknown",IF($H27=99,"Stopped",$D27)),0),"Not required") -> Not required | L27: =IF(INTRO!$E$41="Endemic", IF(AND($I27>1, $I27<5), IF($I27=4, "Unknown", E27+F27), 0),"Not required") -> 0 | M27: =IF(INTRO!$E$43="Endemic", IF(AND($J27>0,$J27<5), IF($J27=4,"Unknown", IF($J27=1, $F27*0.33, IF($J27=2, $F27*0.5+$G27*0.2, SUM(F27:G27)))), 0),"Not required") -> 3775.8 | N27: 0 | O27: 1 | P27: 1 | T27: 45422 | U27: Lugongolweni
A28: =IF(INTRO!$E$33<>0,INTRO!$E$33, " ") -> Swaziland | B28: Lubombo | C28: Matsanjeni North | D28: 12940 | E28: =IF(INTRO!$E$48="","",ROUND($D28*INTRO!$E$48,0)) -> 1721 | F28: =IF(INTRO!$E$49="","",ROUND($D28*INTRO!$E$49,0)) -> 3015 | G28: =IF(INTRO!$E$50="","",ROUND($D28*INTRO!$E$50,0)) -> 8204 | H28: 0 | I28: 1 | J28: 2 | K28: =IF(INTRO!$E$37="Endemic",IF($H28>0,IF($H28=4,"Unknown",IF($H28=99,"Stopped",$D28)),0),"Not required") -> Not required | L28: =IF(INTRO!$E$41="Endemic", IF(AND($I28>1, $I28<5), IF($I28=4, "Unknown", E28+F28), 0),"Not required") -> 0 | M28: =IF(INTRO!$E$43="Endemic", IF(AND($J28>0,$J28<5), IF($J28=4,"Unknown", IF($J28=1, $F28*0.33, IF($J28=2, $F28*0.5+$G28*0.2, SUM(F28:G28)))), 0),"Not required") -> 3148.3 | N28: 0 | O28: 1 | P28: 1 | T28: 45423 | U28: Matsanjeni North
A29: =IF(INTRO!$E$33<>0,INTRO!$E$33, " ") -> Swaziland | B29: Lubombo | C29: Mhlume | D29: 16981 | E29: =IF(INTRO!$E$48="","",ROUND($D29*INTRO!$E$48,0)) -> 2258 | F29: =IF(INTRO!$E$49="","",ROUND($D29*INTRO!$E$49,0)) -> 3957 | G29: =IF(INTRO!$E$50="","",ROUND($D29*INTRO!$E$50,0)) -> 10766 | H29: 0 | I29: 1 | J29: 2 | K29: =IF(INTRO!$E$37="Endemic",IF($H29>0,IF($H29=4,"Unknown",IF($H29=99,"Stopped",$D29)),0),"Not required") -> Not required | L29: =IF(INTRO!$E$41="Endemic", IF(AND($I29>1, $I29<5), IF($I29=4, "Unknown", E29+F29), 0),"Not required") -> 0 | M29: =IF(INTRO!$E$43="Endemic", IF(AND($J29>0,$J29<5), IF($J29=4,"Unknown", IF($J29=1, $F29*0.33, IF($J29=2, $F29*0.5+$G29*0.2, SUM(F29:G29)))), 0),"Not required") -> 4131.7 | N29: 0 | O29: 1 | P29: 1 | T29: 45424 | U29: Mhlume
A30: =IF(INTRO!$E$33<>0,INTRO!$E$33, " ") -> Swaziland | B30: Lubombo | C30: Mpolonjeni | D30: 20563 | E30: =IF(INTRO!$E$48="","",ROUND($D30*INTRO!$E$48,0)) -> 2735 | F30: =IF(INTRO!$E$49="","",ROUND($D30*INTRO!$E$49,0)) -> 4791 | G30: =IF(INTRO!$E$50="","",ROUND($D30*INTRO!$E$50,0)) -> 13037 | H30: 0 | I30: 1 | J30: 2 | K30: =IF(INTRO!$E$37="Endemic",IF($H30>0,IF($H30=4,"Unknown",IF($H30=99,"Stopped",$D30)),0),"Not required") -> Not required | L30: =IF(INTRO!$E$41="Endemic", IF(AND($I30>1, $I30<5), IF($I30=4, "Unknown", E30+F30), 0),"Not required") -> 0 | M30: =IF(INTRO!$E$43="Endemic", IF(AND($J30>0,$J30<5), IF($J30=4,"Unknown", IF($J30=1, $F30*0.33, IF($J30=2, $F30*0.5+$G30*0.2, SUM(F30:G30)))), 0),"Not required") -> 5002.9 | N30: 0 | O30: 1 | P30: 1 | T30: 45425 | U30: Mpolonjeni
A31: =IF(INTRO!$E$33<>0,INTRO!$E$33, " ") -> Swaziland | B31: Lubombo | C31: Nkilongo | D31: 15907 | E31: =IF(INTRO!$E$48="","",ROUND($D31*INTRO!$E$48,0)) -> 2116 | F31: =IF(INTRO!$E$49="","",ROUND($D31*INTRO!$E$49,0)) -> 3706 | G31: =IF(INTRO!$E$50="","",ROUND($D31*INTRO!$E$50,0)) -> 10085 | H31: 0 | I31: 1 | J31: 2 | K31: =IF(INTRO!$E$37="Endemic",IF($H31>0,IF($H31=4,"Unknown",IF($H31=99,"Stopped",$D31)),0),"Not required") -> Not required | L31: =IF(INTRO!$E$41="Endemic", IF(AND($I31>1, $I31<5), IF($I31=4, "Unknown", E31+F31), 0),"Not required") -> 0 | M31: =IF(INTRO!$E$43="Endemic", IF(AND($J31>0,$J31<5), IF($J31=4,"Unknown", IF($J31=1, $F31*0.33, IF($J31=2, $F31*0.5+$G31*0.2, SUM(F31:G31)))), 0),"Not required") -> 3870 | N31: 0 | O31: 1 | P31: 1 | T31: 45426 | U31: Nkilongo
A32: =IF(INTRO!$E$33<>0,INTRO!$E$33, " ") -> Swaziland | B32: Lubombo | C32: Siphofaneni | D32: 23488 | E32: =IF(INTRO!$E$48="","",ROUND($D32*INTRO!$E$48,0)) -> 3124 | F32: =IF(INTRO!$E$49="","",ROUND($D32*INTRO!$E$49,0)) -> 5473 | G32: =IF(INTRO!$E$50="","",ROUND($D32*INTRO!$E$50,0)) -> 14891 | H32: 0 | I32: 1 | J32: 2 | K32: =IF(INTRO!$E$37="Endemic",IF($H32>0,IF($H32=4,"Unknown",IF($H32=99,"Stopped",$D32)),0),"Not required") -> Not required | L32: =IF(INTRO!$E$41="Endemic", IF(AND($I32>1, $I32<5), IF($I32=4, "Unknown", E32+F32), 0),"Not required") -> 0 | M32: =IF(INTRO!$E$43="Endemic", IF(AND($J32>0,$J32<5), IF($J32=4,"Unknown", IF($J32=1, $F32*0.33, IF($J32=2, $F32*0.5+$G32*0.2, SUM(F32:G32)))), 0),"Not required") -> 5714.7 | N32: 0 | O32: 1 | P32: 1 | T32: 45427 | U32: Siphofaneni
A33: =IF(INTRO!$E$33<>0,INTRO!$E$33, " ") -> Swaziland | B33: Lubombo | C33: Sithobela | D33: 30332 | E33: =IF(INTRO!$E$48="","",ROUND($D33*INTRO!$E$48,0)) -> 4034 | F33: =IF(INTRO!$E$49="","",ROUND($D33*INTRO!$E$49,0)) -> 7067 | G33: =IF(INTRO!$E$50="","",ROUND($D33*INTRO!$E$50,0)) -> 19230 | H33: 0 | I33: 1 | J33: 2 | K33: =IF(INTRO!$E$37="Endemic",IF($H33>0,IF($H33=4,"Unknown",IF($H33=99,"Stopped",$D33)),0),"Not required") -> Not required | L33: =IF(INTRO!$E$41="Endemic", IF(AND($I33>1, $I33<5), IF($I33=4, "Unknown", E33+F33), 0),"Not required") -> 0 | M33: =IF(INTRO!$E$43="Endemic", IF(AND($J33>0,$J33<5), IF($J33=4,"Unknown", IF($J33=1, $F33*0.33, IF($J33=2, $F33*0.5+$G33*0.2, SUM(F33:G33)))), 0),"Not required") -> 7379.5 | N33: 0 | O33: 1 | P33: 1 | T33: 45429 | U33: Sithobela
A34: =IF(INTRO!$E$33<>0,INTRO!$E$33, " ") -> Swaziland | B34: Manzini | C34: Kukhanyeni | D34: 18085 | E34: =IF(INTRO!$E$48="","",ROUND($D34*INTRO!$E$48,0)) -> 2405 | F34: =IF(INTRO!$E$49="","",ROUND($D34*INTRO!$E$49,0)) -> 4214 | G34: =IF(INTRO!$E$50="","",ROUND($D34*INTRO!$E$50,0)) -> 11466 | H34: 0 | I34: 1 | J34: 2 | K34: =IF(INTRO!$E$37="Endemic",IF($H34>0,IF($H34=4,"Unknown",IF($H34=99,"Stopped",$D34)),0),"Not required") -> Not required | L34: =IF(INTRO!$E$41="Endemic", IF(AND($I34>1, $I34<5), IF($I34=4, "Unknown", E34+F34), 0),"Not required") -> 0 | M34: =IF(INTRO!$E$43="Endemic", IF(AND($J34>0,$J34<5), IF($J34=4,"Unknown", IF($J34=1, $F34*0.33, IF($J34=2, $F34*0.5+$G34*0.2, SUM(F34:G34)))), 0),"Not required") -> 4400.2 | N34: 0 | O34: 1 | P34: 1 | T34: 45430 | U34: Kukhanyeni
A35: =IF(INTRO!$E$33<>0,INTRO!$E$33, " ") -> Swaziland | B35: Manzini | C35: Kwaluseni | D35: 41780 | E35: =IF(INTRO!$E$48="","",ROUND($D35*INTRO!$E$48,0)) -> 5557 | F35: =IF(INTRO!$E$49="","",ROUND($D35*INTRO!$E$49,0)) -> 9735 | G35: =IF(INTRO!$E$50="","",ROUND($D35*INTRO!$E$50,0)) -> 26489 | H35: 0 | I35: 1 | J35: 2 | K35: =IF(INTRO!$E$37="Endemic",IF($H35>0,IF($H35=4,"Unknown",IF($H35=99,"Stopped",$D35)),0),"Not required") -> Not required | L35: =IF(INTRO!$E$41="Endemic", IF(AND($I35>1, $I35<5), IF($I35=4, "Unknown", E35+F35), 0),"Not required") -> 0 | M35: =IF(INTRO!$E$43="Endemic", IF(AND($J35>0,$J35<5), IF($J35=4,"Unknown", IF($J35=1, $F35*0.33, IF($J35=2, $F35*0.5+$G35*0.2, SUM(F35:G35)))), 0),"Not required") -> 10165.3 | N35: 0 | O35: 1 | P35: 1 | T35: 45431 | U35: Kwaluseni
A36: =IF(INTRO!$E$33<>0,INTRO!$E$33, " ") -> Swaziland | B36: Manzini | C36: La-Mgabhi | D36: 11924 | E36: =IF(INTRO!$E$48="","",ROUND($D36*INTRO!$E$48,0)) -> 1586 | F36: =IF(INTRO!$E$49="","",ROUND($D36*INTRO!$E$49,0)) -> 2778 | G36: =IF(INTRO!$E$50="","",ROUND($D36*INTRO!$E$50,0)) -> 7560 | H36: 0 | I36: 1 | J36: 2 | K36: =IF(INTRO!$E$37="Endemic",IF($H36>0,IF($H36=4,"Unknown",IF($H36=99,"Stopped",$D36)),0),"Not required") -> Not required | L36: =IF(INTRO!$E$41="Endemic", IF(AND($I36>1, $I36<5), IF($I36=4, "Unknown", E36+F36), 0),"Not required") -> 0 | M36: =IF(INTRO!$E$43="Endemic", IF(AND($J36>0,$J36<5), IF($J36=4,"Unknown", IF($J36=1, $F36*0.33, IF($J36=2, $F36*0.5+$G36*0.2, SUM(F36:G36)))), 0),"Not required") -> 2901 | N36: 0 | O36: 1 | P36: 1 | T36: 45432 | U36: La-Mgabhi
A37: =IF(INTRO!$E$33<>0,INTRO!$E$33, " ") -> Swaziland | B37: Manzini | C37: Lobamba Lomdzala | D37: 18797 | E37: =IF(INTRO!$E$48="","",ROUND($D37*INTRO!$E$48,0)) -> 2500 | F37: =IF(INTRO!$E$49="","",ROUND($D37*INTRO!$E$49,0)) -> 4380 | G37: =IF(INTRO!$E$50="","",ROUND($D37*INTRO!$E$50,0)) -> 11917 | H37: 0 | I37: 1 | J37: 2 | K37: =IF(INTRO!$E$37="Endemic",IF($H37>0,IF($H37=4,"Unknown",IF($H37=99,"Stopped",$D37)),0),"Not required") -> Not required | L37: =IF(INTRO!$E$41="Endemic", IF(AND($I37>1, $I37<5), IF($I37=4, "Unknown", E37+F37), 0),"Not required") -> 0 | M37: =IF(INTRO!$E$43="Endemic", IF(AND($J37>0,$J37<5), IF($J37=4,"Unknown", IF($J37=1, $F37*0.33, IF($J37=2, $F37*0.5+$G37*0.2, SUM(F37:G37)))), 0),"Not required") -> 4573.4 | N37: 0 | O37: 1 | P37: 1 | T37: 45459 | U37: Lobamba Lomdzala
A38: =IF(INTRO!$E$33<>0,INTRO!$E$33, " ") -> Swaziland | B38: Manzini | C38: Ludzeludze | D38: 28355 | E38: =IF(INTRO!$E$48="","",ROUND($D38*INTRO!$E$48,0)) -> 3771 | F38: =IF(INTRO!$E$49="","",ROUND($D38*INTRO!$E$49,0)) -> 6607 | G38: =IF(INTRO!$E$50="","",ROUND($D38*INTRO!$E$50,0)) -> 17977 | H38: 0 | I38: 1 | J38: 2 | K38: =IF(INTRO!$E$37="Endemic",IF($H38>0,IF($H38=4,"Unknown",IF($H38=99,"Stopped",$D38)),0),"Not required") -> Not required | L38: =IF(INTRO!$E$41="Endemic", IF(AND($I38>1, $I38<5), IF($I38=4, "Unknown", E38+F38), 0),"Not required") -> 0 | M38: =IF(INTRO!$E$43="Endemic", IF(AND($J38>0,$J38<5), IF($J38=4,"Unknown", IF($J38=1, $F38*0.33, IF($J38=2, $F38*0.5+$G38*0.2, SUM(F38:G38)))), 0),"Not required") -> 6898.9 | N38: 0 | O38: 1 | P38: 1 | T38: 45433 | U38: Ludzeludze
A39: =IF(INTRO!$E$33<>0,INTRO!$E$33, " ") -> Swaziland | B39: Manzini | C39: Mafutseni | D39: 15573 | E39: =IF(INTRO!$E$48="","",ROUND($D39*INTRO!$E$48,0)) -> 2071 | F39: =IF(INTRO!$E$49="","",ROUND($D39*INTRO!$E$49,0)) -> 3629 | G39: =IF(INTRO!$E$50="","",ROUND($D39*INTRO!$E$50,0)) -> 9873 | H39: 0 | I39: 1 | J39: 2 | K39: =IF(INTRO!$E$37="Endemic",IF($H39>0,IF($H39=4,"Unknown",IF($H39=99,"Stopped",$D39)),0),"Not required") -> Not required | L39: =IF(INTRO!$E$41="Endemic", IF(AND($I39>1, $I39<5), IF($I39=4, "Unknown", E39+F39), 0),"Not required") -> 0 | M39: =IF(INTRO!$E$43="Endemic", IF(AND($J39>0,$J39<5), IF($J39=4,"Unknown", IF($J39=1, $F39*0.33, IF($J39=2, $F39*0.5+$G39*0.2, SUM(F39:G39)))), 0),"Not required") -> 3789.1 | N39: 0 | O39: 1 | P39: 1 | T39: 45434 | U39: Mafutseni
A40: =IF(INTRO!$E$33<>0,INTRO!$E$33, " ") -> Swaziland | B40: Manzini | C40: Mahlangatsha | D40: 18788 | E40: =IF(INTRO!$E$48="","",ROUND($D40*INTRO!$E$48,0)) -> 2499 | F40: =IF(INTRO!$E$49="","",ROUND($D40*INTRO!$E$49,0)) -> 4378 | G40: =IF(INTRO!$E$50="","",ROUND($D40*INTRO!$E$50,0)) -> 11912 | H40: 0 | I40: 1 | J40: 1 | K40: =IF(INTRO!$E$37="Endemic",IF($H40>0,IF($H40=4,"Unknown",IF($H40=99,"Stopped",$D40)),0),"Not required") -> Not required | L40: =IF(INTRO!$E$41="Endemic", IF(AND($I40>1, $I40<5), IF($I40=4, "Unknown", E40+F40), 0),"Not required") -> 0 | M40: =IF(INTRO!$E$43="Endemic", IF(AND($J40>0,$J40<5), IF($J40=4,"Unknown", IF($J40=1, $F40*0.33, IF($J40=2, $F40*0.5+$G40*0.2, SUM(F40:G40)))), 0),"Not required") -> 1444.74 | N40: 0 | O40: 1 | P40: 1 | T40: 45435 | U40: Mahlangatsha
A41: =IF(INTRO!$E$33<>0,INTRO!$E$33, " ") -> Swaziland | B41: Manzini | C41: Mangcongco | D41: 6603 | E41: =IF(INTRO!$E$48="","",ROUND($D41*INTRO!$E$48,0)) -> 878 | F41: =IF(INTRO!$E$49="","",ROUND($D41*INTRO!$E$49,0)) -> 1538 | G41: =IF(INTRO!$E$50="","",ROUND($D41*INTRO!$E$50,0)) -> 4186 | H41: 0 | I41: 0 | J41: 2 | K41: =IF(INTRO!$E$37="Endemic",IF($H41>0,IF($H41=4,"Unknown",IF($H41=99,"Stopped",$D41)),0),"Not required") -> Not required | L41: =IF(INTRO!$E$41="Endemic", IF(AND($I41>1, $I41<5), IF($I41=4, "Unknown", E41+F41), 0),"Not required") -> 0 | M41: =IF(INTRO!$E$43="Endemic", IF(AND($J41>0,$J41<5), IF($J41=4,"Unknown", IF($J41=1, $F41*0.33, IF($J41=2, $F41*0.5+$G41*0.2, SUM(F41:G41)))), 0),"Not required") -> 1606.2 | N41: 0 | O41: 1 | P41: 1 | T41: 45436 | U41: Mangcongco
A42: =IF(INTRO!$E$33<>0,INTRO!$E$33, " ") -> Swaziland | B42: Manzini | C42: Manzini North | D42: 39529 | E42: =IF(INTRO!$E$48="","",ROUND($D42*INTRO!$E$48,0)) -> 5257 | F42: =IF(INTRO!$E$49="","",ROUND($D42*INTRO!$E$49,0)) -> 9210 | G42: =IF(INTRO!$E$50="","",ROUND($D42*INTRO!$E$50,0)) -> 25061 | H42: 0 | I42: 1 | J42: 2 | K42: =IF(INTRO!$E$37="Endemic",IF($H42>0,IF($H42=4,"Unknown",IF($H42=99,"Stopped",$D42)),0),"Not required") -> Not required | L42: =IF(INTRO!$E$41="Endemic", IF(AND($I42>1, $I42<5), IF($I42=4, "Unknown", E42+F42), 0),"Not required") -> 0 | M42: =IF(INTRO!$E$43="Endemic", IF(AND($J42>0,$J42<5), IF($J42=4,"Unknown", IF($J42=1, $F42*0.33, IF($J42=2, $F42*0.5+$G42*0.2, SUM(F42:G42)))), 0),"Not required") -> 9617.2 | N42: 0 | O42: 1 | P42: 1 | T42: 45437 | U42: Manzini North
A43: =IF(INTRO!$E$33<>0,INTRO!$E$33, " ") -> Swaziland | B43: Manzini | C43: Manzini South | D43: 15417 | E43: =IF(INTRO!$E$48="","",ROUND($D43*INTRO!$E$48,0)) -> 2050 | F43: =IF(INTRO!$E$49="","",ROUND($D43*INTRO!$E$49,0)) -> 3592 | G43: =IF(INTRO!$E$50="","",ROUND($D43*INTRO!$E$50,0)) -> 9774 | H43: 0 | I43: 1 | J43: 2 | K43: =IF(INTRO!$E$37="Endemic",IF($H43>0,IF($H43=4,"Unknown",IF($H43=99,"Stopped",$D43)),0),"Not required") -> Not required | L43: =IF(INTRO!$E$41="Endemic", IF(AND($I43>1, $I43<5), IF($I43=4, "Unknown", E43+F43), 0),"Not required") -> 0 | M43: =IF(INTRO!$E$43="Endemic", IF(AND($J43>0,$J43<5), IF($J43=4,"Unknown", IF($J43=1, $F43*0.33, IF($J43=2, $F43*0.5+$G43*0.2, SUM(F43:G43)))), 0),"Not required") -> 3750.8 | N43: 0 | O43: 1 | P43: 1 | T43: 45438 | U43: Manzini South
A44: =IF(INTRO!$E$33<>0,INTRO!$E$33, " ") -> Swaziland | B44: Manzini | C44: Mhlambanyatsi | D44: 8982 | E44: =IF(INTRO!$E$48="","",ROUND($D44*INTRO!$E$48,0)) -> 1195 | F44: =IF(INTRO!$E$49="","",ROUND($D44*INTRO!$E$49,0)) -> 2093 | G44: =IF(INTRO!$E$50="","",ROUND($D44*INTRO!$E$50,0)) -> 5695 | H44: 0 | I44: 1 | J44: 1 | K44: =IF(INTRO!$E$37="Endemic",IF($H44>0,IF($H44=4,"Unknown",IF($H44=99,"Stopped",$D44)),0),"Not required") -> Not required | L44: =IF(INTRO!$E$41="Endemic", IF(AND($I44>1, $I44<5), IF($I44=4, "Unknown", E44+F44), 0),"Not required") -> 0 | M44: =IF(INTRO!$E$43="Endemic", IF(AND($J44>0,$J44<5), IF($J44=4,"Unknown", IF($J44=1, $F44*0.33, IF($J44=2, $F44*0.5+$G44*0.2, SUM(F44:G44)))), 0),"Not required") -> 690.69 | N44: 0 | O44: 1 | P44: 1 | T44: 45439 | U44: Mhlambanyatsi
A45: =IF(INTRO!$E$33<>0,INTRO!$E$33, " ") -> Swaziland | B45: Manzini | C45: Mkhiweni | D45: 23929 | E45: =IF(INTRO!$E$48="","",ROUND($D45*INTRO!$E$48,0)) -> 3183 | F45: =IF(INTRO!$E$49="","",ROUND($D45*INTRO!$E$49,0)) -> 5575 | G45: =IF(INTRO!$E$50="","",ROUND($D45*INTRO!$E$50,0)) -> 15171 | H45: 0 | I45: 1 | J45: 1 | K45: =IF(INTRO!$E$37="Endemic",IF($H45>0,IF($H45=4,"Unknown",IF($H45=99,"Stopped",$D45)),0),"Not required") -> Not required | L45: =IF(INTRO!$E$41="Endemic", IF(AND($I45>1, $I45<5), IF($I45=4, "Unknown", E45+F45), 0),"Not required") -> 0 | M45: =IF(INTRO!$E$43="Endemic", IF(AND($J45>0,$J45<5), IF($J45=4,"Unknown", IF($J45=1, $F45*0.33, IF($J45=2, $F45*0.5+$G45*0.2, SUM(F45:G45)))), 0),"Not required") -> 1839.75 | N45: 0 | O45: 1 | P45: 1 | T45: 45440 | U45: Mkhiweni
A46: =IF(INTRO!$E$33<>0,INTRO!$E$33, " ") -> Swaziland | B46: Manzini | C46: Mtfongwaneni | D46: 17302 | E46: =IF(INTRO!$E$48="","",ROUND($D46*INTRO!$E$48,0)) -> 2301 | F46: =IF(INTRO!$E$49="","",ROUND($D46*INTRO!$E$49,0)) -> 4031 | G46: =IF(INTRO!$E$50="","",ROUND($D46*INTRO!$E$50,0)) -> 10969 | H46: 0 | I46: 1 | J46: 1 | K46: =IF(INTRO!$E$37="Endemic",IF($H46>0,IF($H46=4,"Unknown",IF($H46=99,"Stopped",$D46)),0),"Not required") -> Not required | L46: =IF(INTRO!$E$41="Endemic", IF(AND($I46>1, $I46<5), IF($I46=4, "Unknown", E46+F46), 0),"Not required") -> 0 | M46: =IF(INTRO!$E$43="Endemic", IF(AND($J46>0,$J46<5), IF($J46=4,"Unknown", IF($J46=1, $F46*0.33, IF($J46=2, $F46*0.5+$G46*0.2, SUM(F46:G46)))), 0),"Not required") -> 1330.23 | N46: 0 | O46: 1 | P46: 1 | T46: 45441 | U46: Mtfongwaneni
A47: =IF(INTRO!$E$33<>0,INTRO!$E$33, " ") -> Swaziland | B47: Manzini | C47: Ngwempisi | D47: 27232 | E47: =IF(INTRO!$E$48="","",ROUND($D47*INTRO!$E$48,0)) -> 3622 | F47: =IF(INTRO!$E$49="","",ROUND($D47*INTRO!$E$49,0)) -> 6345 | G47: =IF(INTRO!$E$50="","",ROUND($D47*INTRO!$E$50,0)) -> 17265 | H47: 0 | I47: 1 | J47: 2 | K47: =IF(INTRO!$E$37="Endemic",IF($H47>0,IF($H47=4,"Unknown",IF($H47=99,"Stopped",$D47)),0),"Not required") -> Not required | L47: =IF(INTRO!$E$41="Endemic", IF(AND($I47>1, $I47<5), IF($I47=4, "Unknown", E47+F47), 0),"Not required") -> 0 | M47: =IF(INTRO!$E$43="Endemic", IF(AND($J47>0,$J47<5), IF($J47=4,"Unknown", IF($J47=1, $F47*0.33, IF($J47=2, $F47*0.5+$G47*0.2, SUM(F47:G47)))), 0),"Not required") -> 6625.5 | N47: 0 | O47: 1 | P47: 1 | T47: 45442 | U47: Ngwempisi
A48: =IF(INTRO!$E$33<>0,INTRO!$E$33, " ") -> Swaziland | B48: Manzini | C48: Nhlambeni | D48: 12466 | E48: =IF(INTRO!$E$48="","",ROUND($D48*INTRO!$E$48,0)) -> 1658 | F48: =IF(INTRO!$E$49="","",ROUND($D48*INTRO!$E$49,0)) -> 2905 | G48: =IF(INTRO!$E$50="","",ROUND($D48*INTRO!$E$50,0)) -> 7903 | H48: 0 | I48: 0 | J48: 2 | K48: =IF(INTRO!$E$37="Endemic",IF($H48>0,IF($H48=4,"Unknown",IF($H48=99,"Stopped",$D48)),0),"Not required") -> Not required | L48: =IF(INTRO!$E$41="Endemic", IF(AND($I48>1, $I48<5), IF($I48=4, "Unknown", E48+F48), 0),"Not required") -> 0 | M48: =IF(INTRO!$E$43="Endemic", IF(AND($J48>0,$J48<5), IF($J48=4,"Unknown", IF($J48=1, $F48*0.33, IF($J48=2, $F48*0.5+$G48*0.2, SUM(F48:G48)))), 0),"Not required") -> 3033.1 | N48: 0 | O48: 1 | P48: 1 | T48: 45443 | U48: Nhlambeni
A49: =IF(INTRO!$E$33<>0,INTRO!$E$33, " ") -> Swaziland | B49: Manzini | C49: Ntondozi | D49: 14768 | E49: =IF(INTRO!$E$48="","",ROUND($D49*INTRO!$E$48,0)) -> 1964 | F49: =IF(INTRO!$E$49="","",ROUND($D49*INTRO!$E$49,0)) -> 3441 | G49: =IF(INTRO!$E$50="","",ROUND($D49*INTRO!$E$50,0)) -> 9363 | H49: 0 | I49: 1 | J49: 1 | K49: =IF(INTRO!$E$37="Endemic",IF($H49>0,IF($H49=4,"Unknown",IF($H49=99,"Stopped",$D49)),0),"Not required") -> Not required | L49: =IF(INTRO!$E$41="Endemic", IF(AND($I49>1, $I49<5), IF($I49=4, "Unknown", E49+F49), 0),"Not required") -> 0 | M49: =IF(INTRO!$E$43="Endemic", IF(AND($J49>0,$J49<5), IF($J49=4,"Unknown", IF($J49=1, $F49*0.33, IF($J49=2, $F49*0.5+$G49*0.2, SUM(F49:G49)))), 0),"Not required") -> 1135.53 | N49: 0 | O49: 1 | P49: 1 | T49: 45444 | U49: Ntondozi
A50: =IF(INTRO!$E$33<>0,INTRO!$E$33, " ") -> Swaziland | B50: Shiselweni | C50: Gege | D50: 18196 | E50: =IF(INTRO!$E$48="","",ROUND($D50*INTRO!$E$48,0)) -> 2420 | F50: =IF(INTRO!$E$49="","",ROUND($D50*INTRO!$E$49,0)) -> 4240 | G50: =IF(INTRO!$E$50="","",ROUND($D50*INTRO!$E$50,0)) -> 11536 | H50: 0 | I50: 1 | J50: 2 | K50: =IF(INTRO!$E$37="Endemic",IF($H50>0,IF($H50=4,"Unknown",IF($H50=99,"Stopped",$D50)),0),"Not required") -> Not required | L50: =IF(INTRO!$E$41="Endemic", IF(AND($I50>1, $I50<5), IF($I50=4, "Unknown", E50+F50), 0),"Not required") -> 0 | M50: =IF(INTRO!$E$43="Endemic", IF(AND($J50>0,$J50<5), IF($J50=4,"Unknown", IF($J50=1, $F50*0.33, IF($J50=2, $F50*0.5+$G50*0.2, SUM(F50:G50)))), 0),"Not required") -> 4427.2 | N50: 0 | O50: 1 | P50: 1 | T50: 45445 | U50: Gege
A51: =IF(INTRO!$E$33<>0,INTRO!$E$33, " ") -> Swaziland | B51: Shiselweni | C51: Hosea | D51: 19608 | E51: =IF(INTRO!$E$48="","",ROUND($D51*INTRO!$E$48,0)) -> 2608 | F51: =IF(INTRO!$E$49="","",ROUND($D51*INTRO!$E$49,0)) -> 4569 | G51: =IF(INTRO!$E$50="","",ROUND($D51*INTRO!$E$50,0)) -> 12431 | H51: 0 | I51: 0 | J51: 2 | K51: =IF(INTRO!$E$37="Endemic",IF($H51>0,IF($H51=4,"Unknown",IF($H51=99,"Stopped",$D51)),0),"Not required") -> Not required | L51: =IF(INTRO!$E$41="Endemic", IF(AND($I51>1, $I51<5), IF($I51=4, "Unknown", E51+F51), 0),"Not required") -> 0 | M51: =IF(INTRO!$E$43="Endemic", IF(AND($J51>0,$J51<5), IF($J51=4,"Unknown", IF($J51=1, $F51*0.33, IF($J51=2, $F51*0.5+$G51*0.2, SUM(F51:G51)))), 0),"Not required") -> 4770.7 | N51: 0 | O51: 1 | P51: 1 | T51: 45446 | U51: Hosea
A52: =IF(INTRO!$E$33<>0,INTRO!$E$33, " ") -> Swaziland | B52: Shiselweni | C52: Kubuta | D52: 6922 | E52: =IF(INTRO!$E$48="","",ROUND($D52*INTRO!$E$48,0)) -> 921 | F52: =IF(INTRO!$E$49="","",ROUND($D52*INTRO!$E$49,0)) -> 1613 | G52: =IF(INTRO!$E$50="","",ROUND($D52*INTRO!$E$50,0)) -> 4389 | H52: 0 | I52: 1 | J52: 2 | K52: =IF(INTRO!$E$37="Endemic",IF($H52>0,IF($H52=4,"Unknown",IF($H52=99,"Stopped",$D52)),0),"Not required") -> Not required | L52: =IF(INTRO!$E$41="Endemic", IF(AND($I52>1, $I52<5), IF($I52=4, "Unknown", E52+F52), 0),"Not required") -> 0 | M52: =IF(INTRO!$E$43="Endemic", IF(AND($J52>0,$J52<5), IF($J52=4,"Unknown", IF($J52=1, $F52*0.33, IF($J52=2, $F52*0.5+$G52*0.2, SUM(F52:G52)))), 0),"Not required") -> 1684.3 | N52: 0 | O52: 1 | P52: 1 | T52: 45447 | U52: Kubuta
A53: =IF(INTRO!$E$33<>0,INTRO!$E$33, " ") -> Swaziland | B53: Shiselweni | C53: Maseyisini | D53: 27967 | E53: =IF(INTRO!$E$48="","",ROUND($D53*INTRO!$E$48,0)) -> 3720 | F53: =IF(INTRO!$E$49="","",ROUND($D53*INTRO!$E$49,0)) -> 6516 | G53: =IF(INTRO!$E$50="","",ROUND($D53*INTRO!$E$50,0)) -> 17731 | H53: 0 | I53: 1 | J53: 2 | K53: =IF(INTRO!$E$37="Endemic",IF($H53>0,IF($H53=4,"Unknown",IF($H53=99,"Stopped",$D53)),0),"Not required") -> Not required | L53: =IF(INTRO!$E$41="Endemic", IF(AND($I53>1, $I53<5), IF($I53=4, "Unknown", E53+F53), 0),"Not required") -> 0 | M53: =IF(INTRO!$E$43="Endemic", IF(AND($J53>0,$J53<5), IF($J53=4,"Unknown", IF($J53=1, $F53*0.33, IF($J53=2, $F53*0.5+$G53*0.2, SUM(F53:G53)))), 0),"Not required") -> 6804.2 | N53: 0 | O53: 1 | P53: 1 | T53: 45449 | U53: Maseyisini
A54: =IF(INTRO!$E$33<>0,INTRO!$E$33, " ") -> Swaziland | B54: Shiselweni | C54: Matsanjeni South | D54: 16238 | E54: =IF(INTRO!$E$48="","",ROUND($D54*INTRO!$E$48,0)) -> 2160 | F54: =IF(INTRO!$E$49="","",ROUND($D54*INTRO!$E$49,0)) -> 3783 | G54: =IF(INTRO!$E$50="","",ROUND($D54*INTRO!$E$50,0)) -> 10295 | H54: 0 | I54: 1 | J54: 2 | K54: =IF(INTRO!$E$37="Endemic",IF($H54>0,IF($H54=4,"Unknown",IF($H54=99,"Stopped",$D54)),0),"Not required") -> Not required | L54: =IF(INTRO!$E$41="Endemic", IF(AND($I54>1, $I54<5), IF($I54=4, "Unknown", E54+F54), 0),"Not required") -> 0 | M54: =IF(INTRO!$E$43="Endemic", IF(AND($J54>0,$J54<5), IF($J54=4,"Unknown", IF($J54=1, $F54*0.33, IF($J54=2, $F54*0.5+$G54*0.2, SUM(F54:G54)))), 0),"Not required") -> 3950.5 | N54: 0 | O54: 1 | P54: 1 | T54: 45450 | U54: Matsanjeni South
A55: =IF(INTRO!$E$33<>0,INTRO!$E$33, " ") -> Swaziland | B55: Shiselweni | C55: Mtsambama | D55: 18900 | E55: =IF(INTRO!$E$48="","",ROUND($D55*INTRO!$E$48,0)) -> 2514 | F55: =IF(INTRO!$E$49="","",ROUND($D55*INTRO!$E$49,0)) -> 4404 | G55: =IF(INTRO!$E$50="","",ROUND($D55*INTRO!$E$50,0)) -> 11983 | H55: 0 | I55: 1 | J55: 2 | K55: =IF(INTRO!$E$37="Endemic",IF($H55>0,IF($H55=4,"Unknown",IF($H55=99,"Stopped",$D55)),0),"Not required") -> Not required | L55: =IF(INTRO!$E$41="Endemic", IF(AND($I55>1, $I55<5), IF($I55=4, "Unknown", E55+F55), 0),"Not required") -> 0 | M55: =IF(INTRO!$E$43="Endemic", IF(AND($J55>0,$J55<5), IF($J55=4,"Unknown", IF($J55=1, $F55*0.33, IF($J55=2, $F55*0.5+$G55*0.2, SUM(F55:G55)))), 0),"Not required") -> 4598.6 | N55: 0 | O55: 1 | P55: 1 | T55: 45452 | U55: Mtsambama
A56: =IF(INTRO!$E$33<>0,INTRO!$E$33, " ") -> Swaziland | B56: Shiselweni | C56: Ngudzeni | D56: 8056 | E56: =IF(INTRO!$E$48="","",ROUND($D56*INTRO!$E$48,0)) -> 1071 | F56: =IF(INTRO!$E$49="","",ROUND($D56*INTRO!$E$49,0)) -> 1877 | G56: =IF(INTRO!$E$50="","",ROUND($D56*INTRO!$E$50,0)) -> 5108 | H56: 0 | I56: 1 | J56: 2 | K56: =IF(INTRO!$E$37="Endemic",IF($H56>0,IF($H56=4,"Unknown",IF($H56=99,"Stopped",$D56)),0),"Not required") -> Not required | L56: =IF(INTRO!$E$41="Endemic", IF(AND($I56>1, $I56<5), IF($I56=4, "Unknown", E56+F56), 0),"Not required") -> 0 | M56: =IF(INTRO!$E$43="Endemic", IF(AND($J56>0,$J56<5), IF($J56=4,"Unknown", IF($J56=1, $F56*0.33, IF($J56=2, $F56*0.5+$G56*0.2, SUM(F56:G56)))), 0),"Not required") -> 1960.1 | N56: 0 | O56: 1 | P56: 1 | T56: 45453 | U56: Ngudzeni
A57: =IF(INTRO!$E$33<>0,INTRO!$E$33, " ") -> Swaziland | B57: Shiselweni | C57: Nkwene | D57: 7167 | E57: =IF(INTRO!$E$48="","",ROUND($D57*INTRO!$E$48,0)) -> 953 | F57: =IF(INTRO!$E$49="","",ROUND($D57*INTRO!$E$49,0)) -> 1670 | G57: =IF(INTRO!$E$50="","",ROUND($D57*INTRO!$E$50,0)) -> 4544 | H57: 0 | I57: 1 | J57: 2 | K57: =IF(INTRO!$E$37="Endemic",IF($H57>0,IF($H57=4,"Unknown",IF($H57=99,"Stopped",$D57)),0),"Not required") -> Not required | L57: =IF(INTRO!$E$41="Endemic", IF(AND($I57>1, $I57<5), IF($I57=4, "Unknown", E57+F57), 0),"Not required") -> 0 | M57: =IF(INTRO!$E$43="Endemic", IF(AND($J57>0,$J57<5), IF($J57=4,"Unknown", IF($J57=1, $F57*0.33, IF($J57=2, $F57*0.5+$G57*0.2, SUM(F57:G57)))), 0),"Not required") -> 1743.8 | N57: 0 | O57: 1 | P57: 1 | T57: 45454 | U57: Nkwene
A58: =IF(INTRO!$E$33<>0,INTRO!$E$33, " ") -> Swaziland | B58: Shiselweni | C58: Sandleni | D58: 13210 | E58: =IF(INTRO!$E$48="","",ROUND($D58*INTRO!$E$48,0)) -> 1757 | F58: =IF(INTRO!$E$49="","",ROUND($D58*INTRO!$E$49,0)) -> 3078 | G58: =IF(INTRO!$E$50="","",ROUND($D58*INTRO!$E$50,0)) -> 8375 | H58: 0 | I58: 1 | J58: 2 | K58: =IF(INTRO!$E$37="Endemic",IF($H58>0,IF($H58=4,"Unknown",IF($H58=99,"Stopped",$D58)),0),"Not required") -> Not required | L58: =IF(INTRO!$E$41="Endemic", IF(AND($I58>1, $I58<5), IF($I58=4, "Unknown", E58+F58), 0),"Not required") -> 0 | M58: =IF(INTRO!$E$43="Endemic", IF(AND($J58>0,$J58<5), IF($J58=4,"Unknown", IF($J58=1, $F58*0.33, IF($J58=2, $F58*0.5+$G58*0.2, SUM(F58:G58)))), 0),"Not required") -> 3214 | N58: 0 | O58: 1 | P58: 1 | T58: 45455 | U58: Sandleni
A59: =IF(INTRO!$E$33<>0,INTRO!$E$33, " ") -> Swaziland | B59: Shiselweni | C59: Shiselweni 1 | D59: 12823 | E59: =IF(INTRO!$E$48="","",ROUND($D59*INTRO!$E$48,0)) -> 1705 | F59: =IF(INTRO!$E$49="","",ROUND($D59*INTRO!$E$49,0)) -> 2988 | G59: =IF(INTRO!$E$50="","",ROUND($D59*INTRO!$E$50,0)) -> 8130 | H59: 0 | I59: 1 | J59: 2 | K59: =IF(INTRO!$E$37="Endemic",IF($H59>0,IF($H59=4,"Unknown",IF($H59=99,"Stopped",$D59)),0),"Not required") -> Not required | L59: =IF(INTRO!$E$41="Endemic", IF(AND($I59>1, $I59<5), IF($I59=4, "Unknown", E59+F59), 0),"Not required") -> 0 | M59: =IF(INTRO!$E$43="Endemic", IF(AND($J59>0,$J59<5), IF($J59=4,"Unknown", IF($J59=1, $F59*0.33, IF($J59=2, $F59*0.5+$G59*0.2, SUM(F59:G59)))), 0),"Not required") -> 3120 | N59: 0 | O59: 1 | P59: 1 | T59: 45456 | U59: Shiselweni 1
A60: =IF(INTRO!$E$33<>0,INTRO!$E$33, " ") -> Swaziland | B60: Shiselweni | C60: Shiselweni 2 | D60: 26067 | E60: =IF(INTRO!$E$48="","",ROUND($D60*INTRO!$E$48,0)) -> 3467 | F60: =IF(INTRO!$E$49="","",ROUND($D60*INTRO!$E$49,0)) -> 6074 | G60: =IF(INTRO!$E$50="","",ROUND($D60*INTRO!$E$50,0)) -> 16526 | H60: 0 | I60: 1 | J60: 2 | K60: =IF(INTRO!$E$37="Endemic",IF($H60>0,IF($H60=4,"Unknown",IF($H60=99,"Stopped",$D60)),0),"Not required") -> Not required | L60: =IF(INTRO!$E$41="Endemic", IF(AND($I60>1, $I60<5), IF($I60=4, "Unknown", E60+F60), 0),"Not required") -> 0 | M60: =IF(INTRO!$E$43="Endemic", IF(AND($J60>0,$J60<5), IF($J60=4,"Unknown", IF($J60=1, $F60*0.33, IF($J60=2, $F60*0.5+$G60*0.2, SUM(F60:G60)))), 0),"Not required") -> 6342.2 | N60: 0 | O60: 1 | P60: 1 | T60: 45451 | U60: Shiselweni 2
A61: =IF(INTRO!$E$33<>0,INTRO!$E$33, " ") -> Swaziland | B61: Shiselweni | C61: Sigwe | D61: 11776 | E61: =IF(INTRO!$E$48="","",ROUND($D61*INTRO!$E$48,0)) -> 1566 | F61: =IF(INTRO!$E$49="","",ROUND($D61*INTRO!$E$49,0)) -> 2744 | G61: =IF(INTRO!$E$50="","",ROUND($D61*INTRO!$E$50,0)) -> 7466 | H61: 0 | I61: 1 | J61: 2 | K61: =IF(INTRO!$E$37="Endemic",IF($H61>0,IF($H61=4,"Unknown",IF($H61=99,"Stopped",$D61)),0),"Not required") -> Not required | L61: =IF(INTRO!$E$41="Endemic", IF(AND($I61>1, $I61<5), IF($I61=4, "Unknown", E61+F61), 0),"Not required") -> 0 | M61: =IF(INTRO!$E$43="Endemic", IF(AND($J61>0,$J61<5), IF($J61=4,"Unknown", IF($J61=1, $F61*0.33, IF($J61=2, $F61*0.5+$G61*0.2, SUM(F61:G61)))), 0),"Not required") -> 2865.2 | N61: 0 | O61: 1 | P61: 1 | T61: 45457 | U61: Sigwe
A62: =IF(INTRO!$E$33<>0,INTRO!$E$33, " ") -> Swaziland | B62: Shiselweni | C62: Somntongo | D62: 5457 | E62: =IF(INTRO!$E$48="","",ROUND($D62*INTRO!$E$48,0)) -> 726 | F62: =IF(INTRO!$E$49="","",ROUND($D62*INTRO!$E$49,0)) -> 1271 | G62: =IF(INTRO!$E$50="","",ROUND($D62*INTRO!$E$50,0)) -> 3460 | H62: 0 | I62: 1 | J62: 2 | K62: =IF(INTRO!$E$37="Endemic",IF($H62>0,IF($H62=4,"Unknown",IF($H62=99,"Stopped",$D62)),0),"Not required") -> Not required | L62: =IF(INTRO!$E$41="Endemic", IF(AND($I62>1, $I62<5), IF($I62=4, "Unknown", E62+F62), 0),"Not required") -> 0 | M62: =IF(INTRO!$E$43="Endemic", IF(AND($J62>0,$J62<5), IF($J62=4,"Unknown", IF($J62=1, $F62*0.33, IF($J62=2, $F62*0.5+$G62*0.2, SUM(F62:G62)))), 0),"Not required") -> 1327.5 | N62: 0 | O62: 1 | P62: 1 | T62: 45448 | U62: Somntongo
A63: =IF(INTRO!$E$33<>0,INTRO!$E$33, " ") -> Swaziland | B63: Shiselweni | C63: Zombodze Emuva | D63: 16067 | E63: =IF(INTRO!$E$48="","",ROUND($D63*INTRO!$E$48,0)) -> 2137 | F63: =IF(INTRO!$E$49="","",ROUND($D63*INTRO!$E$49,0)) -> 3744 | G63: =IF(INTRO!$E$50="","",ROUND($D63*INTRO!$E$50,0)) -> 10186 | H63: 0 | I63: 1 | J63: 2 | K63: =IF(INTRO!$E$37="Endemic",IF($H63>0,IF($H63=4,"Unknown",IF($H63=99,"Stopped",$D63)),0),"Not required") -> Not required | L63: =IF(INTRO!$E$41="Endemic", IF(AND($I63>1, $I63<5), IF($I63=4, "Unknown", E63+F63), 0),"Not required") -> 0 | M63: =IF(INTRO!$E$43="Endemic", IF(AND($J63>0,$J63<5), IF($J63=4,"Unknown", IF($J63=1, $F63*0.33, IF($J63=2, $F63*0.5+$G63*0.2, SUM(F63:G63)))), 0),"Not required") -> 3909.2 | N63: 0 | O63: 1 | P63: 1 | T63: 45458 | U63: Zombodze Emuva

Sheet DEC
A1: Diethylcarbamazine citrate (DEC)
A2: Administrative structure, eligible population by age group, treatment plan and information about tablets
A4: TOTAL | D4: =SUM(D$9:D$1000) -> 0 | E4: =SUM(E$9:E$1000) -> 0 | F4: =SUM(F$9:F$1000) -> 0 | G4: =SUM(G$9:G$1000) -> 0 | I4: =SUM(I$9:I$1000) -> 0 | J4: =SUM(J$9:J$1000) -> 0 | K4: =SUM(K$9:K$1000) -> 0 | L4: =SUM(L$9:L$1000) -> 0 | M4: =SUM(M$9:M$1000) -> 0
A6: Country administrative structure | D6: Population requiring treatment with DEC | H6: Treatment plan | I6: Target population | J6: Diethylcarbamazine citrate (DEC)
A7: Country | B7: Province/State | C7: District | D7: PreSAC | E7: SAC | F7: Adults | G7: Total | H7: LF | I7: LF | J7: Total required | K7: Remaining in stock | L7: Tablets to be procured | M7: Bottle (100 mg) 1000 tablets
A9: =IF(INTRO!$E$37="Non-endemic"," ", IF(COUNTRY_INFO!A9=0," ",COUNTRY_INFO!A9)) ->  | B9: =IF(INTRO!$E$37="Non-endemic"," ", IF(COUNTRY_INFO!B9=0," ",COUNTRY_INFO!B9)) ->  | C9: =IF(INTRO!$E$37="Non-endemic"," ", IF(COUNTRY_INFO!C9=0," ",COUNTRY_INFO!C9)) ->  | D9: =IF(INTRO!$E$37="Non-endemic",0,IF(COUNTRY_INFO!$H9=1,COUNTRY_INFO!E9,0)) -> 0 | E9: =IF(INTRO!$E$37="Non-endemic",0,IF(COUNTRY_INFO!$H9=1,COUNTRY_INFO!F9,0)) -> 0 | F9: =IF(INTRO!$E$37="Non-endemic",0,IF(COUNTRY_INFO!$H9=1,COUNTRY_INFO!G9,0)) -> 0 | G9: =SUM(D9:F9) -> 0 | H9: =IF(INTRO!$E$37="Non-endemic","Not required",COUNTRY_INFO!N9) -> Not required | I9: =IF(H9=1,G9,0) -> 0 | J9: =IF(I9>0,I9*2.5,0) -> 0 | L9: =IF($J9>$K9,$J9-$K9,0) -> 0 | M9: =ROUNDUP($J9/1000,0) -> 0
A10: =IF(INTRO!$E$37="Non-endemic"," ", IF(COUNTRY_INFO!A10=0," ",COUNTRY_INFO!A10)) ->  | B10: =IF(INTRO!$E$37="Non-endemic"," ", IF(COUNTRY_INFO!B10=0," ",COUNTRY_INFO!B10)) ->  | C10: =IF(INTRO!$E$37="Non-endemic"," ", IF(COUNTRY_INFO!C10=0," ",COUNTRY_INFO!C10)) ->  | D10: =IF(INTRO!$E$37="Non-endemic",0,IF(COUNTRY_INFO!$H10=1,COUNTRY_INFO!E10,0)) -> 0 | E10: =IF(INTRO!$E$37="Non-endemic",0,IF(COUNTRY_INFO!$H10=1,COUNTRY_INFO!F10,0)) -> 0 | F10: =IF(INTRO!$E$37="Non-endemic",0,IF(COUNTRY_INFO!$H10=1,COUNTRY_INFO!G10,0)) -> 0 | G10: 0 | H10: =IF(INTRO!$E$37="Non-endemic","Not required",COUNTRY_INFO!N10) -> Not required | I10: 0 | J10: 0 | L10: 0 | M10: 0
A11: =IF(INTRO!$E$37="Non-endemic"," ", IF(COUNTRY_INFO!A11=0," ",COUNTRY_INFO!A11)) ->  | B11: =IF(INTRO!$E$37="Non-endemic"," ", IF(COUNTRY_INFO!B11=0," ",COUNTRY_INFO!B11)) ->  | C11: =IF(INTRO!$E$37="Non-endemic"," ", IF(COUNTRY_INFO!C11=0," ",COUNTRY_INFO!C11)) ->  | D11: =IF(INTRO!$E$37="Non-endemic",0,IF(COUNTRY_INFO!$H11=1,COUNTRY_INFO!E11,0)) -> 0 | E11: =IF(INTRO!$E$37="Non-endemic",0,IF(COUNTRY_INFO!$H11=1,COUNTRY_INFO!F11,0)) -> 0 | F11: =IF(INTRO!$E$37="Non-endemic",0,IF(COUNTRY_INFO!$H11=1,COUNTRY_INFO!G11,0)) -> 0 | G11: 0 | H11: =IF(INTRO!$E$37="Non-endemic","Not required",COUNTRY_INFO!N11) -> Not required | I11: 0 | J11: 0 | L11: 0 | M11: 0
A12: =IF(INTRO!$E$37="Non-endemic"," ", IF(COUNTRY_INFO!A12=0," ",COUNTRY_INFO!A12)) ->  | B12: =IF(INTRO!$E$37="Non-endemic"," ", IF(COUNTRY_INFO!B12=0," ",COUNTRY_INFO!B12)) ->  | C12: =IF(INTRO!$E$37="Non-endemic"," ", IF(COUNTRY_INFO!C12=0," ",COUNTRY_INFO!C12)) ->  | D12: =IF(INTRO!$E$37="Non-endemic",0,IF(COUNTRY_INFO!$H12=1,COUNTRY_INFO!E12,0)) -> 0 | E12: =IF(INTRO!$E$37="Non-endemic",0,IF(COUNTRY_INFO!$H12=1,COUNTRY_INFO!F12,0)) -> 0 | F12: =IF(INTRO!$E$37="Non-endemic",0,IF(COUNTRY_INFO!$H12=1,COUNTRY_INFO!G12,0)) -> 0 | G12: 0 | H12: =IF(INTRO!$E$37="Non-endemic","Not required",COUNTRY_INFO!N12) -> Not required | I12: 0 | J12: 0 | L12: 0 | M12: 0
A13: =IF(INTRO!$E$37="Non-endemic"," ", IF(COUNTRY_INFO!A13=0," ",COUNTRY_INFO!A13)) ->  | B13: =IF(INTRO!$E$37="Non-endemic"," ", IF(COUNTRY_INFO!B13=0," ",COUNTRY_INFO!B13)) ->  | C13: =IF(INTRO!$E$37="Non-endemic"," ", IF(COUNTRY_INFO!C13=0," ",COUNTRY_INFO!C13)) ->  | D13: =IF(INTRO!$E$37="Non-endemic",0,IF(COUNTRY_INFO!$H13=1,COUNTRY_INFO!E13,0)) -> 0 | E13: =IF(INTRO!$E$37="Non-endemic",0,IF(COUNTRY_INFO!$H13=1,COUNTRY_INFO!F13,0)) -> 0 | F13: =IF(INTRO!$E$37="Non-endemic",0,IF(COUNTRY_INFO!$H13=1,COUNTRY_INFO!G13,0)) -> 0 | G13: 0 | H13: =IF(INTRO!$E$37="Non-endemic","Not required",COUNTRY_INFO!N13) -> Not required | I13: 0 | J13: 0 | L13: 0 | M13: 0
A14: =IF(INTRO!$E$37="Non-endemic"," ", IF(COUNTRY_INFO!A14=0," ",COUNTRY_INFO!A14)) ->  | B14: =IF(INTRO!$E$37="Non-endemic"," ", IF(COUNTRY_INFO!B14=0," ",COUNTRY_INFO!B14)) ->  | C14: =IF(INTRO!$E$37="Non-endemic"," ", IF(COUNTRY_INFO!C14=0," ",COUNTRY_INFO!C14)) ->  | D14: =IF(INTRO!$E$37="Non-endemic",0,IF(COUNTRY_INFO!$H14=1,COUNTRY_INFO!E14,0)) -> 0 | E14: =IF(INTRO!$E$37="Non-endemic",0,IF(COUNTRY_INFO!$H14=1,COUNTRY_INFO!F14,0)) -> 0 | F14: =IF(INTRO!$E$37="Non-endemic",0,IF(COUNTRY_INFO!$H14=1,COUNTRY_INFO!G14,0)) -> 0 | G14: 0 | H14: =IF(INTRO!$E$37="Non-endemic","Not required",COUNTRY_INFO!N14) -> Not required | I14: 0 | J14: 0 | L14: 0 | M14: 0
A15: =IF(INTRO!$E$37="Non-endemic"," ", IF(COUNTRY_INFO!A15=0," ",COUNTRY_INFO!A15)) ->  | B15: =IF(INTRO!$E$37="Non-endemic"," ", IF(COUNTRY_INFO!B15=0," ",COUNTRY_INFO!B15)) ->  | C15: =IF(INTRO!$E$37="Non-endemic"," ", IF(COUNTRY_INFO!C15=0," ",COUNTRY_INFO!C15)) ->  | D15: =IF(INTRO!$E$37="Non-endemic",0,IF(COUNTRY_INFO!$H15=1,COUNTRY_INFO!E15,0)) -> 0 | E15: =IF(INTRO!$E$37="Non-endemic",0,IF(COUNTRY_INFO!$H15=1,COUNTRY_INFO!F15,0)) -> 0 | F15: =IF(INTRO!$E$37="Non-endemic",0,IF(COUNTRY_INFO!$H15=1,COUNTRY_INFO!G15,0)) -> 0 | G15: 0 | H15: =IF(INTRO!$E$37="Non-endemic","Not required",COUNTRY_INFO!N15) -> Not required | I15: 0 | J15: 0 | L15: 0 | M15: 0
A16: =IF(INTRO!$E$37="Non-endemic"," ", IF(COUNTRY_INFO!A16=0," ",COUNTRY_INFO!A16)) ->  | B16: =IF(INTRO!$E$37="Non-endemic"," ", IF(COUNTRY_INFO!B16=0," ",COUNTRY_INFO!B16)) ->  | C16: =IF(INTRO!$E$37="Non-endemic"," ", IF(COUNTRY_INFO!C16=0," ",COUNTRY_INFO!C16)) ->  | D16: =IF(INTRO!$E$37="Non-endemic",0,IF(COUNTRY_INFO!$H16=1,COUNTRY_INFO!E16,0)) -> 0 | E16: =IF(INTRO!$E$37="Non-endemic",0,IF(COUNTRY_INFO!$H16=1,COUNTRY_INFO!F16,0)) -> 0 | F16: =IF(INTRO!$E$37="Non-endemic",0,IF(COUNTRY_INFO!$H16=1,COUNTRY_INFO!G16,0)) -> 0 | G16: 0 | H16: =IF(INTRO!$E$37="Non-endemic","Not required",COUNTRY_INFO!N16) -> Not required | I16: 0 | J16: 0 | L16: 0 | M16: 0
A17: =IF(INTRO!$E$37="Non-endemic"," ", IF(COUNTRY_INFO!A17=0," ",COUNTRY_INFO!A17)) ->  | B17: =IF(INTRO!$E$37="Non-endemic"," ", IF(COUNTRY_INFO!B17=0," ",COUNTRY_INFO!B17)) ->  | C17: =IF(INTRO!$E$37="Non-endemic"," ", IF(COUNTRY_INFO!C17=0," ",COUNTRY_INFO!C17)) ->  | D17: =IF(INTRO!$E$37="Non-endemic",0,IF(COUNTRY_INFO!$H17=1,COUNTRY_INFO!E17,0)) -> 0 | E17: =IF(INTRO!$E$37="Non-endemic",0,IF(COUNTRY_INFO!$H17=1,COUNTRY_INFO!F17,0)) -> 0 | F17: =IF(INTRO!$E$37="Non-endemic",0,IF(COUNTRY_INFO!$H17=1,COUNTRY_INFO!G17,0)) -> 0 | G17: 0 | H17: =IF(INTRO!$E$37="Non-endemic","Not required",COUNTRY_INFO!N17) -> Not required | I17: 0 | J17: 0 | L17: 0 | M17: 0
A18: =IF(INTRO!$E$37="Non-endemic"," ", IF(COUNTRY_INFO!A18=0," ",COUNTRY_INFO!A18)) ->  | B18: =IF(INTRO!$E$37="Non-endemic"," ", IF(COUNTRY_INFO!B18=0," ",COUNTRY_INFO!B18)) ->  | C18: =IF(INTRO!$E$37="Non-endemic"," ", IF(COUNTRY_INFO!C18=0," ",COUNTRY_INFO!C18)) ->  | D18: =IF(INTRO!$E$37="Non-endemic",0,IF(COUNTRY_INFO!$H18=1,COUNTRY_INFO!E18,0)) -> 0 | E18: =IF(INTRO!$E$37="Non-endemic",0,IF(COUNTRY_INFO!$H18=1,COUNTRY_INFO!F18,0)) -> 0 | F18: =IF(INTRO!$E$37="Non-endemic",0,IF(COUNTRY_INFO!$H18=1,COUNTRY_INFO!G18,0)) -> 0 | G18: 0 | H18: =IF(INTRO!$E$37="Non-endemic","Not required",COUNTRY_INFO!N18) -> Not required | I18: 0 | J18: 0 | L18: 0 | M18: 0
A19: =IF(INTRO!$E$37="Non-endemic"," ", IF(COUNTRY_INFO!A19=0," ",COUNTRY_INFO!A19)) ->  | B19: =IF(INTRO!$E$37="Non-endemic"," ", IF(COUNTRY_INFO!B19=0," ",COUNTRY_INFO!B19)) ->  | C19: =IF(INTRO!$E$37="Non-endemic"," ", IF(COUNTRY_INFO!C19=0," ",COUNTRY_INFO!C19)) ->  | D19: =IF(INTRO!$E$37="Non-endemic",0,IF(COUNTRY_INFO!$H19=1,COUNTRY_INFO!E19,0)) -> 0 | E19: =IF(INTRO!$E$37="Non-endemic",0,IF(COUNTRY_INFO!$H19=1,COUNTRY_INFO!F19,0)) -> 0 | F19: =IF(INTRO!$E$37="Non-endemic",0,IF(COUNTRY_INFO!$H19=1,COUNTRY_INFO!G19,0)) -> 0 | G19: 0 | H19: =IF(INTRO!$E$37="Non-endemic","Not required",COUNTRY_INFO!N19) -> Not required | I19: 0 | J19: 0 | L19: 0 | M19: 0
A20: =IF(INTRO!$E$37="Non-endemic"," ", IF(COUNTRY_INFO!A20=0," ",COUNTRY_INFO!A20)) ->  | B20: =IF(INTRO!$E$37="Non-endemic"," ", IF(COUNTRY_INFO!B20=0," ",COUNTRY_INFO!B20)) ->  | C20: =IF(INTRO!$E$37="Non-endemic"," ", IF(COUNTRY_INFO!C20=0," ",COUNTRY_INFO!C20)) ->  | D20: =IF(INTRO!$E$37="Non-endemic",0,IF(COUNTRY_INFO!$H20=1,COUNTRY_INFO!E20,0)) -> 0 | E20: =IF(INTRO!$E$37="Non-endemic",0,IF(COUNTRY_INFO!$H20=1,COUNTRY_INFO!F20,0)) -> 0 | F20: =IF(INTRO!$E$37="Non-endemic",0,IF(COUNTRY_INFO!$H20=1,COUNTRY_INFO!G20,0)) -> 0 | G20: 0 | H20: =IF(INTRO!$E$37="Non-endemic","Not required",COUNTRY_INFO!N20) -> Not required | I20: 0 | J20: 0 | L20: 0 | M20: 0
A21: =IF(INTRO!$E$37="Non-endemic"," ", IF(COUNTRY_INFO!A21=0," ",COUNTRY_INFO!A21)) ->  | B21: =IF(INTRO!$E$37="Non-endemic"," ", IF(COUNTRY_INFO!B21=0," ",COUNTRY_INFO!B21)) ->  | C21: =IF(INTRO!$E$37="Non-endemic"," ", IF(COUNTRY_INFO!C21=0," ",COUNTRY_INFO!C21)) ->  | D21: =IF(INTRO!$E$37="Non-endemic",0,IF(COUNTRY_INFO!$H21=1,COUNTRY_INFO!E21,0)) -> 0 | E21: =IF(INTRO!$E$37="Non-endemic",0,IF(COUNTRY_INFO!$H21=1,COUNTRY_INFO!F21,0)) -> 0 | F21: =IF(INTRO!$E$37="Non-endemic",0,IF(COUNTRY_INFO!$H21=1,COUNTRY_INFO!G21,0)) -> 0 | G21: 0 | H21: =IF(INTRO!$E$37="Non-endemic","Not required",COUNTRY_INFO!N21) -> Not required | I21: 0 | J21: 0 | L21: 0 | M21: 0
A22: =IF(INTRO!$E$37="Non-endemic"," ", IF(COUNTRY_INFO!A22=0," ",COUNTRY_INFO!A22)) ->  | B22: =IF(INTRO!$E$37="Non-endemic"," ", IF(COUNTRY_INFO!B22=0," ",COUNTRY_INFO!B22)) ->  | C22: =IF(INTRO!$E$37="Non-endemic"," ", IF(COUNTRY_INFO!C22=0," ",COUNTRY_INFO!C22)) ->  | D22: =IF(INTRO!$E$37="Non-endemic",0,IF(COUNTRY_INFO!$H22=1,COUNTRY_INFO!E22,0)) -> 0 | E22: =IF(INTRO!$E$37="Non-endemic",0,IF(COUNTRY_INFO!$H22=1,COUNTRY_INFO!F22,0)) -> 0 | F22: =IF(INTRO!$E$37="Non-endemic",0,IF(COUNTRY_INFO!$H22=1,COUNTRY_INFO!G22,0)) -> 0 | G22: 0 | H22: =IF(INTRO!$E$37="Non-endemic","Not required",COUNTRY_INFO!N22) -> Not required | I22: 0 | J22: 0 | L22: 0 | M22: 0
A23: =IF(INTRO!$E$37="Non-endemic"," ", IF(COUNTRY_INFO!A23=0," ",COUNTRY_INFO!A23)) ->  | B23: =IF(INTRO!$E$37="Non-endemic"," ", IF(COUNTRY_INFO!B23=0," ",COUNTRY_INFO!B23)) ->  | C23: =IF(INTRO!$E$37="Non-endemic"," ", IF(COUNTRY_INFO!C23=0," ",COUNTRY_INFO!C23)) ->  | D23: =IF(INTRO!$E$37="Non-endemic",0,IF(COUNTRY_INFO!$H23=1,COUNTRY_INFO!E23,0)) -> 0 | E23: =IF(INTRO!$E$37="Non-endemic",0,IF(COUNTRY_INFO!$H23=1,COUNTRY_INFO!F23,0)) -> 0 | F23: =IF(INTRO!$E$37="Non-endemic",0,IF(COUNTRY_INFO!$H23=1,COUNTRY_INFO!G23,0)) -> 0 | G23: 0 | H23: =IF(INTRO!$E$37="Non-endemic","Not required",COUNTRY_INFO!N23) -> Not required | I23: 0 | J23: 0 | L23: 0 | M23: 0
A24: =IF(INTRO!$E$37="Non-endemic"," ", IF(COUNTRY_INFO!A24=0," ",COUNTRY_INFO!A24)) ->  | B24: =IF(INTRO!$E$37="Non-endemic"," ", IF(COUNTRY_INFO!B24=0," ",COUNTRY_INFO!B24)) ->  | C24: =IF(INTRO!$E$37="Non-endemic"," ", IF(COUNTRY_INFO!C24=0," ",COUNTRY_INFO!C24)) ->  | D24: =IF(INTRO!$E$37="Non-endemic",0,IF(COUNTRY_INFO!$H24=1,COUNTRY_INFO!E24,0)) -> 0 | E24: =IF(INTRO!$E$37="Non-endemic",0,IF(COUNTRY_INFO!$H24=1,COUNTRY_INFO!F24,0)) -> 0 | F24: =IF(INTRO!$E$37="Non-endemic",0,IF(COUNTRY_INFO!$H24=1,COUNTRY_INFO!G24,0)) -> 0 | G24: 0 | H24: =IF(INTRO!$E$37="Non-endemic","Not required",COUNTRY_INFO!N24) -> Not required | I24: 0 | J24: 0 | L24: 0 | M24: 0
A25: =IF(INTRO!$E$37="Non-endemic"," ", IF(COUNTRY_INFO!A25=0," ",COUNTRY_INFO!A25)) ->  | B25: =IF(INTRO!$E$37="Non-endemic"," ", IF(COUNTRY_INFO!B25=0," ",COUNTRY_INFO!B25)) ->  | C25: =IF(INTRO!$E$37="Non-endemic"," ", IF(COUNTRY_INFO!C25=0," ",COUNTRY_INFO!C25)) ->  | D25: =IF(INTRO!$E$37="Non-endemic",0,IF(COUNTRY_INFO!$H25=1,COUNTRY_INFO!E25,0)) -> 0 | E25: =IF(INTRO!$E$37="Non-endemic",0,IF(COUNTRY_INFO!$H25=1,COUNTRY_INFO!F25,0)) -> 0 | F25: =IF(INTRO!$E$37="Non-endemic",0,IF(COUNTRY_INFO!$H25=1,COUNTRY_INFO!G25,0)) -> 0 | G25: 0 | H25: =IF(INTRO!$E$37="Non-endemic","Not required",COUNTRY_INFO!N25) -> Not required | I25: 0 | J25: 0 | L25: 0 | M25: 0
A26: =IF(INTRO!$E$37="Non-endemic"," ", IF(COUNTRY_INFO!A26=0," ",COUNTRY_INFO!A26)) ->  | B26: =IF(INTRO!$E$37="Non-endemic"," ", IF(COUNTRY_INFO!B26=0," ",COUNTRY_INFO!B26)) ->  | C26: =IF(INTRO!$E$37="Non-endemic"," ", IF(COUNTRY_INFO!C26=0," ",COUNTRY_INFO!C26)) ->  | D26: =IF(INTRO!$E$37="Non-endemic",0,IF(COUNTRY_INFO!$H26=1,COUNTRY_INFO!E26,0)) -> 0 | E26: =IF(INTRO!$E$37="Non-endemic",0,IF(COUNTRY_INFO!$H26=1,COUNTRY_INFO!F26,0)) -> 0 | F26: =IF(INTRO!$E$37="Non-endemic",0,IF(COUNTRY_INFO!$H26=1,COUNTRY_INFO!G26,0)) -> 0 | G26: 0 | H26: =IF(INTRO!$E$37="Non-endemic","Not required",COUNTRY_INFO!N26) -> Not required | I26: 0 | J26: 0 | L26: 0 | M26: 0
A27: =IF(INTRO!$E$37="Non-endemic"," ", IF(COUNTRY_INFO!A27=0," ",COUNTRY_INFO!A27)) ->  | B27: =IF(INTRO!$E$37="Non-endemic"," ", IF(COUNTRY_INFO!B27=0," ",COUNTRY_INFO!B27)) ->  | C27: =IF(INTRO!$E$37="Non-endemic"," ", IF(COUNTRY_INFO!C27=0," ",COUNTRY_INFO!C27)) ->  | D27: =IF(INTRO!$E$37="Non-endemic",0,IF(COUNTRY_INFO!$H27=1,COUNTRY_INFO!E27,0)) -> 0 | E27: =IF(INTRO!$E$37="Non-endemic",0,IF(COUNTRY_INFO!$H27=1,COUNTRY_INFO!F27,0)) -> 0 | F27: =IF(INTRO!$E$37="Non-endemic",0,IF(COUNTRY_INFO!$H27=1,COUNTRY_INFO!G27,0)) -> 0 | G27: 0 | H27: =IF(INTRO!$E$37="Non-endemic","Not required",COUNTRY_INFO!N27) -> Not required | I27: 0 | J27: 0 | L27: 0 | M27: 0
A28: =IF(INTRO!$E$37="Non-endemic"," ", IF(COUNTRY_INFO!A28=0," ",COUNTRY_INFO!A28)) ->  | B28: =IF(INTRO!$E$37="Non-endemic"," ", IF(COUNTRY_INFO!B28=0," ",COUNTRY_INFO!B28)) ->  | C28: =IF(INTRO!$E$37="Non-endemic"," ", IF(COUNTRY_INFO!C28=0," ",COUNTRY_INFO!C28)) ->  | D28: =IF(INTRO!$E$37="Non-endemic",0,IF(COUNTRY_INFO!$H28=1,COUNTRY_INFO!E28,0)) -> 0 | E28: =IF(INTRO!$E$37="Non-endemic",0,IF(COUNTRY_INFO!$H28=1,COUNTRY_INFO!F28,0)) -> 0 | F28: =IF(INTRO!$E$37="Non-endemic",0,IF(COUNTRY_INFO!$H28=1,COUNTRY_INFO!G28,0)) -> 0 | G28: 0 | H28: =IF(INTRO!$E$37="Non-endemic","Not required",COUNTRY_INFO!N28) -> Not required | I28: 0 | J28: 0 | L28: 0 | M28: 0
A29: =IF(INTRO!$E$37="Non-endemic"," ", IF(COUNTRY_INFO!A29=0," ",COUNTRY_INFO!A29)) ->  | B29: =IF(INTRO!$E$37="Non-endemic"," ", IF(COUNTRY_INFO!B29=0," ",COUNTRY_INFO!B29)) ->  | C29: =IF(INTRO!$E$37="Non-endemic"," ", IF(COUNTRY_INFO!C29=0," ",COUNTRY_INFO!C29)) ->  | D29: =IF(INTRO!$E$37="Non-endemic",0,IF(COUNTRY_INFO!$H29=1,COUNTRY_INFO!E29,0)) -> 0 | E29: =IF(INTRO!$E$37="Non-endemic",0,IF(COUNTRY_INFO!$H29=1,COUNTRY_INFO!F29,0)) -> 0 | F29: =IF(INTRO!$E$37="Non-endemic",0,IF(COUNTRY_INFO!$H29=1,COUNTRY_INFO!G29,0)) -> 0 | G29: 0 | H29: =IF(INTRO!$E$37="Non-endemic","Not required",COUNTRY_INFO!N29) -> Not required | I29: 0 | J29: 0 | L29: 0 | M29: 0
A30: =IF(INTRO!$E$37="Non-endemic"," ", IF(COUNTRY_INFO!A30=0," ",COUNTRY_INFO!A30)) ->  | B30: =IF(INTRO!$E$37="Non-endemic"," ", IF(COUNTRY_INFO!B30=0," ",COUNTRY_INFO!B30)) ->  | C30: =IF(INTRO!$E$37="Non-endemic"," ", IF(COUNTRY_INFO!C30=0," ",COUNTRY_INFO!C30)) ->  | D30: =IF(INTRO!$E$37="Non-endemic",0,IF(COUNTRY_INFO!$H30=1,COUNTRY_INFO!E30,0)) -> 0 | E30: =IF(INTRO!$E$37="Non-endemic",0,IF(COUNTRY_INFO!$H30=1,COUNTRY_INFO!F30,0)) -> 0 | F30: =IF(INTRO!$E$37="Non-endemic",0,IF(COUNTRY_INFO!$H30=1,COUNTRY_INFO!G30,0)) -> 0 | G30: 0 | H30: =IF(INTRO!$E$37="Non-endemic","Not required",COUNTRY_INFO!N30) -> Not required | I30: 0 | J30: 0 | L30: 0 | M30: 0
A31: =IF(INTRO!$E$37="Non-endemic"," ", IF(COUNTRY_INFO!A31=0," ",COUNTRY_INFO!A31)) ->  | B31: =IF(INTRO!$E$37="Non-endemic"," ", IF(COUNTRY_INFO!B31=0," ",COUNTRY_INFO!B31)) ->  | C31: =IF(INTRO!$E$37="Non-endemic"," ", IF(COUNTRY_INFO!C31=0," ",COUNTRY_INFO!C31)) ->  | D31: =IF(INTRO!$E$37="Non-endemic",0,IF(COUNTRY_INFO!$H31=1,COUNTRY_INFO!E31,0)) -> 0 | E31: =IF(INTRO!$E$37="Non-endemic",0,IF(COUNTRY_INFO!$H31=1,COUNTRY_INFO!F31,0)) -> 0 | F31: =IF(INTRO!$E$37="Non-endemic",0,IF(COUNTRY_INFO!$H31=1,COUNTRY_INFO!G31,0)) -> 0 | G31: 0 | H31: =IF(INTRO!$E$37="Non-endemic","Not required",COUNTRY_INFO!N31) -> Not required | I31: 0 | J31: 0 | L31: 0 | M31: 0
A32: =IF(INTRO!$E$37="Non-endemic"," ", IF(COUNTRY_INFO!A32=0," ",COUNTRY_INFO!A32)) ->  | B32: =IF(INTRO!$E$37="Non-endemic"," ", IF(COUNTRY_INFO!B32=0," ",COUNTRY_INFO!B32)) ->  | C32: =IF(INTRO!$E$37="Non-endemic"," ", IF(COUNTRY_INFO!C32=0," ",COUNTRY_INFO!C32)) ->  | D32: =IF(INTRO!$E$37="Non-endemic",0,IF(COUNTRY_INFO!$H32=1,COUNTRY_INFO!E32,0)) -> 0 | E32: =IF(INTRO!$E$37="Non-endemic",0,IF(COUNTRY_INFO!$H32=1,COUNTRY_INFO!F32,0)) -> 0 | F32: =IF(INTRO!$E$37="Non-endemic",0,IF(COUNTRY_INFO!$H32=1,COUNTRY_INFO!G32,0)) -> 0 | G32: 0 | H32: =IF(INTRO!$E$37="Non-endemic","Not required",COUNTRY_INFO!N32) -> Not required | I32: 0 | J32: 0 | L32: 0 | M32: 0
A33: =IF(INTRO!$E$37="Non-endemic"," ", IF(COUNTRY_INFO!A33=0," ",COUNTRY_INFO!A33)) ->  | B33: =IF(INTRO!$E$37="Non-endemic"," ", IF(COUNTRY_INFO!B33=0," ",COUNTRY_INFO!B33)) ->  | C33: =IF(INTRO!$E$37="Non-endemic"," ", IF(COUNTRY_INFO!C33=0," ",COUNTRY_INFO!C33)) ->  | D33: =IF(INTRO!$E$37="Non-endemic",0,IF(COUNTRY_INFO!$H33=1,COUNTRY_INFO!E33,0)) -> 0 | E33: =IF(INTRO!$E$37="Non-endemic",0,IF(COUNTRY_INFO!$H33=1,COUNTRY_INFO!F33,0)) -> 0 | F33: =IF(INTRO!$E$37="Non-endemic",0,IF(COUNTRY_INFO!$H33=1,COUNTRY_INFO!G33,0)) -> 0 | G33: 0 | H33: =IF(INTRO!$E$37="Non-endemic","Not required",COUNTRY_INFO!N33) -> Not required | I33: 0 | J33: 0 | L33: 0 | M33: 0
A34: =IF(INTRO!$E$37="Non-endemic"," ", IF(COUNTRY_INFO!A34=0," ",COUNTRY_INFO!A34)) ->  | B34: =IF(INTRO!$E$37="Non-endemic"," ", IF(COUNTRY_INFO!B34=0," ",COUNTRY_INFO!B34)) ->  | C34: =IF(INTRO!$E$37="Non-endemic"," ", IF(COUNTRY_INFO!C34=0," ",COUNTRY_INFO!C34)) ->  | D34: =IF(INTRO!$E$37="Non-endemic",0,IF(COUNTRY_INFO!$H34=1,COUNTRY_INFO!E34,0)) -> 0 | E34: =IF(INTRO!$E$37="Non-endemic",0,IF(COUNTRY_INFO!$H34=1,COUNTRY_INFO!F34,0)) -> 0 | F34: =IF(INTRO!$E$37="Non-endemic",0,IF(COUNTRY_INFO!$H34=1,COUNTRY_INFO!G34,0)) -> 0 | G34: 0 | H34: =IF(INTRO!$E$37="Non-endemic","Not required",COUNTRY_INFO!N34) -> Not required | I34: 0 | J34: 0 | L34: 0 | M34: 0
A35: =IF(INTRO!$E$37="Non-endemic"," ", IF(COUNTRY_INFO!A35=0," ",COUNTRY_INFO!A35)) ->  | B35: =IF(INTRO!$E$37="Non-endemic"," ", IF(COUNTRY_INFO!B35=0," ",COUNTRY_INFO!B35)) ->  | C35: =IF(INTRO!$E$37="Non-endemic"," ", IF(COUNTRY_INFO!C35=0," ",COUNTRY_INFO!C35)) ->  | D35: =IF(INTRO!$E$37="Non-endemic",0,IF(COUNTRY_INFO!$H35=1,COUNTRY_INFO!E35,0)) -> 0 | E35: =IF(INTRO!$E$37="Non-endemic",0,IF(COUNTRY_INFO!$H35=1,COUNTRY_INFO!F35,0)) -> 0 | F35: =IF(INTRO!$E$37="Non-endemic",0,IF(COUNTRY_INFO!$H35=1,COUNTRY_INFO!G35,0)) -> 0 | G35: 0 | H35: =IF(INTRO!$E$37="Non-endemic","Not required",COUNTRY_INFO!N35) -> Not required | I35: 0 | J35: 0 | L35: 0 | M35: 0
A36: =IF(INTRO!$E$37="Non-endemic"," ", IF(COUNTRY_INFO!A36=0," ",COUNTRY_INFO!A36)) ->  | B36: =IF(INTRO!$E$37="Non-endemic"," ", IF(COUNTRY_INFO!B36=0," ",COUNTRY_INFO!B36)) ->  | C36: =IF(INTRO!$E$37="Non-endemic"," ", IF(COUNTRY_INFO!C36=0," ",COUNTRY_INFO!C36)) ->  | D36: =IF(INTRO!$E$37="Non-endemic",0,IF(COUNTRY_INFO!$H36=1,COUNTRY_INFO!E36,0)) -> 0 | E36: =IF(INTRO!$E$37="Non-endemic",0,IF(COUNTRY_INFO!$H36=1,COUNTRY_INFO!F36,0)) -> 0 | F36: =IF(INTRO!$E$37="Non-endemic",0,IF(COUNTRY_INFO!$H36=1,COUNTRY_INFO!G36,0)) -> 0 | G36: 0 | H36: =IF(INTRO!$E$37="Non-endemic","Not required",COUNTRY_INFO!N36) -> Not required | I36: 0 | J36: 0 | L36: 0 | M36: 0
A37: =IF(INTRO!$E$37="Non-endemic"," ", IF(COUNTRY_INFO!A37=0," ",COUNTRY_INFO!A37)) ->  | B37: =IF(INTRO!$E$37="Non-endemic"," ", IF(COUNTRY_INFO!B37=0," ",COUNTRY_INFO!B37)) ->  | C37: =IF(INTRO!$E$37="Non-endemic"," ", IF(COUNTRY_INFO!C37=0," ",COUNTRY_INFO!C37)) ->  | D37: =IF(INTRO!$E$37="Non-endemic",0,IF(COUNTRY_INFO!$H37=1,COUNTRY_INFO!E37,0)) -> 0 | E37: =IF(INTRO!$E$37="Non-endemic",0,IF(COUNTRY_INFO!$H37=1,COUNTRY_INFO!F37,0)) -> 0 | F37: =IF(INTRO!$E$37="Non-endemic",0,IF(COUNTRY_INFO!$H37=1,COUNTRY_INFO!G37,0)) -> 0 | G37: 0 | H37: =IF(INTRO!$E$37="Non-endemic","Not required",COUNTRY_INFO!N37) -> Not required | I37: 0 | J37: 0 | L37: 0 | M37: 0
A38: =IF(INTRO!$E$37="Non-endemic"," ", IF(COUNTRY_INFO!A38=0," ",COUNTRY_INFO!A38)) ->  | B38: =IF(INTRO!$E$37="Non-endemic"," ", IF(COUNTRY_INFO!B38=0," ",COUNTRY_INFO!B38)) ->  | C38: =IF(INTRO!$E$37="Non-endemic"," ", IF(COUNTRY_INFO!C38=0," ",COUNTRY_INFO!C38)) ->  | D38: =IF(INTRO!$E$37="Non-endemic",0,IF(COUNTRY_INFO!$H38=1,COUNTRY_INFO!E38,0)) -> 0 | E38: =IF(INTRO!$E$37="Non-endemic",0,IF(COUNTRY_INFO!$H38=1,COUNTRY_INFO!F38,0)) -> 0 | F38: =IF(INTRO!$E$37="Non-endemic",0,IF(COUNTRY_INFO!$H38=1,COUNTRY_INFO!G38,0)) -> 0 | G38: 0 | H38: =IF(INTRO!$E$37="Non-endemic","Not required",COUNTRY_INFO!N38) -> Not required | I38: 0 | J38: 0 | L38: 0 | M38: 0
A39: =IF(INTRO!$E$37="Non-endemic"," ", IF(COUNTRY_INFO!A39=0," ",COUNTRY_INFO!A39)) ->  | B39: =IF(INTRO!$E$37="Non-endemic"," ", IF(COUNTRY_INFO!B39=0," ",COUNTRY_INFO!B39)) ->  | C39: =IF(INTRO!$E$37="Non-endemic"," ", IF(COUNTRY_INFO!C39=0," ",COUNTRY_INFO!C39)) ->  | D39: =IF(INTRO!$E$37="Non-endemic",0,IF(COUNTRY_INFO!$H39=1,COUNTRY_INFO!E39,0)) -> 0 | E39: =IF(INTRO!$E$37="Non-endemic",0,IF(COUNTRY_INFO!$H39=1,COUNTRY_INFO!F39,0)) -> 0 | F39: =IF(INTRO!$E$37="Non-endemic",0,IF(COUNTRY_INFO!$H39=1,COUNTRY_INFO!G39,0)) -> 0 | G39: 0 | H39: =IF(INTRO!$E$37="Non-endemic","Not required",COUNTRY_INFO!N39) -> Not required | I39: 0 | J39: 0 | L39: 0 | M39: 0
A40: =IF(INTRO!$E$37="Non-endemic"," ", IF(COUNTRY_INFO!A40=0," ",COUNTRY_INFO!A40)) ->  | B40: =IF(INTRO!$E$37="Non-endemic"," ", IF(COUNTRY_INFO!B40=0," ",COUNTRY_INFO!B40)) ->  | C40: =IF(INTRO!$E$37="Non-endemic"," ", IF(COUNTRY_INFO!C40=0," ",COUNTRY_INFO!C40)) ->  | D40: =IF(INTRO!$E$37="Non-endemic",0,IF(COUNTRY_INFO!$H40=1,COUNTRY_INFO!E40,0)) -> 0 | E40: =IF(INTRO!$E$37="Non-endemic",0,IF(COUNTRY_INFO!$H40=1,COUNTRY_INFO!F40,0)) -> 0 | F40: =IF(INTRO!$E$37="Non-endemic",0,IF(COUNTRY_INFO!$H40=1,COUNTRY_INFO!G40,0)) -> 0 | G40: 0 | H40: =IF(INTRO!$E$37="Non-endemic","Not required",COUNTRY_INFO!N40) -> Not required | I40: 0 | J40: 0 | L40: 0 | M40: 0
A41: =IF(INTRO!$E$37="Non-endemic"," ", IF(COUNTRY_INFO!A41=0," ",COUNTRY_INFO!A41)) ->  | B41: =IF(INTRO!$E$37="Non-endemic"," ", IF(COUNTRY_INFO!B41=0," ",COUNTRY_INFO!B41)) ->  | C41: =IF(INTRO!$E$37="Non-endemic"," ", IF(COUNTRY_INFO!C41=0," ",COUNTRY_INFO!C41)) ->  | D41: =IF(INTRO!$E$37="Non-endemic",0,IF(COUNTRY_INFO!$H41=1,COUNTRY_INFO!E41,0)) -> 0 | E41: =IF(INTRO!$E$37="Non-endemic",0,IF(COUNTRY_INFO!$H41=1,COUNTRY_INFO!F41,0)) -> 0 | F41: =IF(INTRO!$E$37="Non-endemic",0,IF(COUNTRY_INFO!$H41=1,COUNTRY_INFO!G41,0)) -> 0 | G41: =SUM(D41:F41) -> 0 | H41: =IF(INTRO!$E$37="Non-endemic","Not required",COUNTRY_INFO!N41) -> Not required | I41: =IF(H41=1,G41,0) -> 0 | J41: =IF(I41>0,I41*2.5,0) -> 0 | L41: =IF($J41>$K41,$J41-$K41,0) -> 0 | M41: =ROUNDUP($J41/1000,0) -> 0
A42: =IF(INTRO!$E$37="Non-endemic"," ", IF(COUNTRY_INFO!A42=0," ",COUNTRY_INFO!A42)) ->  | B42: =IF(INTRO!$E$37="Non-endemic"," ", IF(COUNTRY_INFO!B42=0," ",COUNTRY_INFO!B42)) ->  | C42: =IF(INTRO!$E$37="Non-endemic"," ", IF(COUNTRY_INFO!C42=0," ",COUNTRY_INFO!C42)) ->  | D42: =IF(INTRO!$E$37="Non-endemic",0,IF(COUNTRY_INFO!$H42=1,COUNTRY_INFO!E42,0)) -> 0 | E42: =IF(INTRO!$E$37="Non-endemic",0,IF(COUNTRY_INFO!$H42=1,COUNTRY_INFO!F42,0)) -> 0 | F42: =IF(INTRO!$E$37="Non-endemic",0,IF(COUNTRY_INFO!$H42=1,COUNTRY_INFO!G42,0)) -> 0 | G42: 0 | H42: =IF(INTRO!$E$37="Non-endemic","Not required",COUNTRY_INFO!N42) -> Not required | I42: 0 | J42: 0 | L42: 0 | M42: 0
A43: =IF(INTRO!$E$37="Non-endemic"," ", IF(COUNTRY_INFO!A43=0," ",COUNTRY_INFO!A43)) ->  | B43: =IF(INTRO!$E$37="Non-endemic"," ", IF(COUNTRY_INFO!B43=0," ",COUNTRY_INFO!B43)) ->  | C43: =IF(INTRO!$E$37="Non-endemic"," ", IF(COUNTRY_INFO!C43=0," ",COUNTRY_INFO!C43)) ->  | D43: =IF(INTRO!$E$37="Non-endemic",0,IF(COUNTRY_INFO!$H43=1,COUNTRY_INFO!E43,0)) -> 0 | E43: =IF(INTRO!$E$37="Non-endemic",0,IF(COUNTRY_INFO!$H43=1,COUNTRY_INFO!F43,0)) -> 0 | F43: =IF(INTRO!$E$37="Non-endemic",0,IF(COUNTRY_INFO!$H43=1,COUNTRY_INFO!G43,0)) -> 0 | G43: 0 | H43: =IF(INTRO!$E$37="Non-endemic","Not required",COUNTRY_INFO!N43) -> Not required | I43: 0 | J43: 0 | L43: 0 | M43: 0
A44: =IF(INTRO!$E$37="Non-endemic"," ", IF(COUNTRY_INFO!A44=0," ",COUNTRY_INFO!A44)) ->  | B44: =IF(INTRO!$E$37="Non-endemic"," ", IF(COUNTRY_INFO!B44=0," ",COUNTRY_INFO!B44)) ->  | C44: =IF(INTRO!$E$37="Non-endemic"," ", IF(COUNTRY_INFO!C44=0," ",COUNTRY_INFO!C44)) ->  | D44: =IF(INTRO!$E$37="Non-endemic",0,IF(COUNTRY_INFO!$H44=1,COUNTRY_INFO!E44,0)) -> 0 | E44: =IF(INTRO!$E$37="Non-endemic",0,IF(COUNTRY_INFO!$H44=1,COUNTRY_INFO!F44,0)) -> 0 | F44: =IF(INTRO!$E$37="Non-endemic",0,IF(COUNTRY_INFO!$H44=1,COUNTRY_INFO!G44,0)) -> 0 | G44: 0 | H44: =IF(INTRO!$E$37="Non-endemic","Not required",COUNTRY_INFO!N44) -> Not required | I44: 0 | J44: 0 | L44: 0 | M44: 0
A45: =IF(INTRO!$E$37="Non-endemic"," ", IF(COUNTRY_INFO!A45=0," ",COUNTRY_INFO!A45)) ->  | B45: =IF(INTRO!$E$37="Non-endemic"," ", IF(COUNTRY_INFO!B45=0," ",COUNTRY_INFO!B45)) ->  | C45: =IF(INTRO!$E$37="Non-endemic"," ", IF(COUNTRY_INFO!C45=0," ",COUNTRY_INFO!C45)) ->  | D45: =IF(INTRO!$E$37="Non-endemic",0,IF(COUNTRY_INFO!$H45=1,COUNTRY_INFO!E45,0)) -> 0 | E45: =IF(INTRO!$E$37="Non-endemic",0,IF(COUNTRY_INFO!$H45=1,COUNTRY_INFO!F45,0)) -> 0 | F45: =IF(INTRO!$E$37="Non-endemic",0,IF(COUNTRY_INFO!$H45=1,COUNTRY_INFO!G45,0)) -> 0 | G45: 0 | H45: =IF(INTRO!$E$37="Non-endemic","Not required",COUNTRY_INFO!N45) -> Not required | I45: 0 | J45: 0 | L45: 0 | M45: 0
A46: =IF(INTRO!$E$37="Non-endemic"," ", IF(COUNTRY_INFO!A46=0," ",COUNTRY_INFO!A46)) ->  | B46: =IF(INTRO!$E$37="Non-endemic"," ", IF(COUNTRY_INFO!B46=0," ",COUNTRY_INFO!B46)) ->  | C46: =IF(INTRO!$E$37="Non-endemic"," ", IF(COUNTRY_INFO!C46=0," ",COUNTRY_INFO!C46)) ->  | D46: =IF(INTRO!$E$37="Non-endemic",0,IF(COUNTRY_INFO!$H46=1,COUNTRY_INFO!E46,0)) -> 0 | E46: =IF(INTRO!$E$37="Non-endemic",0,IF(COUNTRY_INFO!$H46=1,COUNTRY_INFO!F46,0)) -> 0 | F46: =IF(INTRO!$E$37="Non-endemic",0,IF(COUNTRY_INFO!$H46=1,COUNTRY_INFO!G46,0)) -> 0 | G46: 0 | H46: =IF(INTRO!$E$37="Non-endemic","Not required",COUNTRY_INFO!N46) -> Not required | I46: 0 | J46: 0 | L46: 0 | M46: 0
A47: =IF(INTRO!$E$37="Non-endemic"," ", IF(COUNTRY_INFO!A47=0," ",COUNTRY_INFO!A47)) ->  | B47: =IF(INTRO!$E$37="Non-endemic"," ", IF(COUNTRY_INFO!B47=0," ",COUNTRY_INFO!B47)) ->  | C47: =IF(INTRO!$E$37="Non-endemic"," ", IF(COUNTRY_INFO!C47=0," ",COUNTRY_INFO!C47)) ->  | D47: =IF(INTRO!$E$37="Non-endemic",0,IF(COUNTRY_INFO!$H47=1,COUNTRY_INFO!E47,0)) -> 0 | E47: =IF(INTRO!$E$37="Non-endemic",0,IF(COUNTRY_INFO!$H47=1,COUNTRY_INFO!F47,0)) -> 0 | F47: =IF(INTRO!$E$37="Non-endemic",0,IF(COUNTRY_INFO!$H47=1,COUNTRY_INFO!G47,0)) -> 0 | G47: 0 | H47: =IF(INTRO!$E$37="Non-endemic","Not required",COUNTRY_INFO!N47) -> Not required | I47: 0 | J47: 0 | L47: 0 | M47: 0
A48: =IF(INTRO!$E$37="Non-endemic"," ", IF(COUNTRY_INFO!A48=0," ",COUNTRY_INFO!A48)) ->  | B48: =IF(INTRO!$E$37="Non-endemic"," ", IF(COUNTRY_INFO!B48=0," ",COUNTRY_INFO!B48)) ->  | C48: =IF(INTRO!$E$37="Non-endemic"," ", IF(COUNTRY_INFO!C48=0," ",COUNTRY_INFO!C48)) ->  | D48: =IF(INTRO!$E$37="Non-endemic",0,IF(COUNTRY_INFO!$H48=1,COUNTRY_INFO!E48,0)) -> 0 | E48: =IF(INTRO!$E$37="Non-endemic",0,IF(COUNTRY_INFO!$H48=1,COUNTRY_INFO!F48,0)) -> 0 | F48: =IF(INTRO!$E$37="Non-endemic",0,IF(COUNTRY_INFO!$H48=1,COUNTRY_INFO!G48,0)) -> 0 | G48: 0 | H48: =IF(INTRO!$E$37="Non-endemic","Not required",COUNTRY_INFO!N48) -> Not required | I48: 0 | J48: 0 | L48: 0 | M48: 0
A49: =IF(INTRO!$E$37="Non-endemic"," ", IF(COUNTRY_INFO!A49=0," ",COUNTRY_INFO!A49)) ->  | B49: =IF(INTRO!$E$37="Non-endemic"," ", IF(COUNTRY_INFO!B49=0," ",COUNTRY_INFO!B49)) ->  | C49: =IF(INTRO!$E$37="Non-endemic"," ", IF(COUNTRY_INFO!C49=0," ",COUNTRY_INFO!C49)) ->  | D49: =IF(INTRO!$E$37="Non-endemic",0,IF(COUNTRY_INFO!$H49=1,COUNTRY_INFO!E49,0)) -> 0 | E49: =IF(INTRO!$E$37="Non-endemic",0,IF(COUNTRY_INFO!$H49=1,COUNTRY_INFO!F49,0)) -> 0 | F49: =IF(INTRO!$E$37="Non-endemic",0,IF(COUNTRY_INFO!$H49=1,COUNTRY_INFO!G49,0)) -> 0 | G49: 0 | H49: =IF(INTRO!$E$37="Non-endemic","Not required",COUNTRY_INFO!N49) -> Not required | I49: 0 | J49: 0 | L49: 0 | M49: 0
A50: =IF(INTRO!$E$37="Non-endemic"," ", IF(COUNTRY_INFO!A50=0," ",COUNTRY_INFO!A50)) ->  | B50: =IF(INTRO!$E$37="Non-endemic"," ", IF(COUNTRY_INFO!B50=0," ",COUNTRY_INFO!B50)) ->  | C50: =IF(INTRO!$E$37="Non-endemic"," ", IF(COUNTRY_INFO!C50=0," ",COUNTRY_INFO!C50)) ->  | D50: =IF(INTRO!$E$37="Non-endemic",0,IF(COUNTRY_INFO!$H50=1,COUNTRY_INFO!E50,0)) -> 0 | E50: =IF(INTRO!$E$37="Non-endemic",0,IF(COUNTRY_INFO!$H50=1,COUNTRY_INFO!F50,0)) -> 0 | F50: =IF(INTRO!$E$37="Non-endemic",0,IF(COUNTRY_INFO!$H50=1,COUNTRY_INFO!G50,0)) -> 0 | G50: 0 | H50: =IF(INTRO!$E$37="Non-endemic","Not required",COUNTRY_INFO!N50) -> Not required | I50: 0 | J50: 0 | L50: 0 | M50: 0
A51: =IF(INTRO!$E$37="Non-endemic"," ", IF(COUNTRY_INFO!A51=0," ",COUNTRY_INFO!A51)) ->  | B51: =IF(INTRO!$E$37="Non-endemic"," ", IF(COUNTRY_INFO!B51=0," ",COUNTRY_INFO!B51)) ->  | C51: =IF(INTRO!$E$37="Non-endemic"," ", IF(COUNTRY_INFO!C51=0," ",COUNTRY_INFO!C51)) ->  | D51: =IF(INTRO!$E$37="Non-endemic",0,IF(COUNTRY_INFO!$H51=1,COUNTRY_INFO!E51,0)) -> 0 | E51: =IF(INTRO!$E$37="Non-endemic",0,IF(COUNTRY_INFO!$H51=1,COUNTRY_INFO!F51,0)) -> 0 | F51: =IF(INTRO!$E$37="Non-endemic",0,IF(COUNTRY_INFO!$H51=1,COUNTRY_INFO!G51,0)) -> 0 | G51: 0 | H51: =IF(INTRO!$E$37="Non-endemic","Not required",COUNTRY_INFO!N51) -> Not required | I51: 0 | J51: 0 | L51: 0 | M51: 0
A52: =IF(INTRO!$E$37="Non-endemic"," ", IF(COUNTRY_INFO!A52=0," ",COUNTRY_INFO!A52)) ->  | B52: =IF(INTRO!$E$37="Non-endemic"," ", IF(COUNTRY_INFO!B52=0," ",COUNTRY_INFO!B52)) ->  | C52: =IF(INTRO!$E$37="Non-endemic"," ", IF(COUNTRY_INFO!C52=0," ",COUNTRY_INFO!C52)) ->  | D52: =IF(INTRO!$E$37="Non-endemic",0,IF(COUNTRY_INFO!$H52=1,COUNTRY_INFO!E52,0)) -> 0 | E52: =IF(INTRO!$E$37="Non-endemic",0,IF(COUNTRY_INFO!$H52=1,COUNTRY_INFO!F52,0)) -> 0 | F52: =IF(INTRO!$E$37="Non-endemic",0,IF(COUNTRY_INFO!$H52=1,COUNTRY_INFO!G52,0)) -> 0 | G52: 0 | H52: =IF(INTRO!$E$37="Non-endemic","Not required",COUNTRY_INFO!N52) -> Not required | I52: 0 | J52: 0 | L52: 0 | M52: 0
A53: =IF(INTRO!$E$37="Non-endemic"," ", IF(COUNTRY_INFO!A53=0," ",COUNTRY_INFO!A53)) ->  | B53: =IF(INTRO!$E$37="Non-endemic"," ", IF(COUNTRY_INFO!B53=0," ",COUNTRY_INFO!B53)) ->  | C53: =IF(INTRO!$E$37="Non-endemic"," ", IF(COUNTRY_INFO!C53=0," ",COUNTRY_INFO!C53)) ->  | D53: =IF(INTRO!$E$37="Non-endemic",0,IF(COUNTRY_INFO!$H53=1,COUNTRY_INFO!E53,0)) -> 0 | E53: =IF(INTRO!$E$37="Non-endemic",0,IF(COUNTRY_INFO!$H53=1,COUNTRY_INFO!F53,0)) -> 0 | F53: =IF(INTRO!$E$37="Non-endemic",0,IF(COUNTRY_INFO!$H53=1,COUNTRY_INFO!G53,0)) -> 0 | G53: 0 | H53: =IF(INTRO!$E$37="Non-endemic","Not required",COUNTRY_INFO!N53) -> Not required | I53: 0 | J53: 0 | L53: 0 | M53: 0
A54: =IF(INTRO!$E$37="Non-endemic"," ", IF(COUNTRY_INFO!A54=0," ",COUNTRY_INFO!A54)) ->  | B54: =IF(INTRO!$E$37="Non-endemic"," ", IF(COUNTRY_INFO!B54=0," ",COUNTRY_INFO!B54)) ->  | C54: =IF(INTRO!$E$37="Non-endemic"," ", IF(COUNTRY_INFO!C54=0," ",COUNTRY_INFO!C54)) ->  | D54: =IF(INTRO!$E$37="Non-endemic",0,IF(COUNTRY_INFO!$H54=1,COUNTRY_INFO!E54,0)) -> 0 | E54: =IF(INTRO!$E$37="Non-endemic",0,IF(COUNTRY_INFO!$H54=1,COUNTRY_INFO!F54,0)) -> 0 | F54: =IF(INTRO!$E$37="Non-endemic",0,IF(COUNTRY_INFO!$H54=1,COUNTRY_INFO!G54,0)) -> 0 | G54: 0 | H54: =IF(INTRO!$E$37="Non-endemic","Not required",COUNTRY_INFO!N54) -> Not required | I54: 0 | J54: 0 | L54: 0 | M54: 0
A55: =IF(INTRO!$E$37="Non-endemic"," ", IF(COUNTRY_INFO!A55=0," ",COUNTRY_INFO!A55)) ->  | B55: =IF(INTRO!$E$37="Non-endemic"," ", IF(COUNTRY_INFO!B55=0," ",COUNTRY_INFO!B55)) ->  | C55: =IF(INTRO!$E$37="Non-endemic"," ", IF(COUNTRY_INFO!C55=0," ",COUNTRY_INFO!C55)) ->  | D55: =IF(INTRO!$E$37="Non-endemic",0,IF(COUNTRY_INFO!$H55=1,COUNTRY_INFO!E55,0)) -> 0 | E55: =IF(INTRO!$E$37="Non-endemic",0,IF(COUNTRY_INFO!$H55=1,COUNTRY_INFO!F55,0)) -> 0 | F55: =IF(INTRO!$E$37="Non-endemic",0,IF(COUNTRY_INFO!$H55=1,COUNTRY_INFO!G55,0)) -> 0 | G55: 0 | H55: =IF(INTRO!$E$37="Non-endemic","Not required",COUNTRY_INFO!N55) -> Not required | I55: 0 | J55: 0 | L55: 0 | M55: 0
A56: =IF(INTRO!$E$37="Non-endemic"," ", IF(COUNTRY_INFO!A56=0," ",COUNTRY_INFO!A56)) ->  | B56: =IF(INTRO!$E$37="Non-endemic"," ", IF(COUNTRY_INFO!B56=0," ",COUNTRY_INFO!B56)) ->  | C56: =IF(INTRO!$E$37="Non-endemic"," ", IF(COUNTRY_INFO!C56=0," ",COUNTRY_INFO!C56)) ->  | D56: =IF(INTRO!$E$37="Non-endemic",0,IF(COUNTRY_INFO!$H56=1,COUNTRY_INFO!E56,0)) -> 0 | E56: =IF(INTRO!$E$37="Non-endemic",0,IF(COUNTRY_INFO!$H56=1,COUNTRY_INFO!F56,0)) -> 0 | F56: =IF(INTRO!$E$37="Non-endemic",0,IF(COUNTRY_INFO!$H56=1,COUNTRY_INFO!G56,0)) -> 0 | G56: 0 | H56: =IF(INTRO!$E$37="Non-endemic","Not required",COUNTRY_INFO!N56) -> Not required | I56: 0 | J56: 0 | L56: 0 | M56: 0
A57: =IF(INTRO!$E$37="Non-endemic"," ", IF(COUNTRY_INFO!A57=0," ",COUNTRY_INFO!A57)) ->  | B57: =IF(INTRO!$E$37="Non-endemic"," ", IF(COUNTRY_INFO!B57=0," ",COUNTRY_INFO!B57)) ->  | C57: =IF(INTRO!$E$37="Non-endemic"," ", IF(COUNTRY_INFO!C57=0," ",COUNTRY_INFO!C57)) ->  | D57: =IF(INTRO!$E$37="Non-endemic",0,IF(COUNTRY_INFO!$H57=1,COUNTRY_INFO!E57,0)) -> 0 | E57: =IF(INTRO!$E$37="Non-endemic",0,IF(COUNTRY_INFO!$H57=1,COUNTRY_INFO!F57,0)) -> 0 | F57: =IF(INTRO!$E$37="Non-endemic",0,IF(COUNTRY_INFO!$H57=1,COUNTRY_INFO!G57,0)) -> 0 | G57: 0 | H57: =IF(INTRO!$E$37="Non-endemic","Not required",COUNTRY_INFO!N57) -> Not required | I57: 0 | J57: 0 | L57: 0 | M57: 0
A58: =IF(INTRO!$E$37="Non-endemic"," ", IF(COUNTRY_INFO!A58=0," ",COUNTRY_INFO!A58)) ->  | B58: =IF(INTRO!$E$37="Non-endemic"," ", IF(COUNTRY_INFO!B58=0," ",COUNTRY_INFO!B58)) ->  | C58: =IF(INTRO!$E$37="Non-endemic"," ", IF(COUNTRY_INFO!C58=0," ",COUNTRY_INFO!C58)) ->  | D58: =IF(INTRO!$E$37="Non-endemic",0,IF(COUNTRY_INFO!$H58=1,COUNTRY_INFO!E58,0)) -> 0 | E58: =IF(INTRO!$E$37="Non-endemic",0,IF(COUNTRY_INFO!$H58=1,COUNTRY_INFO!F58,0)) -> 0 | F58: =IF(INTRO!$E$37="Non-endemic",0,IF(COUNTRY_INFO!$H58=1,COUNTRY_INFO!G58,0)) -> 0 | G58: 0 | H58: =IF(INTRO!$E$37="Non-endemic","Not required",COUNTRY_INFO!N58) -> Not required | I58: 0 | J58: 0 | L58: 0 | M58: 0
A59: =IF(INTRO!$E$37="Non-endemic"," ", IF(COUNTRY_INFO!A59=0," ",COUNTRY_INFO!A59)) ->  | B59: =IF(INTRO!$E$37="Non-endemic"," ", IF(COUNTRY_INFO!B59=0," ",COUNTRY_INFO!B59)) ->  | C59: =IF(INTRO!$E$37="Non-endemic"," ", IF(COUNTRY_INFO!C59=0," ",COUNTRY_INFO!C59)) ->  | D59: =IF(INTRO!$E$37="Non-endemic",0,IF(COUNTRY_INFO!$H59=1,COUNTRY_INFO!E59,0)) -> 0 | E59: =IF(INTRO!$E$37="Non-endemic",0,IF(COUNTRY_INFO!$H59=1,COUNTRY_INFO!F59,0)) -> 0 | F59: =IF(INTRO!$E$37="Non-endemic",0,IF(COUNTRY_INFO!$H59=1,COUNTRY_INFO!G59,0)) -> 0 | G59: 0 | H59: =IF(INTRO!$E$37="Non-endemic","Not required",COUNTRY_INFO!N59) -> Not required | I59: 0 | J59: 0 | L59: 0 | M59: 0
A60: =IF(INTRO!$E$37="Non-endemic"," ", IF(COUNTRY_INFO!A60=0," ",COUNTRY_INFO!A60)) ->  | B60: =IF(INTRO!$E$37="Non-endemic"," ", IF(COUNTRY_INFO!B60=0," ",COUNTRY_INFO!B60)) ->  | C60: =IF(INTRO!$E$37="Non-endemic"," ", IF(COUNTRY_INFO!C60=0," ",COUNTRY_INFO!C60)) ->  | D60: =IF(INTRO!$E$37="Non-endemic",0,IF(COUNTRY_INFO!$H60=1,COUNTRY_INFO!E60,0)) -> 0 | E60: =IF(INTRO!$E$37="Non-endemic",0,IF(COUNTRY_INFO!$H60=1,COUNTRY_INFO!F60,0)) -> 0 | F60: =IF(INTRO!$E$37="Non-endemic",0,IF(COUNTRY_INFO!$H60=1,COUNTRY_INFO!G60,0)) -> 0 | G60: 0 | H60: =IF(INTRO!$E$37="Non-endemic","Not required",COUNTRY_INFO!N60) -> Not required | I60: 0 | J60: 0 | L60: 0 | M60: 0
A61: =IF(INTRO!$E$37="Non-endemic"," ", IF(COUNTRY_INFO!A61=0," ",COUNTRY_INFO!A61)) ->  | B61: =IF(INTRO!$E$37="Non-endemic"," ", IF(COUNTRY_INFO!B61=0," ",COUNTRY_INFO!B61)) ->  | C61: =IF(INTRO!$E$37="Non-endemic"," ", IF(COUNTRY_INFO!C61=0," ",COUNTRY_INFO!C61)) ->  | D61: =IF(INTRO!$E$37="Non-endemic",0,IF(COUNTRY_INFO!$H61=1,COUNTRY_INFO!E61,0)) -> 0 | E61: =IF(INTRO!$E$37="Non-endemic",0,IF(COUNTRY_INFO!$H61=1,COUNTRY_INFO!F61,0)) -> 0 | F61: =IF(INTRO!$E$37="Non-endemic",0,IF(COUNTRY_INFO!$H61=1,COUNTRY_INFO!G61,0)) -> 0 | G61: 0 | H61: =IF(INTRO!$E$37="Non-endemic","Not required",COUNTRY_INFO!N61) -> Not required | I61: 0 | J61: 0 | L61: 0 | M61: 0
A62: =IF(INTRO!$E$37="Non-endemic"," ", IF(COUNTRY_INFO!A62=0," ",COUNTRY_INFO!A62)) ->  | B62: =IF(INTRO!$E$37="Non-endemic"," ", IF(COUNTRY_INFO!B62=0," ",COUNTRY_INFO!B62)) ->  | C62: =IF(INTRO!$E$37="Non-endemic"," ", IF(COUNTRY_INFO!C62=0," ",COUNTRY_INFO!C62)) ->  | D62: =IF(INTRO!$E$37="Non-endemic",0,IF(COUNTRY_INFO!$H62=1,COUNTRY_INFO!E62,0)) -> 0 | E62: =IF(INTRO!$E$37="Non-endemic",0,IF(COUNTRY_INFO!$H62=1,COUNTRY_INFO!F62,0)) -> 0 | F62: =IF(INTRO!$E$37="Non-endemic",0,IF(COUNTRY_INFO!$H62=1,COUNTRY_INFO!G62,0)) -> 0 | G62: 0 | H62: =IF(INTRO!$E$37="Non-endemic","Not required",COUNTRY_INFO!N62) -> Not required | I62: 0 | J62: 0 | L62: 0 | M62: 0
A63: =IF(INTRO!$E$37="Non-endemic"," ", IF(COUNTRY_INFO!A63=0," ",COUNTRY_INFO!A63)) ->  | B63: =IF(INTRO!$E$37="Non-endemic"," ", IF(COUNTRY_INFO!B63=0," ",COUNTRY_INFO!B63)) ->  | C63: =IF(INTRO!$E$37="Non-endemic"," ", IF(COUNTRY_INFO!C63=0," ",COUNTRY_INFO!C63)) ->  | D63: =IF(INTRO!$E$37="Non-endemic",0,IF(COUNTRY_INFO!$H63=1,COUNTRY_INFO!E63,0)) -> 0 | E63: =IF(INTRO!$E$37="Non-endemic",0,IF(COUNTRY_INFO!$H63=1,COUNTRY_INFO!F63,0)) -> 0 | F63: =IF(INTRO!$E$37="Non-endemic",0,IF(COUNTRY_INFO!$H63=1,COUNTRY_INFO!G63,0)) -> 0 | G63: 0 | H63: =IF(INTRO!$E$37="Non-endemic","Not required",COUNTRY_INFO!N63) -> Not required | I63: 0 | J63: 0 | L63: 0 | M63: 0

Sheet ALB_MBD
A1: Albendazole (ALB) and Mebendazole (MBD)
A2: Administrative structure, eligible population by age group, treatment plan and information about tablets
A4: TOTAL | D4: =SUM(D$9:D$1000) -> 130310 | E4: =SUM(E$9:E$1000) -> 228290 | F4: =SUM(F$9:F$1000) -> 358600 | I4: =SUM(I$9:I$1000) -> 0 | K4: =SUM(K$9:K$1000) -> 130310 | L4: =SUM(L$9:L$1000) -> 228290 | M4: =SUM(M$9:M$1000) -> 82619 | N4: =SUM(N$9:N$1000) -> 441219 | O4: =SUM(O$9:O$1000) -> 0 | P4: =SUM(P$9:P$1000) -> 0 | Q4: 0 | R4: 0 | S4: 0 | T4: 0 | U4: 0 | V4: 0 | W4: 228290 | X4: 1167 | Y4: 0 | Z4: 0 | AA4: 0
A6: Country administrative structure | D6: Population requiring treatment with ALB/MBD | G6: Treatment plan | I6: People covered by PELF with ALB | J6: Select medicine for treatment of STH | K6: Target population | S6: Albendazole (ALB) | Y6: Mebendazole (MBD)
A7: Country | B7: Province/State | C7: District | D7: PreSAC | E7: SAC | F7: Total | G7: LF | H7: STH | K7: STH (ALB) | O7: STH (MBD) | S7: Remaining in stock (LF) | T7: Tablets to be procured (LF) | U7: Bottle (400 mg) 200 tablets (LF) | V7: Remaining in stock (STH) | W7: Tablets to be procured for SAC (STH) | X7: Bottle (400 mg) 200 tablets (STH) | Y7: Remaining in stock | Z7: Tablets to be procured for SAC | AA7: Bottles (500 mg) 150 tablets
K8: PreSAC | L8: SAC | M8: Other | N8: Total | O8: PreSAC | P8: SAC | Q8: Other | R8: Total
A9: =IF(AND(INTRO!$E$37="Non-endemic",INTRO!$E$41="Non-endemic")," ",IF(COUNTRY_INFO!A9=0," ",COUNTRY_INFO!A9)) -> Swaziland | B9: =IF(AND(INTRO!$E$37="Non-endemic",INTRO!$E$41="Non-endemic")," ",IF(COUNTRY_INFO!B9=0," ",COUNTRY_INFO!B9)) -> Hhohho | C9: =IF(AND(INTRO!$E$37="Non-endemic",INTRO!$E$41="Non-endemic")," ",IF(COUNTRY_INFO!C9=0," ",COUNTRY_INFO!C9)) -> Hhukwini | D9: =IF(AND(INTRO!$E$37="Non-endemic",INTRO!$E$41="Non-endemic"),0,IF(AND(OR(COUNTRY_INFO!$H9=0,COUNTRY_INFO!$H9=4,COUNTRY_INFO!$H9=99),OR(COUNTRY_INFO!$I9=0,COUNTRY_INFO!$I9=4)),0,COUNTRY_INFO!$E9)) -> 1308 | E9: =IF(AND(INTRO!$E$37="Non-endemic",INTRO!$E$41="Non-endemic"),0,IF(AND(OR(COUNTRY_INFO!$H9=0,COUNTRY_INFO!$H9=4,COUNTRY_INFO!$H9=99),OR(COUNTRY_INFO!$I9=0,COUNTRY_INFO!$I9=4)),0,COUNTRY_INFO!$F9)) -> 2292 | F9: =SUM(D9:E9) -> 3600 | G9: =IF(AND(INTRO!$E$37="Non-endemic",INTRO!$E$41="Non-endemic"),0,COUNTRY_INFO!N9) -> 0 | H9: =IF(AND(INTRO!$E$37="Non-endemic",INTRO!$E$41="Non-endemic"),0,COUNTRY_INFO!O9) -> 1 | I9: =IF($G9=1,DEC!I9,0) -> 0 | J9: ALB | K9: =IF($J9="ALB", IF($H9<>0, IF($I9=0, $D9*$H9, $D9*($H9-$G9)),0),0) -> 1308 | L9: =IF($J9="ALB", IF($H9<>0, IF($I9=0, $E9*$H9, $E9*($H9-$G9)),0), 0) -> 2292 | M9: =IF(INTRO!$E$50="","",ROUND($D9*INTRO!$E$50,0)) -> 829 | N9: =SUM(K9:M9) -> 4429 | O9: =IF($J9="MBD", IF($H9<>0, IF($I9=0, $D9*$H9, $D9*($H9-$G9)),0),0) -> 0 | P9: =IF($J9="MBD", IF($H9<>0,IF($I9=0, $E9*$H9, $E9*($H9-$G9)),0), 0 ) -> 0 | R9: =SUM(O9:Q9) -> 0 | T9: =IF($I9>$S9, $I9-$S9,0) -> 0 | U9: =ROUNDUP($I9/200,0) -> 0 | W9: =IF($L9>$V9,$L9-$V9,0) -> 2292 | X9: =ROUNDUP($L9/200,0) -> 12 | Z9: =IF($P9>$Y9,$P9-$Y9,0) -> 0 | AA9: =ROUNDUP($P9/150,0) -> 0
A10: =IF(AND(INTRO!$E$37="Non-endemic",INTRO!$E$41="Non-endemic")," ",IF(COUNTRY_INFO!A10=0," ",COUNTRY_INFO!A10)) -> Swaziland | B10: =IF(AND(INTRO!$E$37="Non-endemic",INTRO!$E$41="Non-endemic")," ",IF(COUNTRY_INFO!B10=0," ",COUNTRY_INFO!B10)) -> Hhohho | C10: =IF(AND(INTRO!$E$37="Non-endemic",INTRO!$E$41="Non-endemic")," ",IF(COUNTRY_INFO!C10=0," ",COUNTRY_INFO!C10)) -> Lobamba | D10: =IF(AND(INTRO!$E$37="Non-endemic",INTRO!$E$41="Non-endemic"),0,IF(AND(OR(COUNTRY_INFO!$H10=0,COUNTRY_INFO!$H10=4,COUNTRY_INFO!$H10=99),OR(COUNTRY_INFO!$I10=0,COUNTRY_INFO!$I10=4)),0,COUNTRY_INFO!$E10)) -> 3454 | E10: =IF(AND(INTRO!$E$37="Non-endemic",INTRO!$E$41="Non-endemic"),0,IF(AND(OR(COUNTRY_INFO!$H10=0,COUNTRY_INFO!$H10=4,COUNTRY_INFO!$H10=99),OR(COUNTRY_INFO!$I10=0,COUNTRY_INFO!$I10=4)),0,COUNTRY_INFO!$F10)) -> 6051 | F10: 9505 | G10: =IF(AND(INTRO!$E$37="Non-endemic",INTRO!$E$41="Non-endemic"),0,COUNTRY_INFO!N10) -> 0 | H10: =IF(AND(INTRO!$E$37="Non-endemic",INTRO!$E$41="Non-endemic"),0,COUNTRY_INFO!O10) -> 1 | I10: =IF($G10=1,DEC!I10,0) -> 0 | J10: ALB | K10: 3454 | L10: 6051 | M10: =IF(INTRO!$E$50="","",ROUND($D10*INTRO!$E$50,0)) -> 2190 | N10: 11695 | O10: 0 | P10: 0 | R10: 0 | T10: 0 | U10: 0 | W10: 6051 | X10: 31 | Z10: 0 | AA10: 0
A11: =IF(AND(INTRO!$E$37="Non-endemic",INTRO!$E$41="Non-endemic")," ",IF(COUNTRY_INFO!A11=0," ",COUNTRY_INFO!A11)) -> Swaziland | B11: =IF(AND(INTRO!$E$37="Non-endemic",INTRO!$E$41="Non-endemic")," ",IF(COUNTRY_INFO!B11=0," ",COUNTRY_INFO!B11)) -> Hhohho | C11: =IF(AND(INTRO!$E$37="Non-endemic",INTRO!$E$41="Non-endemic")," ",IF(COUNTRY_INFO!C11=0," ",COUNTRY_INFO!C11)) -> Mandlangempisi | D11: =IF(AND(INTRO!$E$37="Non-endemic",INTRO!$E$41="Non-endemic"),0,IF(AND(OR(COUNTRY_INFO!$H11=0,COUNTRY_INFO!$H11=4,COUNTRY_INFO!$H11=99),OR(COUNTRY_INFO!$I11=0,COUNTRY_INFO!$I11=4)),0,COUNTRY_INFO!$E11)) -> 2257 | E11: =IF(AND(INTRO!$E$37="Non-endemic",INTRO!$E$41="Non-endemic"),0,IF(AND(OR(COUNTRY_INFO!$H11=0,COUNTRY_INFO!$H11=4,COUNTRY_INFO!$H11=99),OR(COUNTRY_INFO!$I11=0,COUNTRY_INFO!$I11=4)),0,COUNTRY_INFO!$F11)) -> 3954 | F11: 6211 | G11: =IF(AND(INTRO!$E$37="Non-endemic",INTRO!$E$41="Non-endemic"),0,COUNTRY_INFO!N11) -> 0 | H11: =IF(AND(INTRO!$E$37="Non-endemic",INTRO!$E$41="Non-endemic"),0,COUNTRY_INFO!O11) -> 1 | I11: =IF($G11=1,DEC!I11,0) -> 0 | J11: ALB | K11: 2257 | L11: 3954 | M11: =IF(INTRO!$E$50="","",ROUND($D11*INTRO!$E$50,0)) -> 1431 | N11: 7642 | O11: 0 | P11: 0 | R11: 0 | T11: 0 | U11: 0 | W11: 3954 | X11: 20 | Z11: 0 | AA11: 0
A12: =IF(AND(INTRO!$E$37="Non-endemic",INTRO!$E$41="Non-endemic")," ",IF(COUNTRY_INFO!A12=0," ",COUNTRY_INFO!A12)) -> Swaziland | B12: =IF(AND(INTRO!$E$37="Non-endemic",INTRO!$E$41="Non-endemic")," ",IF(COUNTRY_INFO!B12=0," ",COUNTRY_INFO!B12)) -> Hhohho | C12: =IF(AND(INTRO!$E$37="Non-endemic",INTRO!$E$41="Non-endemic")," ",IF(COUNTRY_INFO!C12=0," ",COUNTRY_INFO!C12)) -> Maphalaleni | D12: =IF(AND(INTRO!$E$37="Non-endemic",INTRO!$E$41="Non-endemic"),0,IF(AND(OR(COUNTRY_INFO!$H12=0,COUNTRY_INFO!$H12=4,COUNTRY_INFO!$H12=99),OR(COUNTRY_INFO!$I12=0,COUNTRY_INFO!$I12=4)),0,COUNTRY_INFO!$E12)) -> 2587 | E12: =IF(AND(INTRO!$E$37="Non-endemic",INTRO!$E$41="Non-endemic"),0,IF(AND(OR(COUNTRY_INFO!$H12=0,COUNTRY_INFO!$H12=4,COUNTRY_INFO!$H12=99),OR(COUNTRY_INFO!$I12=0,COUNTRY_INFO!$I12=4)),0,COUNTRY_INFO!$F12)) -> 4533 | F12: 7120 | G12: =IF(AND(INTRO!$E$37="Non-endemic",INTRO!$E$41="Non-endemic"),0,COUNTRY_INFO!N12) -> 0 | H12: =IF(AND(INTRO!$E$37="Non-endemic",INTRO!$E$41="Non-endemic"),0,COUNTRY_INFO!O12) -> 1 | I12: =IF($G12=1,DEC!I12,0) -> 0 | J12: ALB | K12: 2587 | L12: 4533 | M12: =IF(INTRO!$E$50="","",ROUND($D12*INTRO!$E$50,0)) -> 1640 | N12: 8760 | O12: 0 | P12: 0 | R12: 0 | T12: 0 | U12: 0 | W12: 4533 | X12: 23 | Z12: 0 | AA12: 0
A13: =IF(AND(INTRO!$E$37="Non-endemic",INTRO!$E$41="Non-endemic")," ",IF(COUNTRY_INFO!A13=0," ",COUNTRY_INFO!A13)) -> Swaziland | B13: =IF(AND(INTRO!$E$37="Non-endemic",INTRO!$E$41="Non-endemic")," ",IF(COUNTRY_INFO!B13=0," ",COUNTRY_INFO!B13)) -> Hhohho | C13: =IF(AND(INTRO!$E$37="Non-endemic",INTRO!$E$41="Non-endemic")," ",IF(COUNTRY_INFO!C13=0," ",COUNTRY_INFO!C13)) -> Mayiwane | D13: =IF(AND(INTRO!$E$37="Non-endemic",INTRO!$E$41="Non-endemic"),0,IF(AND(OR(COUNTRY_INFO!$H13=0,COUNTRY_INFO!$H13=4,COUNTRY_INFO!$H13=99),OR(COUNTRY_INFO!$I13=0,COUNTRY_INFO!$I13=4)),0,COUNTRY_INFO!$E13)) -> 2011 | E13: =IF(AND(INTRO!$E$37="Non-endemic",INTRO!$E$41="Non-endemic"),0,IF(AND(OR(COUNTRY_INFO!$H13=0,COUNTRY_INFO!$H13=4,COUNTRY_INFO!$H13=99),OR(COUNTRY_INFO!$I13=0,COUNTRY_INFO!$I13=4)),0,COUNTRY_INFO!$F13)) -> 3523 | F13: 5534 | G13: =IF(AND(INTRO!$E$37="Non-endemic",INTRO!$E$41="Non-endemic"),0,COUNTRY_INFO!N13) -> 0 | H13: =IF(AND(INTRO!$E$37="Non-endemic",INTRO!$E$41="Non-endemic"),0,COUNTRY_INFO!O13) -> 1 | I13: =IF($G13=1,DEC!I13,0) -> 0 | J13: ALB | K13: 2011 | L13: 3523 | M13: =IF(INTRO!$E$50="","",ROUND($D13*INTRO!$E$50,0)) -> 1275 | N13: 6809 | O13: 0 | P13: 0 | R13: 0 | T13: 0 | U13: 0 | W13: 3523 | X13: 18 | Z13: 0 | AA13: 0
A14: =IF(AND(INTRO!$E$37="Non-endemic",INTRO!$E$41="Non-endemic")," ",IF(COUNTRY_INFO!A14=0," ",COUNTRY_INFO!A14)) -> Swaziland | B14: =IF(AND(INTRO!$E$37="Non-endemic",INTRO!$E$41="Non-endemic")," ",IF(COUNTRY_INFO!B14=0," ",COUNTRY_INFO!B14)) -> Hhohho | C14: =IF(AND(INTRO!$E$37="Non-endemic",INTRO!$E$41="Non-endemic")," ",IF(COUNTRY_INFO!C14=0," ",COUNTRY_INFO!C14)) -> Mbabane East | D14: =IF(AND(INTRO!$E$37="Non-endemic",INTRO!$E$41="Non-endemic"),0,IF(AND(OR(COUNTRY_INFO!$H14=0,COUNTRY_INFO!$H14=4,COUNTRY_INFO!$H14=99),OR(COUNTRY_INFO!$I14=0,COUNTRY_INFO!$I14=4)),0,COUNTRY_INFO!$E14)) -> 4893 | E14: =IF(AND(INTRO!$E$37="Non-endemic",INTRO!$E$41="Non-endemic"),0,IF(AND(OR(COUNTRY_INFO!$H14=0,COUNTRY_INFO!$H14=4,COUNTRY_INFO!$H14=99),OR(COUNTRY_INFO!$I14=0,COUNTRY_INFO!$I14=4)),0,COUNTRY_INFO!$F14)) -> 8573 | F14: 13466 | G14: =IF(AND(INTRO!$E$37="Non-endemic",INTRO!$E$41="Non-endemic"),0,COUNTRY_INFO!N14) -> 0 | H14: =IF(AND(INTRO!$E$37="Non-endemic",INTRO!$E$41="Non-endemic"),0,COUNTRY_INFO!O14) -> 1 | I14: =IF($G14=1,DEC!I14,0) -> 0 | J14: ALB | K14: 4893 | L14: 8573 | M14: =IF(INTRO!$E$50="","",ROUND($D14*INTRO!$E$50,0)) -> 3102 | N14: 16568 | O14: 0 | P14: 0 | R14: 0 | T14: 0 | U14: 0 | W14: 8573 | X14: 43 | Z14: 0 | AA14: 0
A15: =IF(AND(INTRO!$E$37="Non-endemic",INTRO!$E$41="Non-endemic")," ",IF(COUNTRY_INFO!A15=0," ",COUNTRY_INFO!A15)) -> Swaziland | B15: =IF(AND(INTRO!$E$37="Non-endemic",INTRO!$E$41="Non-endemic")," ",IF(COUNTRY_INFO!B15=0," ",COUNTRY_INFO!B15)) -> Hhohho | C15: =IF(AND(INTRO!$E$37="Non-endemic",INTRO!$E$41="Non-endemic")," ",IF(COUNTRY_INFO!C15=0," ",COUNTRY_INFO!C15)) -> Mbabane West | D15: =IF(AND(INTRO!$E$37="Non-endemic",INTRO!$E$41="Non-endemic"),0,IF(AND(OR(COUNTRY_INFO!$H15=0,COUNTRY_INFO!$H15=4,COUNTRY_INFO!$H15=99),OR(COUNTRY_INFO!$I15=0,COUNTRY_INFO!$I15=4)),0,COUNTRY_INFO!$E15)) -> 3124 | E15: =IF(AND(INTRO!$E$37="Non-endemic",INTRO!$E$41="Non-endemic"),0,IF(AND(OR(COUNTRY_INFO!$H15=0,COUNTRY_INFO!$H15=4,COUNTRY_INFO!$H15=99),OR(COUNTRY_INFO!$I15=0,COUNTRY_INFO!$I15=4)),0,COUNTRY_INFO!$F15)) -> 5473 | F15: 8597 | G15: =IF(AND(INTRO!$E$37="Non-endemic",INTRO!$E$41="Non-endemic"),0,COUNTRY_INFO!N15) -> 0 | H15: =IF(AND(INTRO!$E$37="Non-endemic",INTRO!$E$41="Non-endemic"),0,COUNTRY_INFO!O15) -> 1 | I15: =IF($G15=1,DEC!I15,0) -> 0 | J15: ALB | K15: 3124 | L15: 5473 | M15: =IF(INTRO!$E$50="","",ROUND($D15*INTRO!$E$50,0)) -> 1981 | N15: 10578 | O15: 0 | P15: 0 | R15: 0 | T15: 0 | U15: 0 | W15: 5473 | X15: 28 | Z15: 0 | AA15: 0
A16: =IF(AND(INTRO!$E$37="Non-endemic",INTRO!$E$41="Non-endemic")," ",IF(COUNTRY_INFO!A16=0," ",COUNTRY_INFO!A16)) -> Swaziland | B16: =IF(AND(INTRO!$E$37="Non-endemic",INTRO!$E$41="Non-endemic")," ",IF(COUNTRY_INFO!B16=0," ",COUNTRY_INFO!B16)) -> Hhohho | C16: =IF(AND(INTRO!$E$37="Non-endemic",INTRO!$E$41="Non-endemic")," ",IF(COUNTRY_INFO!C16=0," ",COUNTRY_INFO!C16)) -> Mhlangatane | D16: =IF(AND(INTRO!$E$37="Non-endemic",INTRO!$E$41="Non-endemic"),0,IF(AND(OR(COUNTRY_INFO!$H16=0,COUNTRY_INFO!$H16=4,COUNTRY_INFO!$H16=99),OR(COUNTRY_INFO!$I16=0,COUNTRY_INFO!$I16=4)),0,COUNTRY_INFO!$E16)) -> 2982 | E16: =IF(AND(INTRO!$E$37="Non-endemic",INTRO!$E$41="Non-endemic"),0,IF(AND(OR(COUNTRY_INFO!$H16=0,COUNTRY_INFO!$H16=4,COUNTRY_INFO!$H16=99),OR(COUNTRY_INFO!$I16=0,COUNTRY_INFO!$I16=4)),0,COUNTRY_INFO!$F16)) -> 5224 | F16: 8206 | G16: =IF(AND(INTRO!$E$37="Non-endemic",INTRO!$E$41="Non-endemic"),0,COUNTRY_INFO!N16) -> 0 | H16: =IF(AND(INTRO!$E$37="Non-endemic",INTRO!$E$41="Non-endemic"),0,COUNTRY_INFO!O16) -> 1 | I16: =IF($G16=1,DEC!I16,0) -> 0 | J16: ALB | K16: 2982 | L16: 5224 | M16: =IF(INTRO!$E$50="","",ROUND($D16*INTRO!$E$50,0)) -> 1891 | N16: 10097 | O16: 0 | P16: 0 | R16: 0 | T16: 0 | U16: 0 | W16: 5224 | X16: 27 | Z16: 0 | AA16: 0
A17: =IF(AND(INTRO!$E$37="Non-endemic",INTRO!$E$41="Non-endemic")," ",IF(COUNTRY_INFO!A17=0," ",COUNTRY_INFO!A17)) -> Swaziland | B17: =IF(AND(INTRO!$E$37="Non-endemic",INTRO!$E$41="Non-endemic")," ",IF(COUNTRY_INFO!B17=0," ",COUNTRY_INFO!B17)) -> Hhohho | C17: =IF(AND(INTRO!$E$37="Non-endemic",INTRO!$E$41="Non-endemic")," ",IF(COUNTRY_INFO!C17=0," ",COUNTRY_INFO!C17)) -> Motjane | D17: =IF(AND(INTRO!$E$37="Non-endemic",INTRO!$E$41="Non-endemic"),0,IF(AND(OR(COUNTRY_INFO!$H17=0,COUNTRY_INFO!$H17=4,COUNTRY_INFO!$H17=99),OR(COUNTRY_INFO!$I17=0,COUNTRY_INFO!$I17=4)),0,COUNTRY_INFO!$E17)) -> 4108 | E17: =IF(AND(INTRO!$E$37="Non-endemic",INTRO!$E$41="Non-endemic"),0,IF(AND(OR(COUNTRY_INFO!$H17=0,COUNTRY_INFO!$H17=4,COUNTRY_INFO!$H17=99),OR(COUNTRY_INFO!$I17=0,COUNTRY_INFO!$I17=4)),0,COUNTRY_INFO!$F17)) -> 7197 | F17: 11305 | G17: =IF(AND(INTRO!$E$37="Non-endemic",INTRO!$E$41="Non-endemic"),0,COUNTRY_INFO!N17) -> 0 | H17: =IF(AND(INTRO!$E$37="Non-endemic",INTRO!$E$41="Non-endemic"),0,COUNTRY_INFO!O17) -> 1 | I17: =IF($G17=1,DEC!I17,0) -> 0 | J17: ALB | K17: 4108 | L17: 7197 | M17: =IF(INTRO!$E$50="","",ROUND($D17*INTRO!$E$50,0)) -> 2604 | N17: 13909 | O17: 0 | P17: 0 | R17: 0 | T17: 0 | U17: 0 | W17: 7197 | X17: 36 | Z17: 0 | AA17: 0
A18: =IF(AND(INTRO!$E$37="Non-endemic",INTRO!$E$41="Non-endemic")," ",IF(COUNTRY_INFO!A18=0," ",COUNTRY_INFO!A18)) -> Swaziland | B18: =IF(AND(INTRO!$E$37="Non-endemic",INTRO!$E$41="Non-endemic")," ",IF(COUNTRY_INFO!B18=0," ",COUNTRY_INFO!B18)) -> Hhohho | C18: =IF(AND(INTRO!$E$37="Non-endemic",INTRO!$E$41="Non-endemic")," ",IF(COUNTRY_INFO!C18=0," ",COUNTRY_INFO!C18)) -> Ndzingeni | D18: =IF(AND(INTRO!$E$37="Non-endemic",INTRO!$E$41="Non-endemic"),0,IF(AND(OR(COUNTRY_INFO!$H18=0,COUNTRY_INFO!$H18=4,COUNTRY_INFO!$H18=99),OR(COUNTRY_INFO!$I18=0,COUNTRY_INFO!$I18=4)),0,COUNTRY_INFO!$E18)) -> 2542 | E18: =IF(AND(INTRO!$E$37="Non-endemic",INTRO!$E$41="Non-endemic"),0,IF(AND(OR(COUNTRY_INFO!$H18=0,COUNTRY_INFO!$H18=4,COUNTRY_INFO!$H18=99),OR(COUNTRY_INFO!$I18=0,COUNTRY_INFO!$I18=4)),0,COUNTRY_INFO!$F18)) -> 4454 | F18: 6996 | G18: =IF(AND(INTRO!$E$37="Non-endemic",INTRO!$E$41="Non-endemic"),0,COUNTRY_INFO!N18) -> 0 | H18: =IF(AND(INTRO!$E$37="Non-endemic",INTRO!$E$41="Non-endemic"),0,COUNTRY_INFO!O18) -> 1 | I18: =IF($G18=1,DEC!I18,0) -> 0 | J18: ALB | K18: 2542 | L18: 4454 | M18: =IF(INTRO!$E$50="","",ROUND($D18*INTRO!$E$50,0)) -> 1612 | N18: 8608 | O18: 0 | P18: 0 | R18: 0 | T18: 0 | U18: 0 | W18: 4454 | X18: 23 | Z18: 0 | AA18: 0
A19: =IF(AND(INTRO!$E$37="Non-endemic",INTRO!$E$41="Non-endemic")," ",IF(COUNTRY_INFO!A19=0," ",COUNTRY_INFO!A19)) -> Swaziland | B19: =IF(AND(INTRO!$E$37="Non-endemic",INTRO!$E$41="Non-endemic")," ",IF(COUNTRY_INFO!B19=0," ",COUNTRY_INFO!B19)) -> Hhohho | C19: =IF(AND(INTRO!$E$37="Non-endemic",INTRO!$E$41="Non-endemic")," ",IF(COUNTRY_INFO!C19=0," ",COUNTRY_INFO!C19)) -> Nkhaba | D19: =IF(AND(INTRO!$E$37="Non-endemic",INTRO!$E$41="Non-endemic"),0,IF(AND(OR(COUNTRY_INFO!$H19=0,COUNTRY_INFO!$H19=4,COUNTRY_INFO!$H19=99),OR(COUNTRY_INFO!$I19=0,COUNTRY_INFO!$I19=4)),0,COUNTRY_INFO!$E19)) -> 2089 | E19: =IF(AND(INTRO!$E$37="Non-endemic",INTRO!$E$41="Non-endemic"),0,IF(AND(OR(COUNTRY_INFO!$H19=0,COUNTRY_INFO!$H19=4,COUNTRY_INFO!$H19=99),OR(COUNTRY_INFO!$I19=0,COUNTRY_INFO!$I19=4)),0,COUNTRY_INFO!$F19)) -> 3659 | F19: 5748 | G19: =IF(AND(INTRO!$E$37="Non-endemic",INTRO!$E$41="Non-endemic"),0,COUNTRY_INFO!N19) -> 0 | H19: =IF(AND(INTRO!$E$37="Non-endemic",INTRO!$E$41="Non-endemic"),0,COUNTRY_INFO!O19) -> 1 | I19: =IF($G19=1,DEC!I19,0) -> 0 | J19: ALB | K19: 2089 | L19: 3659 | M19: =IF(INTRO!$E$50="","",ROUND($D19*INTRO!$E$50,0)) -> 1324 | N19: 7072 | O19: 0 | P19: 0 | R19: 0 | T19: 0 | U19: 0 | W19: 3659 | X19: 19 | Z19: 0 | AA19: 0
A20: =IF(AND(INTRO!$E$37="Non-endemic",INTRO!$E$41="Non-endemic")," ",IF(COUNTRY_INFO!A20=0," ",COUNTRY_INFO!A20)) -> Swaziland | B20: =IF(AND(INTRO!$E$37="Non-endemic",INTRO!$E$41="Non-endemic")," ",IF(COUNTRY_INFO!B20=0," ",COUNTRY_INFO!B20)) -> Hhohho | C20: =IF(AND(INTRO!$E$37="Non-endemic",INTRO!$E$41="Non-endemic")," ",IF(COUNTRY_INFO!C20=0," ",COUNTRY_INFO!C20)) -> Ntfonjeni | D20: =IF(AND(INTRO!$E$37="Non-endemic",INTRO!$E$41="Non-endemic"),0,IF(AND(OR(COUNTRY_INFO!$H20=0,COUNTRY_INFO!$H20=4,COUNTRY_INFO!$H20=99),OR(COUNTRY_INFO!$I20=0,COUNTRY_INFO!$I20=4)),0,COUNTRY_INFO!$E20)) -> 2812 | E20: =IF(AND(INTRO!$E$37="Non-endemic",INTRO!$E$41="Non-endemic"),0,IF(AND(OR(COUNTRY_INFO!$H20=0,COUNTRY_INFO!$H20=4,COUNTRY_INFO!$H20=99),OR(COUNTRY_INFO!$I20=0,COUNTRY_INFO!$I20=4)),0,COUNTRY_INFO!$F20)) -> 4926 | F20: 7738 | G20: =IF(AND(INTRO!$E$37="Non-endemic",INTRO!$E$41="Non-endemic"),0,COUNTRY_INFO!N20) -> 0 | H20: =IF(AND(INTRO!$E$37="Non-endemic",INTRO!$E$41="Non-endemic"),0,COUNTRY_INFO!O20) -> 1 | I20: =IF($G20=1,DEC!I20,0) -> 0 | J20: ALB | K20: 2812 | L20: 4926 | M20: =IF(INTRO!$E$50="","",ROUND($D20*INTRO!$E$50,0)) -> 1783 | N20: 9521 | O20: 0 | P20: 0 | R20: 0 | T20: 0 | U20: 0 | W20: 4926 | X20: 25 | Z20: 0 | AA20: 0
A21: =IF(AND(INTRO!$E$37="Non-endemic",INTRO!$E$41="Non-endemic")," ",IF(COUNTRY_INFO!A21=0," ",COUNTRY_INFO!A21)) -> Swaziland | B21: =IF(AND(INTRO!$E$37="Non-endemic",INTRO!$E$41="Non-endemic")," ",IF(COUNTRY_INFO!B21=0," ",COUNTRY_INFO!B21)) -> Hhohho | C21: =IF(AND(INTRO!$E$37="Non-endemic",INTRO!$E$41="Non-endemic")," ",IF(COUNTRY_INFO!C21=0," ",COUNTRY_INFO!C21)) -> Pigg's Peak | D21: =IF(AND(INTRO!$E$37="Non-endemic",INTRO!$E$41="Non-endemic"),0,IF(AND(OR(COUNTRY_INFO!$H21=0,COUNTRY_INFO!$H21=4,COUNTRY_INFO!$H21=99),OR(COUNTRY_INFO!$I21=0,COUNTRY_INFO!$I21=4)),0,COUNTRY_INFO!$E21)) -> 2309 | E21: =IF(AND(INTRO!$E$37="Non-endemic",INTRO!$E$41="Non-endemic"),0,IF(AND(OR(COUNTRY_INFO!$H21=0,COUNTRY_INFO!$H21=4,COUNTRY_INFO!$H21=99),OR(COUNTRY_INFO!$I21=0,COUNTRY_INFO!$I21=4)),0,COUNTRY_INFO!$F21)) -> 4045 | F21: 6354 | G21: =IF(AND(INTRO!$E$37="Non-endemic",INTRO!$E$41="Non-endemic"),0,COUNTRY_INFO!N21) -> 0 | H21: =IF(AND(INTRO!$E$37="Non-endemic",INTRO!$E$41="Non-endemic"),0,COUNTRY_INFO!O21) -> 1 | I21: =IF($G21=1,DEC!I21,0) -> 0 | J21: ALB | K21: 2309 | L21: 4045 | M21: =IF(INTRO!$E$50="","",ROUND($D21*INTRO!$E$50,0)) -> 1464 | N21: 7818 | O21: 0 | P21: 0 | R21: 0 | T21: 0 | U21: 0 | W21: 4045 | X21: 21 | Z21: 0 | AA21: 0
A22: =IF(AND(INTRO!$E$37="Non-endemic",INTRO!$E$41="Non-endemic")," ",IF(COUNTRY_INFO!A22=0," ",COUNTRY_INFO!A22)) -> Swaziland | B22: =IF(AND(INTRO!$E$37="Non-endemic",INTRO!$E$41="Non-endemic")," ",IF(COUNTRY_INFO!B22=0," ",COUNTRY_INFO!B22)) -> Hhohho | C22: =IF(AND(INTRO!$E$37="Non-endemic",INTRO!$E$41="Non-endemic")," ",IF(COUNTRY_INFO!C22=0," ",COUNTRY_INFO!C22)) -> Timphisini | D22: =IF(AND(INTRO!$E$37="Non-endemic",INTRO!$E$41="Non-endemic"),0,IF(AND(OR(COUNTRY_INFO!$H22=0,COUNTRY_INFO!$H22=4,COUNTRY_INFO!$H22=99),OR(COUNTRY_INFO!$I22=0,COUNTRY_INFO!$I22=4)),0,COUNTRY_INFO!$E22)) -> 1127 | E22: =IF(AND(INTRO!$E$37="Non-endemic",INTRO!$E$41="Non-endemic"),0,IF(AND(OR(COUNTRY_INFO!$H22=0,COUNTRY_INFO!$H22=4,COUNTRY_INFO!$H22=99),OR(COUNTRY_INFO!$I22=0,COUNTRY_INFO!$I22=4)),0,COUNTRY_INFO!$F22)) -> 1974 | F22: 3101 | G22: =IF(AND(INTRO!$E$37="Non-endemic",INTRO!$E$41="Non-endemic"),0,COUNTRY_INFO!N22) -> 0 | H22: =IF(AND(INTRO!$E$37="Non-endemic",INTRO!$E$41="Non-endemic"),0,COUNTRY_INFO!O22) -> 1 | I22: =IF($G22=1,DEC!I22,0) -> 0 | J22: ALB | K22: 1127 | L22: 1974 | M22: =IF(INTRO!$E$50="","",ROUND($D22*INTRO!$E$50,0)) -> 715 | N22: 3816 | O22: 0 | P22: 0 | R22: 0 | T22: 0 | U22: 0 | W22: 1974 | X22: 10 | Z22: 0 | AA22: 0
A23: =IF(AND(INTRO!$E$37="Non-endemic",INTRO!$E$41="Non-endemic")," ",IF(COUNTRY_INFO!A23=0," ",COUNTRY_INFO!A23)) -> Swaziland | B23: =IF(AND(INTRO!$E$37="Non-endemic",INTRO!$E$41="Non-endemic")," ",IF(COUNTRY_INFO!B23=0," ",COUNTRY_INFO!B23)) -> Lubombo | C23: =IF(AND(INTRO!$E$37="Non-endemic",INTRO!$E$41="Non-endemic")," ",IF(COUNTRY_INFO!C23=0," ",COUNTRY_INFO!C23)) -> Dvokodvweni | D23: =IF(AND(INTRO!$E$37="Non-endemic",INTRO!$E$41="Non-endemic"),0,IF(AND(OR(COUNTRY_INFO!$H23=0,COUNTRY_INFO!$H23=4,COUNTRY_INFO!$H23=99),OR(COUNTRY_INFO!$I23=0,COUNTRY_INFO!$I23=4)),0,COUNTRY_INFO!$E23)) -> 3758 | E23: =IF(AND(INTRO!$E$37="Non-endemic",INTRO!$E$41="Non-endemic"),0,IF(AND(OR(COUNTRY_INFO!$H23=0,COUNTRY_INFO!$H23=4,COUNTRY_INFO!$H23=99),OR(COUNTRY_INFO!$I23=0,COUNTRY_INFO!$I23=4)),0,COUNTRY_INFO!$F23)) -> 6583 | F23: 10341 | G23: =IF(AND(INTRO!$E$37="Non-endemic",INTRO!$E$41="Non-endemic"),0,COUNTRY_INFO!N23) -> 0 | H23: =IF(AND(INTRO!$E$37="Non-endemic",INTRO!$E$41="Non-endemic"),0,COUNTRY_INFO!O23) -> 1 | I23: =IF($G23=1,DEC!I23,0) -> 0 | J23: ALB | K23: 3758 | L23: 6583 | M23: =IF(INTRO!$E$50="","",ROUND($D23*INTRO!$E$50,0)) -> 2383 | N23: 12724 | O23: 0 | P23: 0 | R23: 0 | T23: 0 | U23: 0 | W23: 6583 | X23: 33 | Z23: 0 | AA23: 0
A24: =IF(AND(INTRO!$E$37="Non-endemic",INTRO!$E$41="Non-endemic")," ",IF(COUNTRY_INFO!A24=0," ",COUNTRY_INFO!A24)) -> Swaziland | B24: =IF(AND(INTRO!$E$37="Non-endemic",INTRO!$E$41="Non-endemic")," ",IF(COUNTRY_INFO!B24=0," ",COUNTRY_INFO!B24)) -> Lubombo | C24: =IF(AND(INTRO!$E$37="Non-endemic",INTRO!$E$41="Non-endemic")," ",IF(COUNTRY_INFO!C24=0," ",COUNTRY_INFO!C24)) -> Hlane | D24: =IF(AND(INTRO!$E$37="Non-endemic",INTRO!$E$41="Non-endemic"),0,IF(AND(OR(COUNTRY_INFO!$H24=0,COUNTRY_INFO!$H24=4,COUNTRY_INFO!$H24=99),OR(COUNTRY_INFO!$I24=0,COUNTRY_INFO!$I24=4)),0,COUNTRY_INFO!$E24)) -> 943 | E24: =IF(AND(INTRO!$E$37="Non-endemic",INTRO!$E$41="Non-endemic"),0,IF(AND(OR(COUNTRY_INFO!$H24=0,COUNTRY_INFO!$H24=4,COUNTRY_INFO!$H24=99),OR(COUNTRY_INFO!$I24=0,COUNTRY_INFO!$I24=4)),0,COUNTRY_INFO!$F24)) -> 1652 | F24: 2595 | G24: =IF(AND(INTRO!$E$37="Non-endemic",INTRO!$E$41="Non-endemic"),0,COUNTRY_INFO!N24) -> 0 | H24: =IF(AND(INTRO!$E$37="Non-endemic",INTRO!$E$41="Non-endemic"),0,COUNTRY_INFO!O24) -> 1 | I24: =IF($G24=1,DEC!I24,0) -> 0 | J24: ALB | K24: 943 | L24: 1652 | M24: =IF(INTRO!$E$50="","",ROUND($D24*INTRO!$E$50,0)) -> 598 | N24: 3193 | O24: 0 | P24: 0 | R24: 0 | T24: 0 | U24: 0 | W24: 1652 | X24: 9 | Z24: 0 | AA24: 0
A25: =IF(AND(INTRO!$E$37="Non-endemic",INTRO!$E$41="Non-endemic")," ",IF(COUNTRY_INFO!A25=0," ",COUNTRY_INFO!A25)) -> Swaziland | B25: =IF(AND(INTRO!$E$37="Non-endemic",INTRO!$E$41="Non-endemic")," ",IF(COUNTRY_INFO!B25=0," ",COUNTRY_INFO!B25)) -> Lubombo | C25: =IF(AND(INTRO!$E$37="Non-endemic",INTRO!$E$41="Non-endemic")," ",IF(COUNTRY_INFO!C25=0," ",COUNTRY_INFO!C25)) -> Lomahasha | D25: =IF(AND(INTRO!$E$37="Non-endemic",INTRO!$E$41="Non-endemic"),0,IF(AND(OR(COUNTRY_INFO!$H25=0,COUNTRY_INFO!$H25=4,COUNTRY_INFO!$H25=99),OR(COUNTRY_INFO!$I25=0,COUNTRY_INFO!$I25=4)),0,COUNTRY_INFO!$E25)) -> 2958 | E25: =IF(AND(INTRO!$E$37="Non-endemic",INTRO!$E$41="Non-endemic"),0,IF(AND(OR(COUNTRY_INFO!$H25=0,COUNTRY_INFO!$H25=4,COUNTRY_INFO!$H25=99),OR(COUNTRY_INFO!$I25=0,COUNTRY_INFO!$I25=4)),0,COUNTRY_INFO!$F25)) -> 5182 | F25: 8140 | G25: =IF(AND(INTRO!$E$37="Non-endemic",INTRO!$E$41="Non-endemic"),0,COUNTRY_INFO!N25) -> 0 | H25: =IF(AND(INTRO!$E$37="Non-endemic",INTRO!$E$41="Non-endemic"),0,COUNTRY_INFO!O25) -> 1 | I25: =IF($G25=1,DEC!I25,0) -> 0 | J25: ALB | K25: 2958 | L25: 5182 | M25: =IF(INTRO!$E$50="","",ROUND($D25*INTRO!$E$50,0)) -> 1875 | N25: 10015 | O25: 0 | P25: 0 | R25: 0 | T25: 0 | U25: 0 | W25: 5182 | X25: 26 | Z25: 0 | AA25: 0
A26: =IF(AND(INTRO!$E$37="Non-endemic",INTRO!$E$41="Non-endemic")," ",IF(COUNTRY_INFO!A26=0," ",COUNTRY_INFO!A26)) -> Swaziland | B26: =IF(AND(INTRO!$E$37="Non-endemic",INTRO!$E$41="Non-endemic")," ",IF(COUNTRY_INFO!B26=0," ",COUNTRY_INFO!B26)) -> Lubombo | C26: =IF(AND(INTRO!$E$37="Non-endemic",INTRO!$E$41="Non-endemic")," ",IF(COUNTRY_INFO!C26=0," ",COUNTRY_INFO!C26)) -> Lubuli | D26: =IF(AND(INTRO!$E$37="Non-endemic",INTRO!$E$41="Non-endemic"),0,IF(AND(OR(COUNTRY_INFO!$H26=0,COUNTRY_INFO!$H26=4,COUNTRY_INFO!$H26=99),OR(COUNTRY_INFO!$I26=0,COUNTRY_INFO!$I26=4)),0,COUNTRY_INFO!$E26)) -> 1918 | E26: =IF(AND(INTRO!$E$37="Non-endemic",INTRO!$E$41="Non-endemic"),0,IF(AND(OR(COUNTRY_INFO!$H26=0,COUNTRY_INFO!$H26=4,COUNTRY_INFO!$H26=99),OR(COUNTRY_INFO!$I26=0,COUNTRY_INFO!$I26=4)),0,COUNTRY_INFO!$F26)) -> 3360 | F26: 5278 | G26: =IF(AND(INTRO!$E$37="Non-endemic",INTRO!$E$41="Non-endemic"),0,COUNTRY_INFO!N26) -> 0 | H26: =IF(AND(INTRO!$E$37="Non-endemic",INTRO!$E$41="Non-endemic"),0,COUNTRY_INFO!O26) -> 1 | I26: =IF($G26=1,DEC!I26,0) -> 0 | J26: ALB | K26: 1918 | L26: 3360 | M26: =IF(INTRO!$E$50="","",ROUND($D26*INTRO!$E$50,0)) -> 1216 | N26: 6494 | O26: 0 | P26: 0 | R26: 0 | T26: 0 | U26: 0 | W26: 3360 | X26: 17 | Z26: 0 | AA26: 0
A27: =IF(AND(INTRO!$E$37="Non-endemic",INTRO!$E$41="Non-endemic")," ",IF(COUNTRY_INFO!A27=0," ",COUNTRY_INFO!A27)) -> Swaziland | B27: =IF(AND(INTRO!$E$37="Non-endemic",INTRO!$E$41="Non-endemic")," ",IF(COUNTRY_INFO!B27=0," ",COUNTRY_INFO!B27)) -> Lubombo | C27: =IF(AND(INTRO!$E$37="Non-endemic",INTRO!$E$41="Non-endemic")," ",IF(COUNTRY_INFO!C27=0," ",COUNTRY_INFO!C27)) -> Lugongolweni | D27: =IF(AND(INTRO!$E$37="Non-endemic",INTRO!$E$41="Non-endemic"),0,IF(AND(OR(COUNTRY_INFO!$H27=0,COUNTRY_INFO!$H27=4,COUNTRY_INFO!$H27=99),OR(COUNTRY_INFO!$I27=0,COUNTRY_INFO!$I27=4)),0,COUNTRY_INFO!$E27)) -> 2064 | E27: =IF(AND(INTRO!$E$37="Non-endemic",INTRO!$E$41="Non-endemic"),0,IF(AND(OR(COUNTRY_INFO!$H27=0,COUNTRY_INFO!$H27=4,COUNTRY_INFO!$H27=99),OR(COUNTRY_INFO!$I27=0,COUNTRY_INFO!$I27=4)),0,COUNTRY_INFO!$F27)) -> 3616 | F27: 5680 | G27: =IF(AND(INTRO!$E$37="Non-endemic",INTRO!$E$41="Non-endemic"),0,COUNTRY_INFO!N27) -> 0 | H27: =IF(AND(INTRO!$E$37="Non-endemic",INTRO!$E$41="Non-endemic"),0,COUNTRY_INFO!O27) -> 1 | I27: =IF($G27=1,DEC!I27,0) -> 0 | J27: ALB | K27: 2064 | L27: 3616 | M27: =IF(INTRO!$E$50="","",ROUND($D27*INTRO!$E$50,0)) -> 1309 | N27: 6989 | O27: 0 | P27: 0 | R27: 0 | T27: 0 | U27: 0 | W27: 3616 | X27: 19 | Z27: 0 | AA27: 0
A28: =IF(AND(INTRO!$E$37="Non-endemic",INTRO!$E$41="Non-endemic")," ",IF(COUNTRY_INFO!A28=0," ",COUNTRY_INFO!A28)) -> Swaziland | B28: =IF(AND(INTRO!$E$37="Non-endemic",INTRO!$E$41="Non-endemic")," ",IF(COUNTRY_INFO!B28=0," ",COUNTRY_INFO!B28)) -> Lubombo | C28: =IF(AND(INTRO!$E$37="Non-endemic",INTRO!$E$41="Non-endemic")," ",IF(COUNTRY_INFO!C28=0," ",COUNTRY_INFO!C28)) -> Matsanjeni North | D28: =IF(AND(INTRO!$E$37="Non-endemic",INTRO!$E$41="Non-endemic"),0,IF(AND(OR(COUNTRY_INFO!$H28=0,COUNTRY_INFO!$H28=4,COUNTRY_INFO!$H28=99),OR(COUNTRY_INFO!$I28=0,COUNTRY_INFO!$I28=4)),0,COUNTRY_INFO!$E28)) -> 1721 | E28: =IF(AND(INTRO!$E$37="Non-endemic",INTRO!$E$41="Non-endemic"),0,IF(AND(OR(COUNTRY_INFO!$H28=0,COUNTRY_INFO!$H28=4,COUNTRY_INFO!$H28=99),OR(COUNTRY_INFO!$I28=0,COUNTRY_INFO!$I28=4)),0,COUNTRY_INFO!$F28)) -> 3015 | F28: 4736 | G28: =IF(AND(INTRO!$E$37="Non-endemic",INTRO!$E$41="Non-endemic"),0,COUNTRY_INFO!N28) -> 0 | H28: =IF(AND(INTRO!$E$37="Non-endemic",INTRO!$E$41="Non-endemic"),0,COUNTRY_INFO!O28) -> 1 | I28: =IF($G28=1,DEC!I28,0) -> 0 | J28: ALB | K28: 1721 | L28: 3015 | M28: =IF(INTRO!$E$50="","",ROUND($D28*INTRO!$E$50,0)) -> 1091 | N28: 5827 | O28: 0 | P28: 0 | R28: 0 | T28: 0 | U28: 0 | W28: 3015 | X28: 16 | Z28: 0 | AA28: 0
A29: =IF(AND(INTRO!$E$37="Non-endemic",INTRO!$E$41="Non-endemic")," ",IF(COUNTRY_INFO!A29=0," ",COUNTRY_INFO!A29)) -> Swaziland | B29: =IF(AND(INTRO!$E$37="Non-endemic",INTRO!$E$41="Non-endemic")," ",IF(COUNTRY_INFO!B29=0," ",COUNTRY_INFO!B29)) -> Lubombo | C29: =IF(AND(INTRO!$E$37="Non-endemic",INTRO!$E$41="Non-endemic")," ",IF(COUNTRY_INFO!C29=0," ",COUNTRY_INFO!C29)) -> Mhlume | D29: =IF(AND(INTRO!$E$37="Non-endemic",INTRO!$E$41="Non-endemic"),0,IF(AND(OR(COUNTRY_INFO!$H29=0,COUNTRY_INFO!$H29=4,COUNTRY_INFO!$H29=99),OR(COUNTRY_INFO!$I29=0,COUNTRY_INFO!$I29=4)),0,COUNTRY_INFO!$E29)) -> 2258 | E29: =IF(AND(INTRO!$E$37="Non-endemic",INTRO!$E$41="Non-endemic"),0,IF(AND(OR(COUNTRY_INFO!$H29=0,COUNTRY_INFO!$H29=4,COUNTRY_INFO!$H29=99),OR(COUNTRY_INFO!$I29=0,COUNTRY_INFO!$I29=4)),0,COUNTRY_INFO!$F29)) -> 3957 | F29: 6215 | G29: =IF(AND(INTRO!$E$37="Non-endemic",INTRO!$E$41="Non-endemic"),0,COUNTRY_INFO!N29) -> 0 | H29: =IF(AND(INTRO!$E$37="Non-endemic",INTRO!$E$41="Non-endemic"),0,COUNTRY_INFO!O29) -> 1 | I29: =IF($G29=1,DEC!I29,0) -> 0 | J29: ALB | K29: 2258 | L29: 3957 | M29: =IF(INTRO!$E$50="","",ROUND($D29*INTRO!$E$50,0)) -> 1432 | N29: 7647 | O29: 0 | P29: 0 | R29: 0 | T29: 0 | U29: 0 | W29: 3957 | X29: 20 | Z29: 0 | AA29: 0
A30: =IF(AND(INTRO!$E$37="Non-endemic",INTRO!$E$41="Non-endemic")," ",IF(COUNTRY_INFO!A30=0," ",COUNTRY_INFO!A30)) -> Swaziland | B30: =IF(AND(INTRO!$E$37="Non-endemic",INTRO!$E$41="Non-endemic")," ",IF(COUNTRY_INFO!B30=0," ",COUNTRY_INFO!B30)) -> Lubombo | C30: =IF(AND(INTRO!$E$37="Non-endemic",INTRO!$E$41="Non-endemic")," ",IF(COUNTRY_INFO!C30=0," ",COUNTRY_INFO!C30)) -> Mpolonjeni | D30: =IF(AND(INTRO!$E$37="Non-endemic",INTRO!$E$41="Non-endemic"),0,IF(AND(OR(COUNTRY_INFO!$H30=0,COUNTRY_INFO!$H30=4,COUNTRY_INFO!$H30=99),OR(COUNTRY_INFO!$I30=0,COUNTRY_INFO!$I30=4)),0,COUNTRY_INFO!$E30)) -> 2735 | E30: =IF(AND(INTRO!$E$37="Non-endemic",INTRO!$E$41="Non-endemic"),0,IF(AND(OR(COUNTRY_INFO!$H30=0,COUNTRY_INFO!$H30=4,COUNTRY_INFO!$H30=99),OR(COUNTRY_INFO!$I30=0,COUNTRY_INFO!$I30=4)),0,COUNTRY_INFO!$F30)) -> 4791 | F30: 7526 | G30: =IF(AND(INTRO!$E$37="Non-endemic",INTRO!$E$41="Non-endemic"),0,COUNTRY_INFO!N30) -> 0 | H30: =IF(AND(INTRO!$E$37="Non-endemic",INTRO!$E$41="Non-endemic"),0,COUNTRY_INFO!O30) -> 1 | I30: =IF($G30=1,DEC!I30,0) -> 0 | J30: ALB | K30: 2735 | L30: 4791 | M30: =IF(INTRO!$E$50="","",ROUND($D30*INTRO!$E$50,0)) -> 1734 | N30: 9260 | O30: 0 | P30: 0 | R30: 0 | T30: 0 | U30: 0 | W30: 4791 | X30: 24 | Z30: 0 | AA30: 0
A31: =IF(AND(INTRO!$E$37="Non-endemic",INTRO!$E$41="Non-endemic")," ",IF(COUNTRY_INFO!A31=0," ",COUNTRY_INFO!A31)) -> Swaziland | B31: =IF(AND(INTRO!$E$37="Non-endemic",INTRO!$E$41="Non-endemic")," ",IF(COUNTRY_INFO!B31=0," ",COUNTRY_INFO!B31)) -> Lubombo | C31: =IF(AND(INTRO!$E$37="Non-endemic",INTRO!$E$41="Non-endemic")," ",IF(COUNTRY_INFO!C31=0," ",COUNTRY_INFO!C31)) -> Nkilongo | D31: =IF(AND(INTRO!$E$37="Non-endemic",INTRO!$E$41="Non-endemic"),0,IF(AND(OR(COUNTRY_INFO!$H31=0,COUNTRY_INFO!$H31=4,COUNTRY_INFO!$H31=99),OR(COUNTRY_INFO!$I31=0,COUNTRY_INFO!$I31=4)),0,COUNTRY_INFO!$E31)) -> 2116 | E31: =IF(AND(INTRO!$E$37="Non-endemic",INTRO!$E$41="Non-endemic"),0,IF(AND(OR(COUNTRY_INFO!$H31=0,COUNTRY_INFO!$H31=4,COUNTRY_INFO!$H31=99),OR(COUNTRY_INFO!$I31=0,COUNTRY_INFO!$I31=4)),0,COUNTRY_INFO!$F31)) -> 3706 | F31: 5822 | G31: =IF(AND(INTRO!$E$37="Non-endemic",INTRO!$E$41="Non-endemic"),0,COUNTRY_INFO!N31) -> 0 | H31: =IF(AND(INTRO!$E$37="Non-endemic",INTRO!$E$41="Non-endemic"),0,COUNTRY_INFO!O31) -> 1 | I31: =IF($G31=1,DEC!I31,0) -> 0 | J31: ALB | K31: 2116 | L31: 3706 | M31: =IF(INTRO!$E$50="","",ROUND($D31*INTRO!$E$50,0)) -> 1342 | N31: 7164 | O31: 0 | P31: 0 | R31: 0 | T31: 0 | U31: 0 | W31: 3706 | X31: 19 | Z31: 0 | AA31: 0
A32: =IF(AND(INTRO!$E$37="Non-endemic",INTRO!$E$41="Non-endemic")," ",IF(COUNTRY_INFO!A32=0," ",COUNTRY_INFO!A32)) -> Swaziland | B32: =IF(AND(INTRO!$E$37="Non-endemic",INTRO!$E$41="Non-endemic")," ",IF(COUNTRY_INFO!B32=0," ",COUNTRY_INFO!B32)) -> Lubombo | C32: =IF(AND(INTRO!$E$37="Non-endemic",INTRO!$E$41="Non-endemic")," ",IF(COUNTRY_INFO!C32=0," ",COUNTRY_INFO!C32)) -> Siphofaneni | D32: =IF(AND(INTRO!$E$37="Non-endemic",INTRO!$E$41="Non-endemic"),0,IF(AND(OR(COUNTRY_INFO!$H32=0,COUNTRY_INFO!$H32=4,COUNTRY_INFO!$H32=99),OR(COUNTRY_INFO!$I32=0,COUNTRY_INFO!$I32=4)),0,COUNTRY_INFO!$E32)) -> 3124 | E32: =IF(AND(INTRO!$E$37="Non-endemic",INTRO!$E$41="Non-endemic"),0,IF(AND(OR(COUNTRY_INFO!$H32=0,COUNTRY_INFO!$H32=4,COUNTRY_INFO!$H32=99),OR(COUNTRY_INFO!$I32=0,COUNTRY_INFO!$I32=4)),0,COUNTRY_INFO!$F32)) -> 5473 | F32: 8597 | G32: =IF(AND(INTRO!$E$37="Non-endemic",INTRO!$E$41="Non-endemic"),0,COUNTRY_INFO!N32) -> 0 | H32: =IF(AND(INTRO!$E$37="Non-endemic",INTRO!$E$41="Non-endemic"),0,COUNTRY_INFO!O32) -> 1 | I32: =IF($G32=1,DEC!I32,0) -> 0 | J32: ALB | K32: 3124 | L32: 5473 | M32: =IF(INTRO!$E$50="","",ROUND($D32*INTRO!$E$50,0)) -> 1981 | N32: 10578 | O32: 0 | P32: 0 | R32: 0 | T32: 0 | U32: 0 | W32: 5473 | X32: 28 | Z32: 0 | AA32: 0
A33: =IF(AND(INTRO!$E$37="Non-endemic",INTRO!$E$41="Non-endemic")," ",IF(COUNTRY_INFO!A33=0," ",COUNTRY_INFO!A33)) -> Swaziland | B33: =IF(AND(INTRO!$E$37="Non-endemic",INTRO!$E$41="Non-endemic")," ",IF(COUNTRY_INFO!B33=0," ",COUNTRY_INFO!B33)) -> Lubombo | C33: =IF(AND(INTRO!$E$37="Non-endemic",INTRO!$E$41="Non-endemic")," ",IF(COUNTRY_INFO!C33=0," ",COUNTRY_INFO!C33)) -> Sithobela | D33: =IF(AND(INTRO!$E$37="Non-endemic",INTRO!$E$41="Non-endemic"),0,IF(AND(OR(COUNTRY_INFO!$H33=0,COUNTRY_INFO!$H33=4,COUNTRY_INFO!$H33=99),OR(COUNTRY_INFO!$I33=0,COUNTRY_INFO!$I33=4)),0,COUNTRY_INFO!$E33)) -> 4034 | E33: =IF(AND(INTRO!$E$37="Non-endemic",INTRO!$E$41="Non-endemic"),0,IF(AND(OR(COUNTRY_INFO!$H33=0,COUNTRY_INFO!$H33=4,COUNTRY_INFO!$H33=99),OR(COUNTRY_INFO!$I33=0,COUNTRY_INFO!$I33=4)),0,COUNTRY_INFO!$F33)) -> 7067 | F33: 11101 | G33: =IF(AND(INTRO!$E$37="Non-endemic",INTRO!$E$41="Non-endemic"),0,COUNTRY_INFO!N33) -> 0 | H33: =IF(AND(INTRO!$E$37="Non-endemic",INTRO!$E$41="Non-endemic"),0,COUNTRY_INFO!O33) -> 1 | I33: =IF($G33=1,DEC!I33,0) -> 0 | J33: ALB | K33: 4034 | L33: 7067 | M33: =IF(INTRO!$E$50="","",ROUND($D33*INTRO!$E$50,0)) -> 2558 | N33: 13659 | O33: 0 | P33: 0 | R33: 0 | T33: 0 | U33: 0 | W33: 7067 | X33: 36 | Z33: 0 | AA33: 0
A34: =IF(AND(INTRO!$E$37="Non-endemic",INTRO!$E$41="Non-endemic")," ",IF(COUNTRY_INFO!A34=0," ",COUNTRY_INFO!A34)) -> Swaziland | B34: =IF(AND(INTRO!$E$37="Non-endemic",INTRO!$E$41="Non-endemic")," ",IF(COUNTRY_INFO!B34=0," ",COUNTRY_INFO!B34)) -> Manzini | C34: =IF(AND(INTRO!$E$37="Non-endemic",INTRO!$E$41="Non-endemic")," ",IF(COUNTRY_INFO!C34=0," ",COUNTRY_INFO!C34)) -> Kukhanyeni | D34: =IF(AND(INTRO!$E$37="Non-endemic",INTRO!$E$41="Non-endemic"),0,IF(AND(OR(COUNTRY_INFO!$H34=0,COUNTRY_INFO!$H34=4,COUNTRY_INFO!$H34=99),OR(COUNTRY_INFO!$I34=0,COUNTRY_INFO!$I34=4)),0,COUNTRY_INFO!$E34)) -> 2405 | E34: =IF(AND(INTRO!$E$37="Non-endemic",INTRO!$E$41="Non-endemic"),0,IF(AND(OR(COUNTRY_INFO!$H34=0,COUNTRY_INFO!$H34=4,COUNTRY_INFO!$H34=99),OR(COUNTRY_INFO!$I34=0,COUNTRY_INFO!$I34=4)),0,COUNTRY_INFO!$F34)) -> 4214 | F34: 6619 | G34: =IF(AND(INTRO!$E$37="Non-endemic",INTRO!$E$41="Non-endemic"),0,COUNTRY_INFO!N34) -> 0 | H34: =IF(AND(INTRO!$E$37="Non-endemic",INTRO!$E$41="Non-endemic"),0,COUNTRY_INFO!O34) -> 1 | I34: =IF($G34=1,DEC!I34,0) -> 0 | J34: ALB | K34: 2405 | L34: 4214 | M34: =IF(INTRO!$E$50="","",ROUND($D34*INTRO!$E$50,0)) -> 1525 | N34: 8144 | O34: 0 | P34: 0 | R34: 0 | T34: 0 | U34: 0 | W34: 4214 | X34: 22 | Z34: 0 | AA34: 0
A35: =IF(AND(INTRO!$E$37="Non-endemic",INTRO!$E$41="Non-endemic")," ",IF(COUNTRY_INFO!A35=0," ",COUNTRY_INFO!A35)) -> Swaziland | B35: =IF(AND(INTRO!$E$37="Non-endemic",INTRO!$E$41="Non-endemic")," ",IF(COUNTRY_INFO!B35=0," ",COUNTRY_INFO!B35)) -> Manzini | C35: =IF(AND(INTRO!$E$37="Non-endemic",INTRO!$E$41="Non-endemic")," ",IF(COUNTRY_INFO!C35=0," ",COUNTRY_INFO!C35)) -> Kwaluseni | D35: =IF(AND(INTRO!$E$37="Non-endemic",INTRO!$E$41="Non-endemic"),0,IF(AND(OR(COUNTRY_INFO!$H35=0,COUNTRY_INFO!$H35=4,COUNTRY_INFO!$H35=99),OR(COUNTRY_INFO!$I35=0,COUNTRY_INFO!$I35=4)),0,COUNTRY_INFO!$E35)) -> 5557 | E35: =IF(AND(INTRO!$E$37="Non-endemic",INTRO!$E$41="Non-endemic"),0,IF(AND(OR(COUNTRY_INFO!$H35=0,COUNTRY_INFO!$H35=4,COUNTRY_INFO!$H35=99),OR(COUNTRY_INFO!$I35=0,COUNTRY_INFO!$I35=4)),0,COUNTRY_INFO!$F35)) -> 9735 | F35: 15292 | G35: =IF(AND(INTRO!$E$37="Non-endemic",INTRO!$E$41="Non-endemic"),0,COUNTRY_INFO!N35) -> 0 | H35: =IF(AND(INTRO!$E$37="Non-endemic",INTRO!$E$41="Non-endemic"),0,COUNTRY_INFO!O35) -> 1 | I35: =IF($G35=1,DEC!I35,0) -> 0 | J35: ALB | K35: 5557 | L35: 9735 | M35: =IF(INTRO!$E$50="","",ROUND($D35*INTRO!$E$50,0)) -> 3523 | N35: 18815 | O35: 0 | P35: 0 | R35: 0 | T35: 0 | U35: 0 | W35: 9735 | X35: 49 | Z35: 0 | AA35: 0
A36: =IF(AND(INTRO!$E$37="Non-endemic",INTRO!$E$41="Non-endemic")," ",IF(COUNTRY_INFO!A36=0," ",COUNTRY_INFO!A36)) -> Swaziland | B36: =IF(AND(INTRO!$E$37="Non-endemic",INTRO!$E$41="Non-endemic")," ",IF(COUNTRY_INFO!B36=0," ",COUNTRY_INFO!B36)) -> Manzini | C36: =IF(AND(INTRO!$E$37="Non-endemic",INTRO!$E$41="Non-endemic")," ",IF(COUNTRY_INFO!C36=0," ",COUNTRY_INFO!C36)) -> La-Mgabhi | D36: =IF(AND(INTRO!$E$37="Non-endemic",INTRO!$E$41="Non-endemic"),0,IF(AND(OR(COUNTRY_INFO!$H36=0,COUNTRY_INFO!$H36=4,COUNTRY_INFO!$H36=99),OR(COUNTRY_INFO!$I36=0,COUNTRY_INFO!$I36=4)),0,COUNTRY_INFO!$E36)) -> 1586 | E36: =IF(AND(INTRO!$E$37="Non-endemic",INTRO!$E$41="Non-endemic"),0,IF(AND(OR(COUNTRY_INFO!$H36=0,COUNTRY_INFO!$H36=4,COUNTRY_INFO!$H36=99),OR(COUNTRY_INFO!$I36=0,COUNTRY_INFO!$I36=4)),0,COUNTRY_INFO!$F36)) -> 2778 | F36: 4364 | G36: =IF(AND(INTRO!$E$37="Non-endemic",INTRO!$E$41="Non-endemic"),0,COUNTRY_INFO!N36) -> 0 | H36: =IF(AND(INTRO!$E$37="Non-endemic",INTRO!$E$41="Non-endemic"),0,COUNTRY_INFO!O36) -> 1 | I36: =IF($G36=1,DEC!I36,0) -> 0 | J36: ALB | K36: 1586 | L36: 2778 | M36: =IF(INTRO!$E$50="","",ROUND($D36*INTRO!$E$50,0)) -> 1006 | N36: 5370 | O36: 0 | P36: 0 | R36: 0 | T36: 0 | U36: 0 | W36: 2778 | X36: 14 | Z36: 0 | AA36: 0
A37: =IF(AND(INTRO!$E$37="Non-endemic",INTRO!$E$41="Non-endemic")," ",IF(COUNTRY_INFO!A37=0," ",COUNTRY_INFO!A37)) -> Swaziland | B37: =IF(AND(INTRO!$E$37="Non-endemic",INTRO!$E$41="Non-endemic")," ",IF(COUNTRY_INFO!B37=0," ",COUNTRY_INFO!B37)) -> Manzini | C37: =IF(AND(INTRO!$E$37="Non-endemic",INTRO!$E$41="Non-endemic")," ",IF(COUNTRY_INFO!C37=0," ",COUNTRY_INFO!C37)) -> Lobamba Lomdzala | D37: =IF(AND(INTRO!$E$37="Non-endemic",INTRO!$E$41="Non-endemic"),0,IF(AND(OR(COUNTRY_INFO!$H37=0,COUNTRY_INFO!$H37=4,COUNTRY_INFO!$H37=99),OR(COUNTRY_INFO!$I37=0,COUNTRY_INFO!$I37=4)),0,COUNTRY_INFO!$E37)) -> 2500 | E37: =IF(AND(INTRO!$E$37="Non-endemic",INTRO!$E$41="Non-endemic"),0,IF(AND(OR(COUNTRY_INFO!$H37=0,COUNTRY_INFO!$H37=4,COUNTRY_INFO!$H37=99),OR(COUNTRY_INFO!$I37=0,COUNTRY_INFO!$I37=4)),0,COUNTRY_INFO!$F37)) -> 4380 | F37: 6880 | G37: =IF(AND(INTRO!$E$37="Non-endemic",INTRO!$E$41="Non-endemic"),0,COUNTRY_INFO!N37) -> 0 | H37: =IF(AND(INTRO!$E$37="Non-endemic",INTRO!$E$41="Non-endemic"),0,COUNTRY_INFO!O37) -> 1 | I37: =IF($G37=1,DEC!I37,0) -> 0 | J37: ALB | K37: 2500 | L37: 4380 | M37: =IF(INTRO!$E$50="","",ROUND($D37*INTRO!$E$50,0)) -> 1585 | N37: 8465 | O37: 0 | P37: 0 | R37: 0 | T37: 0 | U37: 0 | W37: 4380 | X37: 22 | Z37: 0 | AA37: 0
A38: =IF(AND(INTRO!$E$37="Non-endemic",INTRO!$E$41="Non-endemic")," ",IF(COUNTRY_INFO!A38=0," ",COUNTRY_INFO!A38)) -> Swaziland | B38: =IF(AND(INTRO!$E$37="Non-endemic",INTRO!$E$41="Non-endemic")," ",IF(COUNTRY_INFO!B38=0," ",COUNTRY_INFO!B38)) -> Manzini | C38: =IF(AND(INTRO!$E$37="Non-endemic",INTRO!$E$41="Non-endemic")," ",IF(COUNTRY_INFO!C38=0," ",COUNTRY_INFO!C38)) -> Ludzeludze | D38: =IF(AND(INTRO!$E$37="Non-endemic",INTRO!$E$41="Non-endemic"),0,IF(AND(OR(COUNTRY_INFO!$H38=0,COUNTRY_INFO!$H38=4,COUNTRY_INFO!$H38=99),OR(COUNTRY_INFO!$I38=0,COUNTRY_INFO!$I38=4)),0,COUNTRY_INFO!$E38)) -> 3771 | E38: =IF(AND(INTRO!$E$37="Non-endemic",INTRO!$E$41="Non-endemic"),0,IF(AND(OR(COUNTRY_INFO!$H38=0,COUNTRY_INFO!$H38=4,COUNTRY_INFO!$H38=99),OR(COUNTRY_INFO!$I38=0,COUNTRY_INFO!$I38=4)),0,COUNTRY_INFO!$F38)) -> 6607 | F38: 10378 | G38: =IF(AND(INTRO!$E$37="Non-endemic",INTRO!$E$41="Non-endemic"),0,COUNTRY_INFO!N38) -> 0 | H38: =IF(AND(INTRO!$E$37="Non-endemic",INTRO!$E$41="Non-endemic"),0,COUNTRY_INFO!O38) -> 1 | I38: =IF($G38=1,DEC!I38,0) -> 0 | J38: ALB | K38: 3771 | L38: 6607 | M38: =IF(INTRO!$E$50="","",ROUND($D38*INTRO!$E$50,0)) -> 2391 | N38: 12769 | O38: 0 | P38: 0 | R38: 0 | T38: 0 | U38: 0 | W38: 6607 | X38: 34 | Z38: 0 | AA38: 0
A39: =IF(AND(INTRO!$E$37="Non-endemic",INTRO!$E$41="Non-endemic")," ",IF(COUNTRY_INFO!A39=0," ",COUNTRY_INFO!A39)) -> Swaziland | B39: =IF(AND(INTRO!$E$37="Non-endemic",INTRO!$E$41="Non-endemic")," ",IF(COUNTRY_INFO!B39=0," ",COUNTRY_INFO!B39)) -> Manzini | C39: =IF(AND(INTRO!$E$37="Non-endemic",INTRO!$E$41="Non-endemic")," ",IF(COUNTRY_INFO!C39=0," ",COUNTRY_INFO!C39)) -> Mafutseni | D39: =IF(AND(INTRO!$E$37="Non-endemic",INTRO!$E$41="Non-endemic"),0,IF(AND(OR(COUNTRY_INFO!$H39=0,COUNTRY_INFO!$H39=4,COUNTRY_INFO!$H39=99),OR(COUNTRY_INFO!$I39=0,COUNTRY_INFO!$I39=4)),0,COUNTRY_INFO!$E39)) -> 2071 | E39: =IF(AND(INTRO!$E$37="Non-endemic",INTRO!$E$41="Non-endemic"),0,IF(AND(OR(COUNTRY_INFO!$H39=0,COUNTRY_INFO!$H39=4,COUNTRY_INFO!$H39=99),OR(COUNTRY_INFO!$I39=0,COUNTRY_INFO!$I39=4)),0,COUNTRY_INFO!$F39)) -> 3629 | F39: 5700 | G39: =IF(AND(INTRO!$E$37="Non-endemic",INTRO!$E$41="Non-endemic"),0,COUNTRY_INFO!N39) -> 0 | H39: =IF(AND(INTRO!$E$37="Non-endemic",INTRO!$E$41="Non-endemic"),0,COUNTRY_INFO!O39) -> 1 | I39: =IF($G39=1,DEC!I39,0) -> 0 | J39: ALB | K39: 2071 | L39: 3629 | M39: =IF(INTRO!$E$50="","",ROUND($D39*INTRO!$E$50,0)) -> 1313 | N39: 7013 | O39: 0 | P39: 0 | R39: 0 | T39: 0 | U39: 0 | W39: 3629 | X39: 19 | Z39: 0 | AA39: 0
A40: =IF(AND(INTRO!$E$37="Non-endemic",INTRO!$E$41="Non-endemic")," ",IF(COUNTRY_INFO!A40=0," ",COUNTRY_INFO!A40)) -> Swaziland | B40: =IF(AND(INTRO!$E$37="Non-endemic",INTRO!$E$41="Non-endemic")," ",IF(COUNTRY_INFO!B40=0," ",COUNTRY_INFO!B40)) -> Manzini | C40: =IF(AND(INTRO!$E$37="Non-endemic",INTRO!$E$41="Non-endemic")," ",IF(COUNTRY_INFO!C40=0," ",COUNTRY_INFO!C40)) -> Mahlangatsha | D40: =IF(AND(INTRO!$E$37="Non-endemic",INTRO!$E$41="Non-endemic"),0,IF(AND(OR(COUNTRY_INFO!$H40=0,COUNTRY_INFO!$H40=4,COUNTRY_INFO!$H40=99),OR(COUNTRY_INFO!$I40=0,COUNTRY_INFO!$I40=4)),0,COUNTRY_INFO!$E40)) -> 2499 | E40: =IF(AND(INTRO!$E$37="Non-endemic",INTRO!$E$41="Non-endemic"),0,IF(AND(OR(COUNTRY_INFO!$H40=0,COUNTRY_INFO!$H40=4,COUNTRY_INFO!$H40=99),OR(COUNTRY_INFO!$I40=0,COUNTRY_INFO!$I40=4)),0,COUNTRY_INFO!$F40)) -> 4378 | F40: 6877 | G40: =IF(AND(INTRO!$E$37="Non-endemic",INTRO!$E$41="Non-endemic"),0,COUNTRY_INFO!N40) -> 0 | H40: =IF(AND(INTRO!$E$37="Non-endemic",INTRO!$E$41="Non-endemic"),0,COUNTRY_INFO!O40) -> 1 | I40: =IF($G40=1,DEC!I40,0) -> 0 | J40: ALB | K40: 2499 | L40: 4378 | M40: =IF(INTRO!$E$50="","",ROUND($D40*INTRO!$E$50,0)) -> 1584 | N40: 8461 | O40: 0 | P40: 0 | R40: 0 | T40: 0 | U40: 0 | W40: 4378 | X40: 22 | Z40: 0 | AA40: 0
A41: =IF(AND(INTRO!$E$37="Non-endemic",INTRO!$E$41="Non-endemic")," ",IF(COUNTRY_INFO!A41=0," ",COUNTRY_INFO!A41)) -> Swaziland | B41: =IF(AND(INTRO!$E$37="Non-endemic",INTRO!$E$41="Non-endemic")," ",IF(COUNTRY_INFO!B41=0," ",COUNTRY_INFO!B41)) -> Manzini | C41: =IF(AND(INTRO!$E$37="Non-endemic",INTRO!$E$41="Non-endemic")," ",IF(COUNTRY_INFO!C41=0," ",COUNTRY_INFO!C41)) -> Mangcongco | D41: =IF(AND(INTRO!$E$37="Non-endemic",INTRO!$E$41="Non-endemic"),0,IF(AND(OR(COUNTRY_INFO!$H41=0,COUNTRY_INFO!$H41=4,COUNTRY_INFO!$H41=99),OR(COUNTRY_INFO!$I41=0,COUNTRY_INFO!$I41=4)),0,COUNTRY_INFO!$E41)) -> 0 | E41: =IF(AND(INTRO!$E$37="Non-endemic",INTRO!$E$41="Non-endemic"),0,IF(AND(OR(COUNTRY_INFO!$H41=0,COUNTRY_INFO!$H41=4,COUNTRY_INFO!$H41=99),OR(COUNTRY_INFO!$I41=0,COUNTRY_INFO!$I41=4)),0,COUNTRY_INFO!$F41)) -> 0 | F41: =SUM(D41:E41) -> 0 | G41: =IF(AND(INTRO!$E$37="Non-endemic",INTRO!$E$41="Non-endemic"),0,COUNTRY_INFO!N41) -> 0 | H41: =IF(AND(INTRO!$E$37="Non-endemic",INTRO!$E$41="Non-endemic"),0,COUNTRY_INFO!O41) -> 1 | I41: =IF($G41=1,DEC!I41,0) -> 0 | J41: ALB | K41: =IF($J41="ALB", IF($H41<>0, IF($I41=0, $D41*$H41, $D41*($H41-$G41)),0),0) -> 0 | L41: =IF($J41="ALB", IF($H41<>0, IF($I41=0, $E41*$H41, $E41*($H41-$G41)),0), 0) -> 0 | M41: =IF(INTRO!$E$50="","",ROUND($D41*INTRO!$E$50,0)) -> 0 | N41: =SUM(K41:M41) -> 0 | O41: =IF($J41="MBD", IF($H41<>0, IF($I41=0, $D41*$H41, $D41*($H41-$G41)),0),0) -> 0 | P41: =IF($J41="MBD", IF($H41<>0,IF($I41=0, $E41*$H41, $E41*($H41-$G41)),0), 0 ) -> 0 | R41: =SUM(O41:Q41) -> 0 | T41: =IF($I41>$S41, $I41-$S41,0) -> 0 | U41: =ROUNDUP($I41/200,0) -> 0 | W41: =IF($L41>$V41,$L41-$V41,0) -> 0 | X41: =ROUNDUP($L41/200,0) -> 0 | Z41: =IF($P41>$Y41,$P41-$Y41,0) -> 0 | AA41: =ROUNDUP($P41/150,0) -> 0
A42: =IF(AND(INTRO!$E$37="Non-endemic",INTRO!$E$41="Non-endemic")," ",IF(COUNTRY_INFO!A42=0," ",COUNTRY_INFO!A42)) -> Swaziland | B42: =IF(AND(INTRO!$E$37="Non-endemic",INTRO!$E$41="Non-endemic")," ",IF(COUNTRY_INFO!B42=0," ",COUNTRY_INFO!B42)) -> Manzini | C42: =IF(AND(INTRO!$E$37="Non-endemic",INTRO!$E$41="Non-endemic")," ",IF(COUNTRY_INFO!C42=0," ",COUNTRY_INFO!C42)) -> Manzini North | D42: =IF(AND(INTRO!$E$37="Non-endemic",INTRO!$E$41="Non-endemic"),0,IF(AND(OR(COUNTRY_INFO!$H42=0,COUNTRY_INFO!$H42=4,COUNTRY_INFO!$H42=99),OR(COUNTRY_INFO!$I42=0,COUNTRY_INFO!$I42=4)),0,COUNTRY_INFO!$E42)) -> 5257 | E42: =IF(AND(INTRO!$E$37="Non-endemic",INTRO!$E$41="Non-endemic"),0,IF(AND(OR(COUNTRY_INFO!$H42=0,COUNTRY_INFO!$H42=4,COUNTRY_INFO!$H42=99),OR(COUNTRY_INFO!$I42=0,COUNTRY_INFO!$I42=4)),0,COUNTRY_INFO!$F42)) -> 9210 | F42: 14467 | G42: =IF(AND(INTRO!$E$37="Non-endemic",INTRO!$E$41="Non-endemic"),0,COUNTRY_INFO!N42) -> 0 | H42: =IF(AND(INTRO!$E$37="Non-endemic",INTRO!$E$41="Non-endemic"),0,COUNTRY_INFO!O42) -> 1 | I42: =IF($G42=1,DEC!I42,0) -> 0 | J42: ALB | K42: 5257 | L42: 9210 | M42: =IF(INTRO!$E$50="","",ROUND($D42*INTRO!$E$50,0)) -> 3333 | N42: 17800 | O42: 0 | P42: 0 | R42: 0 | T42: 0 | U42: 0 | W42: 9210 | X42: 47 | Z42: 0 | AA42: 0
A43: =IF(AND(INTRO!$E$37="Non-endemic",INTRO!$E$41="Non-endemic")," ",IF(COUNTRY_INFO!A43=0," ",COUNTRY_INFO!A43)) -> Swaziland | B43: =IF(AND(INTRO!$E$37="Non-endemic",INTRO!$E$41="Non-endemic")," ",IF(COUNTRY_INFO!B43=0," ",COUNTRY_INFO!B43)) -> Manzini | C43: =IF(AND(INTRO!$E$37="Non-endemic",INTRO!$E$41="Non-endemic")," ",IF(COUNTRY_INFO!C43=0," ",COUNTRY_INFO!C43)) -> Manzini South | D43: =IF(AND(INTRO!$E$37="Non-endemic",INTRO!$E$41="Non-endemic"),0,IF(AND(OR(COUNTRY_INFO!$H43=0,COUNTRY_INFO!$H43=4,COUNTRY_INFO!$H43=99),OR(COUNTRY_INFO!$I43=0,COUNTRY_INFO!$I43=4)),0,COUNTRY_INFO!$E43)) -> 2050 | E43: =IF(AND(INTRO!$E$37="Non-endemic",INTRO!$E$41="Non-endemic"),0,IF(AND(OR(COUNTRY_INFO!$H43=0,COUNTRY_INFO!$H43=4,COUNTRY_INFO!$H43=99),OR(COUNTRY_INFO!$I43=0,COUNTRY_INFO!$I43=4)),0,COUNTRY_INFO!$F43)) -> 3592 | F43: 5642 | G43: =IF(AND(INTRO!$E$37="Non-endemic",INTRO!$E$41="Non-endemic"),0,COUNTRY_INFO!N43) -> 0 | H43: =IF(AND(INTRO!$E$37="Non-endemic",INTRO!$E$41="Non-endemic"),0,COUNTRY_INFO!O43) -> 1 | I43: =IF($G43=1,DEC!I43,0) -> 0 | J43: ALB | K43: 2050 | L43: 3592 | M43: =IF(INTRO!$E$50="","",ROUND($D43*INTRO!$E$50,0)) -> 1300 | N43: 6942 | O43: 0 | P43: 0 | R43: 0 | T43: 0 | U43: 0 | W43: 3592 | X43: 18 | Z43: 0 | AA43: 0
A44: =IF(AND(INTRO!$E$37="Non-endemic",INTRO!$E$41="Non-endemic")," ",IF(COUNTRY_INFO!A44=0," ",COUNTRY_INFO!A44)) -> Swaziland | B44: =IF(AND(INTRO!$E$37="Non-endemic",INTRO!$E$41="Non-endemic")," ",IF(COUNTRY_INFO!B44=0," ",COUNTRY_INFO!B44)) -> Manzini | C44: =IF(AND(INTRO!$E$37="Non-endemic",INTRO!$E$41="Non-endemic")," ",IF(COUNTRY_INFO!C44=0," ",COUNTRY_INFO!C44)) -> Mhlambanyatsi | D44: =IF(AND(INTRO!$E$37="Non-endemic",INTRO!$E$41="Non-endemic"),0,IF(AND(OR(COUNTRY_INFO!$H44=0,COUNTRY_INFO!$H44=4,COUNTRY_INFO!$H44=99),OR(COUNTRY_INFO!$I44=0,COUNTRY_INFO!$I44=4)),0,COUNTRY_INFO!$E44)) -> 1195 | E44: =IF(AND(INTRO!$E$37="Non-endemic",INTRO!$E$41="Non-endemic"),0,IF(AND(OR(COUNTRY_INFO!$H44=0,COUNTRY_INFO!$H44=4,COUNTRY_INFO!$H44=99),OR(COUNTRY_INFO!$I44=0,COUNTRY_INFO!$I44=4)),0,COUNTRY_INFO!$F44)) -> 2093 | F44: 3288 | G44: =IF(AND(INTRO!$E$37="Non-endemic",INTRO!$E$41="Non-endemic"),0,COUNTRY_INFO!N44) -> 0 | H44: =IF(AND(INTRO!$E$37="Non-endemic",INTRO!$E$41="Non-endemic"),0,COUNTRY_INFO!O44) -> 1 | I44: =IF($G44=1,DEC!I44,0) -> 0 | J44: ALB | K44: 1195 | L44: 2093 | M44: =IF(INTRO!$E$50="","",ROUND($D44*INTRO!$E$50,0)) -> 758 | N44: 4046 | O44: 0 | P44: 0 | R44: 0 | T44: 0 | U44: 0 | W44: 2093 | X44: 11 | Z44: 0 | AA44: 0
A45: =IF(AND(INTRO!$E$37="Non-endemic",INTRO!$E$41="Non-endemic")," ",IF(COUNTRY_INFO!A45=0," ",COUNTRY_INFO!A45)) -> Swaziland | B45: =IF(AND(INTRO!$E$37="Non-endemic",INTRO!$E$41="Non-endemic")," ",IF(COUNTRY_INFO!B45=0," ",COUNTRY_INFO!B45)) -> Manzini | C45: =IF(AND(INTRO!$E$37="Non-endemic",INTRO!$E$41="Non-endemic")," ",IF(COUNTRY_INFO!C45=0," ",COUNTRY_INFO!C45)) -> Mkhiweni | D45: =IF(AND(INTRO!$E$37="Non-endemic",INTRO!$E$41="Non-endemic"),0,IF(AND(OR(COUNTRY_INFO!$H45=0,COUNTRY_INFO!$H45=4,COUNTRY_INFO!$H45=99),OR(COUNTRY_INFO!$I45=0,COUNTRY_INFO!$I45=4)),0,COUNTRY_INFO!$E45)) -> 3183 | E45: =IF(AND(INTRO!$E$37="Non-endemic",INTRO!$E$41="Non-endemic"),0,IF(AND(OR(COUNTRY_INFO!$H45=0,COUNTRY_INFO!$H45=4,COUNTRY_INFO!$H45=99),OR(COUNTRY_INFO!$I45=0,COUNTRY_INFO!$I45=4)),0,COUNTRY_INFO!$F45)) -> 5575 | F45: 8758 | G45: =IF(AND(INTRO!$E$37="Non-endemic",INTRO!$E$41="Non-endemic"),0,COUNTRY_INFO!N45) -> 0 | H45: =IF(AND(INTRO!$E$37="Non-endemic",INTRO!$E$41="Non-endemic"),0,COUNTRY_INFO!O45) -> 1 | I45: =IF($G45=1,DEC!I45,0) -> 0 | J45: ALB | K45: 3183 | L45: 5575 | M45: =IF(INTRO!$E$50="","",ROUND($D45*INTRO!$E$50,0)) -> 2018 | N45: 10776 | O45: 0 | P45: 0 | R45: 0 | T45: 0 | U45: 0 | W45: 5575 | X45: 28 | Z45: 0 | AA45: 0
A46: =IF(AND(INTRO!$E$37="Non-endemic",INTRO!$E$41="Non-endemic")," ",IF(COUNTRY_INFO!A46=0," ",COUNTRY_INFO!A46)) -> Swaziland | B46: =IF(AND(INTRO!$E$37="Non-endemic",INTRO!$E$41="Non-endemic")," ",IF(COUNTRY_INFO!B46=0," ",COUNTRY_INFO!B46)) -> Manzini | C46: =IF(AND(INTRO!$E$37="Non-endemic",INTRO!$E$41="Non-endemic")," ",IF(COUNTRY_INFO!C46=0," ",COUNTRY_INFO!C46)) -> Mtfongwaneni | D46: =IF(AND(INTRO!$E$37="Non-endemic",INTRO!$E$41="Non-endemic"),0,IF(AND(OR(COUNTRY_INFO!$H46=0,COUNTRY_INFO!$H46=4,COUNTRY_INFO!$H46=99),OR(COUNTRY_INFO!$I46=0,COUNTRY_INFO!$I46=4)),0,COUNTRY_INFO!$E46)) -> 2301 | E46: =IF(AND(INTRO!$E$37="Non-endemic",INTRO!$E$41="Non-endemic"),0,IF(AND(OR(COUNTRY_INFO!$H46=0,COUNTRY_INFO!$H46=4,COUNTRY_INFO!$H46=99),OR(COUNTRY_INFO!$I46=0,COUNTRY_INFO!$I46=4)),0,COUNTRY_INFO!$F46)) -> 4031 | F46: 6332 | G46: =IF(AND(INTRO!$E$37="Non-endemic",INTRO!$E$41="Non-endemic"),0,COUNTRY_INFO!N46) -> 0 | H46: =IF(AND(INTRO!$E$37="Non-endemic",INTRO!$E$41="Non-endemic"),0,COUNTRY_INFO!O46) -> 1 | I46: =IF($G46=1,DEC!I46,0) -> 0 | J46: ALB | K46: 2301 | L46: 4031 | M46: =IF(INTRO!$E$50="","",ROUND($D46*INTRO!$E$50,0)) -> 1459 | N46: 7791 | O46: 0 | P46: 0 | R46: 0 | T46: 0 | U46: 0 | W46: 4031 | X46: 21 | Z46: 0 | AA46: 0
A47: =IF(AND(INTRO!$E$37="Non-endemic",INTRO!$E$41="Non-endemic")," ",IF(COUNTRY_INFO!A47=0," ",COUNTRY_INFO!A47)) -> Swaziland | B47: =IF(AND(INTRO!$E$37="Non-endemic",INTRO!$E$41="Non-endemic")," ",IF(COUNTRY_INFO!B47=0," ",COUNTRY_INFO!B47)) -> Manzini | C47: =IF(AND(INTRO!$E$37="Non-endemic",INTRO!$E$41="Non-endemic")," ",IF(COUNTRY_INFO!C47=0," ",COUNTRY_INFO!C47)) -> Ngwempisi | D47: =IF(AND(INTRO!$E$37="Non-endemic",INTRO!$E$41="Non-endemic"),0,IF(AND(OR(COUNTRY_INFO!$H47=0,COUNTRY_INFO!$H47=4,COUNTRY_INFO!$H47=99),OR(COUNTRY_INFO!$I47=0,COUNTRY_INFO!$I47=4)),0,COUNTRY_INFO!$E47)) -> 3622 | E47: =IF(AND(INTRO!$E$37="Non-endemic",INTRO!$E$41="Non-endemic"),0,IF(AND(OR(COUNTRY_INFO!$H47=0,COUNTRY_INFO!$H47=4,COUNTRY_INFO!$H47=99),OR(COUNTRY_INFO!$I47=0,COUNTRY_INFO!$I47=4)),0,COUNTRY_INFO!$F47)) -> 6345 | F47: 9967 | G47: =IF(AND(INTRO!$E$37="Non-endemic",INTRO!$E$41="Non-endemic"),0,COUNTRY_INFO!N47) -> 0 | H47: =IF(AND(INTRO!$E$37="Non-endemic",INTRO!$E$41="Non-endemic"),0,COUNTRY_INFO!O47) -> 1 | I47: =IF($G47=1,DEC!I47,0) -> 0 | J47: ALB | K47: 3622 | L47: 6345 | M47: =IF(INTRO!$E$50="","",ROUND($D47*INTRO!$E$50,0)) -> 2296 | N47: 12263 | O47: 0 | P47: 0 | R47: 0 | T47: 0 | U47: 0 | W47: 6345 | X47: 32 | Z47: 0 | AA47: 0
A48: =IF(AND(INTRO!$E$37="Non-endemic",INTRO!$E$41="Non-endemic")," ",IF(COUNTRY_INFO!A48=0," ",COUNTRY_INFO!A48)) -> Swaziland | B48: =IF(AND(INTRO!$E$37="Non-endemic",INTRO!$E$41="Non-endemic")," ",IF(COUNTRY_INFO!B48=0," ",COUNTRY_INFO!B48)) -> Manzini | C48: =IF(AND(INTRO!$E$37="Non-endemic",INTRO!$E$41="Non-endemic")," ",IF(COUNTRY_INFO!C48=0," ",COUNTRY_INFO!C48)) -> Nhlambeni | D48: =IF(AND(INTRO!$E$37="Non-endemic",INTRO!$E$41="Non-endemic"),0,IF(AND(OR(COUNTRY_INFO!$H48=0,COUNTRY_INFO!$H48=4,COUNTRY_INFO!$H48=99),OR(COUNTRY_INFO!$I48=0,COUNTRY_INFO!$I48=4)),0,COUNTRY_INFO!$E48)) -> 0 | E48: =IF(AND(INTRO!$E$37="Non-endemic",INTRO!$E$41="Non-endemic"),0,IF(AND(OR(COUNTRY_INFO!$H48=0,COUNTRY_INFO!$H48=4,COUNTRY_INFO!$H48=99),OR(COUNTRY_INFO!$I48=0,COUNTRY_INFO!$I48=4)),0,COUNTRY_INFO!$F48)) -> 0 | F48: 0 | G48: =IF(AND(INTRO!$E$37="Non-endemic",INTRO!$E$41="Non-endemic"),0,COUNTRY_INFO!N48) -> 0 | H48: =IF(AND(INTRO!$E$37="Non-endemic",INTRO!$E$41="Non-endemic"),0,COUNTRY_INFO!O48) -> 1 | I48: =IF($G48=1,DEC!I48,0) -> 0 | J48: ALB | K48: 0 | L48: 0 | M48: =IF(INTRO!$E$50="","",ROUND($D48*INTRO!$E$50,0)) -> 0 | N48: 0 | O48: 0 | P48: 0 | R48: 0 | T48: 0 | U48: 0 | W48: 0 | X48: 0 | Z48: 0 | AA48: 0
A49: =IF(AND(INTRO!$E$37="Non-endemic",INTRO!$E$41="Non-endemic")," ",IF(COUNTRY_INFO!A49=0," ",COUNTRY_INFO!A49)) -> Swaziland | B49: =IF(AND(INTRO!$E$37="Non-endemic",INTRO!$E$41="Non-endemic")," ",IF(COUNTRY_INFO!B49=0," ",COUNTRY_INFO!B49)) -> Manzini | C49: =IF(AND(INTRO!$E$37="Non-endemic",INTRO!$E$41="Non-endemic")," ",IF(COUNTRY_INFO!C49=0," ",COUNTRY_INFO!C49)) -> Ntondozi | D49: =IF(AND(INTRO!$E$37="Non-endemic",INTRO!$E$41="Non-endemic"),0,IF(AND(OR(COUNTRY_INFO!$H49=0,COUNTRY_INFO!$H49=4,COUNTRY_INFO!$H49=99),OR(COUNTRY_INFO!$I49=0,COUNTRY_INFO!$I49=4)),0,COUNTRY_INFO!$E49)) -> 1964 | E49: =IF(AND(INTRO!$E$37="Non-endemic",INTRO!$E$41="Non-endemic"),0,IF(AND(OR(COUNTRY_INFO!$H49=0,COUNTRY_INFO!$H49=4,COUNTRY_INFO!$H49=99),OR(COUNTRY_INFO!$I49=0,COUNTRY_INFO!$I49=4)),0,COUNTRY_INFO!$F49)) -> 3441 | F49: 5405 | G49: =IF(AND(INTRO!$E$37="Non-endemic",INTRO!$E$41="Non-endemic"),0,COUNTRY_INFO!N49) -> 0 | H49: =IF(AND(INTRO!$E$37="Non-endemic",INTRO!$E$41="Non-endemic"),0,COUNTRY_INFO!O49) -> 1 | I49: =IF($G49=1,DEC!I49,0) -> 0 | J49: ALB | K49: 1964 | L49: 3441 | M49: =IF(INTRO!$E$50="","",ROUND($D49*INTRO!$E$50,0)) -> 1245 | N49: 6650 | O49: 0 | P49: 0 | R49: 0 | T49: 0 | U49: 0 | W49: 3441 | X49: 18 | Z49: 0 | AA49: 0
A50: =IF(AND(INTRO!$E$37="Non-endemic",INTRO!$E$41="Non-endemic")," ",IF(COUNTRY_INFO!A50=0," ",COUNTRY_INFO!A50)) -> Swaziland | B50: =IF(AND(INTRO!$E$37="Non-endemic",INTRO!$E$41="Non-endemic")," ",IF(COUNTRY_INFO!B50=0," ",COUNTRY_INFO!B50)) -> Shiselweni | C50: =IF(AND(INTRO!$E$37="Non-endemic",INTRO!$E$41="Non-endemic")," ",IF(COUNTRY_INFO!C50=0," ",COUNTRY_INFO!C50)) -> Gege | D50: =IF(AND(INTRO!$E$37="Non-endemic",INTRO!$E$41="Non-endemic"),0,IF(AND(OR(COUNTRY_INFO!$H50=0,COUNTRY_INFO!$H50=4,COUNTRY_INFO!$H50=99),OR(COUNTRY_INFO!$I50=0,COUNTRY_INFO!$I50=4)),0,COUNTRY_INFO!$E50)) -> 2420 | E50: =IF(AND(INTRO!$E$37="Non-endemic",INTRO!$E$41="Non-endemic"),0,IF(AND(OR(COUNTRY_INFO!$H50=0,COUNTRY_INFO!$H50=4,COUNTRY_INFO!$H50=99),OR(COUNTRY_INFO!$I50=0,COUNTRY_INFO!$I50=4)),0,COUNTRY_INFO!$F50)) -> 4240 | F50: 6660 | G50: =IF(AND(INTRO!$E$37="Non-endemic",INTRO!$E$41="Non-endemic"),0,COUNTRY_INFO!N50) -> 0 | H50: =IF(AND(INTRO!$E$37="Non-endemic",INTRO!$E$41="Non-endemic"),0,COUNTRY_INFO!O50) -> 1 | I50: =IF($G50=1,DEC!I50,0) -> 0 | J50: ALB | K50: 2420 | L50: 4240 | M50: =IF(INTRO!$E$50="","",ROUND($D50*INTRO!$E$50,0)) -> 1534 | N50: 8194 | O50: 0 | P50: 0 | R50: 0 | T50: 0 | U50: 0 | W50: 4240 | X50: 22 | Z50: 0 | AA50: 0
A51: =IF(AND(INTRO!$E$37="Non-endemic",INTRO!$E$41="Non-endemic")," ",IF(COUNTRY_INFO!A51=0," ",COUNTRY_INFO!A51)) -> Swaziland | B51: =IF(AND(INTRO!$E$37="Non-endemic",INTRO!$E$41="Non-endemic")," ",IF(COUNTRY_INFO!B51=0," ",COUNTRY_INFO!B51)) -> Shiselweni | C51: =IF(AND(INTRO!$E$37="Non-endemic",INTRO!$E$41="Non-endemic")," ",IF(COUNTRY_INFO!C51=0," ",COUNTRY_INFO!C51)) -> Hosea | D51: =IF(AND(INTRO!$E$37="Non-endemic",INTRO!$E$41="Non-endemic"),0,IF(AND(OR(COUNTRY_INFO!$H51=0,COUNTRY_INFO!$H51=4,COUNTRY_INFO!$H51=99),OR(COUNTRY_INFO!$I51=0,COUNTRY_INFO!$I51=4)),0,COUNTRY_INFO!$E51)) -> 0 | E51: =IF(AND(INTRO!$E$37="Non-endemic",INTRO!$E$41="Non-endemic"),0,IF(AND(OR(COUNTRY_INFO!$H51=0,COUNTRY_INFO!$H51=4,COUNTRY_INFO!$H51=99),OR(COUNTRY_INFO!$I51=0,COUNTRY_INFO!$I51=4)),0,COUNTRY_INFO!$F51)) -> 0 | F51: 0 | G51: =IF(AND(INTRO!$E$37="Non-endemic",INTRO!$E$41="Non-endemic"),0,COUNTRY_INFO!N51) -> 0 | H51: =IF(AND(INTRO!$E$37="Non-endemic",INTRO!$E$41="Non-endemic"),0,COUNTRY_INFO!O51) -> 1 | I51: =IF($G51=1,DEC!I51,0) -> 0 | J51: ALB | K51: 0 | L51: 0 | M51: =IF(INTRO!$E$50="","",ROUND($D51*INTRO!$E$50,0)) -> 0 | N51: 0 | O51: 0 | P51: 0 | R51: 0 | T51: 0 | U51: 0 | W51: 0 | X51: 0 | Z51: 0 | AA51: 0
A52: =IF(AND(INTRO!$E$37="Non-endemic",INTRO!$E$41="Non-endemic")," ",IF(COUNTRY_INFO!A52=0," ",COUNTRY_INFO!A52)) -> Swaziland | B52: =IF(AND(INTRO!$E$37="Non-endemic",INTRO!$E$41="Non-endemic")," ",IF(COUNTRY_INFO!B52=0," ",COUNTRY_INFO!B52)) -> Shiselweni | C52: =IF(AND(INTRO!$E$37="Non-endemic",INTRO!$E$41="Non-endemic")," ",IF(COUNTRY_INFO!C52=0," ",COUNTRY_INFO!C52)) -> Kubuta | D52: =IF(AND(INTRO!$E$37="Non-endemic",INTRO!$E$41="Non-endemic"),0,IF(AND(OR(COUNTRY_INFO!$H52=0,COUNTRY_INFO!$H52=4,COUNTRY_INFO!$H52=99),OR(COUNTRY_INFO!$I52=0,COUNTRY_INFO!$I52=4)),0,COUNTRY_INFO!$E52)) -> 921 | E52: =IF(AND(INTRO!$E$37="Non-endemic",INTRO!$E$41="Non-endemic"),0,IF(AND(OR(COUNTRY_INFO!$H52=0,COUNTRY_INFO!$H52=4,COUNTRY_INFO!$H52=99),OR(COUNTRY_INFO!$I52=0,COUNTRY_INFO!$I52=4)),0,COUNTRY_INFO!$F52)) -> 1613 | F52: 2534 | G52: =IF(AND(INTRO!$E$37="Non-endemic",INTRO!$E$41="Non-endemic"),0,COUNTRY_INFO!N52) -> 0 | H52: =IF(AND(INTRO!$E$37="Non-endemic",INTRO!$E$41="Non-endemic"),0,COUNTRY_INFO!O52) -> 1 | I52: =IF($G52=1,DEC!I52,0) -> 0 | J52: ALB | K52: 921 | L52: 1613 | M52: =IF(INTRO!$E$50="","",ROUND($D52*INTRO!$E$50,0)) -> 584 | N52: 3118 | O52: 0 | P52: 0 | R52: 0 | T52: 0 | U52: 0 | W52: 1613 | X52: 9 | Z52: 0 | AA52: 0
A53: =IF(AND(INTRO!$E$37="Non-endemic",INTRO!$E$41="Non-endemic")," ",IF(COUNTRY_INFO!A53=0," ",COUNTRY_INFO!A53)) -> Swaziland | B53: =IF(AND(INTRO!$E$37="Non-endemic",INTRO!$E$41="Non-endemic")," ",IF(COUNTRY_INFO!B53=0," ",COUNTRY_INFO!B53)) -> Shiselweni | C53: =IF(AND(INTRO!$E$37="Non-endemic",INTRO!$E$41="Non-endemic")," ",IF(COUNTRY_INFO!C53=0," ",COUNTRY_INFO!C53)) -> Maseyisini | D53: =IF(AND(INTRO!$E$37="Non-endemic",INTRO!$E$41="Non-endemic"),0,IF(AND(OR(COUNTRY_INFO!$H53=0,COUNTRY_INFO!$H53=4,COUNTRY_INFO!$H53=99),OR(COUNTRY_INFO!$I53=0,COUNTRY_INFO!$I53=4)),0,COUNTRY_INFO!$E53)) -> 3720 | E53: =IF(AND(INTRO!$E$37="Non-endemic",INTRO!$E$41="Non-endemic"),0,IF(AND(OR(COUNTRY_INFO!$H53=0,COUNTRY_INFO!$H53=4,COUNTRY_INFO!$H53=99),OR(COUNTRY_INFO!$I53=0,COUNTRY_INFO!$I53=4)),0,COUNTRY_INFO!$F53)) -> 6516 | F53: 10236 | G53: =IF(AND(INTRO!$E$37="Non-endemic",INTRO!$E$41="Non-endemic"),0,COUNTRY_INFO!N53) -> 0 | H53: =IF(AND(INTRO!$E$37="Non-endemic",INTRO!$E$41="Non-endemic"),0,COUNTRY_INFO!O53) -> 1 | I53: =IF($G53=1,DEC!I53,0) -> 0 | J53: ALB | K53: 3720 | L53: 6516 | M53: =IF(INTRO!$E$50="","",ROUND($D53*INTRO!$E$50,0)) -> 2358 | N53: 12594 | O53: 0 | P53: 0 | R53: 0 | T53: 0 | U53: 0 | W53: 6516 | X53: 33 | Z53: 0 | AA53: 0
A54: =IF(AND(INTRO!$E$37="Non-endemic",INTRO!$E$41="Non-endemic")," ",IF(COUNTRY_INFO!A54=0," ",COUNTRY_INFO!A54)) -> Swaziland | B54: =IF(AND(INTRO!$E$37="Non-endemic",INTRO!$E$41="Non-endemic")," ",IF(COUNTRY_INFO!B54=0," ",COUNTRY_INFO!B54)) -> Shiselweni | C54: =IF(AND(INTRO!$E$37="Non-endemic",INTRO!$E$41="Non-endemic")," ",IF(COUNTRY_INFO!C54=0," ",COUNTRY_INFO!C54)) -> Matsanjeni South | D54: =IF(AND(INTRO!$E$37="Non-endemic",INTRO!$E$41="Non-endemic"),0,IF(AND(OR(COUNTRY_INFO!$H54=0,COUNTRY_INFO!$H54=4,COUNTRY_INFO!$H54=99),OR(COUNTRY_INFO!$I54=0,COUNTRY_INFO!$I54=4)),0,COUNTRY_INFO!$E54)) -> 2160 | E54: =IF(AND(INTRO!$E$37="Non-endemic",INTRO!$E$41="Non-endemic"),0,IF(AND(OR(COUNTRY_INFO!$H54=0,COUNTRY_INFO!$H54=4,COUNTRY_INFO!$H54=99),OR(COUNTRY_INFO!$I54=0,COUNTRY_INFO!$I54=4)),0,COUNTRY_INFO!$F54)) -> 3783 | F54: 5943 | G54: =IF(AND(INTRO!$E$37="Non-endemic",INTRO!$E$41="Non-endemic"),0,COUNTRY_INFO!N54) -> 0 | H54: =IF(AND(INTRO!$E$37="Non-endemic",INTRO!$E$41="Non-endemic"),0,COUNTRY_INFO!O54) -> 1 | I54: =IF($G54=1,DEC!I54,0) -> 0 | J54: ALB | K54: 2160 | L54: 3783 | M54: =IF(INTRO!$E$50="","",ROUND($D54*INTRO!$E$50,0)) -> 1369 | N54: 7312 | O54: 0 | P54: 0 | R54: 0 | T54: 0 | U54: 0 | W54: 3783 | X54: 19 | Z54: 0 | AA54: 0
A55: =IF(AND(INTRO!$E$37="Non-endemic",INTRO!$E$41="Non-endemic")," ",IF(COUNTRY_INFO!A55=0," ",COUNTRY_INFO!A55)) -> Swaziland | B55: =IF(AND(INTRO!$E$37="Non-endemic",INTRO!$E$41="Non-endemic")," ",IF(COUNTRY_INFO!B55=0," ",COUNTRY_INFO!B55)) -> Shiselweni | C55: =IF(AND(INTRO!$E$37="Non-endemic",INTRO!$E$41="Non-endemic")," ",IF(COUNTRY_INFO!C55=0," ",COUNTRY_INFO!C55)) -> Mtsambama | D55: =IF(AND(INTRO!$E$37="Non-endemic",INTRO!$E$41="Non-endemic"),0,IF(AND(OR(COUNTRY_INFO!$H55=0,COUNTRY_INFO!$H55=4,COUNTRY_INFO!$H55=99),OR(COUNTRY_INFO!$I55=0,COUNTRY_INFO!$I55=4)),0,COUNTRY_INFO!$E55)) -> 2514 | E55: =IF(AND(INTRO!$E$37="Non-endemic",INTRO!$E$41="Non-endemic"),0,IF(AND(OR(COUNTRY_INFO!$H55=0,COUNTRY_INFO!$H55=4,COUNTRY_INFO!$H55=99),OR(COUNTRY_INFO!$I55=0,COUNTRY_INFO!$I55=4)),0,COUNTRY_INFO!$F55)) -> 4404 | F55: 6918 | G55: =IF(AND(INTRO!$E$37="Non-endemic",INTRO!$E$41="Non-endemic"),0,COUNTRY_INFO!N55) -> 0 | H55: =IF(AND(INTRO!$E$37="Non-endemic",INTRO!$E$41="Non-endemic"),0,COUNTRY_INFO!O55) -> 1 | I55: =IF($G55=1,DEC!I55,0) -> 0 | J55: ALB | K55: 2514 | L55: 4404 | M55: =IF(INTRO!$E$50="","",ROUND($D55*INTRO!$E$50,0)) -> 1594 | N55: 8512 | O55: 0 | P55: 0 | R55: 0 | T55: 0 | U55: 0 | W55: 4404 | X55: 23 | Z55: 0 | AA55: 0
A56: =IF(AND(INTRO!$E$37="Non-endemic",INTRO!$E$41="Non-endemic")," ",IF(COUNTRY_INFO!A56=0," ",COUNTRY_INFO!A56)) -> Swaziland | B56: =IF(AND(INTRO!$E$37="Non-endemic",INTRO!$E$41="Non-endemic")," ",IF(COUNTRY_INFO!B56=0," ",COUNTRY_INFO!B56)) -> Shiselweni | C56: =IF(AND(INTRO!$E$37="Non-endemic",INTRO!$E$41="Non-endemic")," ",IF(COUNTRY_INFO!C56=0," ",COUNTRY_INFO!C56)) -> Ngudzeni | D56: =IF(AND(INTRO!$E$37="Non-endemic",INTRO!$E$41="Non-endemic"),0,IF(AND(OR(COUNTRY_INFO!$H56=0,COUNTRY_INFO!$H56=4,COUNTRY_INFO!$H56=99),OR(COUNTRY_INFO!$I56=0,COUNTRY_INFO!$I56=4)),0,COUNTRY_INFO!$E56)) -> 1071 | E56: =IF(AND(INTRO!$E$37="Non-endemic",INTRO!$E$41="Non-endemic"),0,IF(AND(OR(COUNTRY_INFO!$H56=0,COUNTRY_INFO!$H56=4,COUNTRY_INFO!$H56=99),OR(COUNTRY_INFO!$I56=0,COUNTRY_INFO!$I56=4)),0,COUNTRY_INFO!$F56)) -> 1877 | F56: 2948 | G56: =IF(AND(INTRO!$E$37="Non-endemic",INTRO!$E$41="Non-endemic"),0,COUNTRY_INFO!N56) -> 0 | H56: =IF(AND(INTRO!$E$37="Non-endemic",INTRO!$E$41="Non-endemic"),0,COUNTRY_INFO!O56) -> 1 | I56: =IF($G56=1,DEC!I56,0) -> 0 | J56: ALB | K56: 1071 | L56: 1877 | M56: =IF(INTRO!$E$50="","",ROUND($D56*INTRO!$E$50,0)) -> 679 | N56: 3627 | O56: 0 | P56: 0 | R56: 0 | T56: 0 | U56: 0 | W56: 1877 | X56: 10 | Z56: 0 | AA56: 0
A57: =IF(AND(INTRO!$E$37="Non-endemic",INTRO!$E$41="Non-endemic")," ",IF(COUNTRY_INFO!A57=0," ",COUNTRY_INFO!A57)) -> Swaziland | B57: =IF(AND(INTRO!$E$37="Non-endemic",INTRO!$E$41="Non-endemic")," ",IF(COUNTRY_INFO!B57=0," ",COUNTRY_INFO!B57)) -> Shiselweni | C57: =IF(AND(INTRO!$E$37="Non-endemic",INTRO!$E$41="Non-endemic")," ",IF(COUNTRY_INFO!C57=0," ",COUNTRY_INFO!C57)) -> Nkwene | D57: =IF(AND(INTRO!$E$37="Non-endemic",INTRO!$E$41="Non-endemic"),0,IF(AND(OR(COUNTRY_INFO!$H57=0,COUNTRY_INFO!$H57=4,COUNTRY_INFO!$H57=99),OR(COUNTRY_INFO!$I57=0,COUNTRY_INFO!$I57=4)),0,COUNTRY_INFO!$E57)) -> 953 | E57: =IF(AND(INTRO!$E$37="Non-endemic",INTRO!$E$41="Non-endemic"),0,IF(AND(OR(COUNTRY_INFO!$H57=0,COUNTRY_INFO!$H57=4,COUNTRY_INFO!$H57=99),OR(COUNTRY_INFO!$I57=0,COUNTRY_INFO!$I57=4)),0,COUNTRY_INFO!$F57)) -> 1670 | F57: 2623 | G57: =IF(AND(INTRO!$E$37="Non-endemic",INTRO!$E$41="Non-endemic"),0,COUNTRY_INFO!N57) -> 0 | H57: =IF(AND(INTRO!$E$37="Non-endemic",INTRO!$E$41="Non-endemic"),0,COUNTRY_INFO!O57) -> 1 | I57: =IF($G57=1,DEC!I57,0) -> 0 | J57: ALB | K57: 953 | L57: 1670 | M57: =IF(INTRO!$E$50="","",ROUND($D57*INTRO!$E$50,0)) -> 604 | N57: 3227 | O57: 0 | P57: 0 | R57: 0 | T57: 0 | U57: 0 | W57: 1670 | X57: 9 | Z57: 0 | AA57: 0
A58: =IF(AND(INTRO!$E$37="Non-endemic",INTRO!$E$41="Non-endemic")," ",IF(COUNTRY_INFO!A58=0," ",COUNTRY_INFO!A58)) -> Swaziland | B58: =IF(AND(INTRO!$E$37="Non-endemic",INTRO!$E$41="Non-endemic")," ",IF(COUNTRY_INFO!B58=0," ",COUNTRY_INFO!B58)) -> Shiselweni | C58: =IF(AND(INTRO!$E$37="Non-endemic",INTRO!$E$41="Non-endemic")," ",IF(COUNTRY_INFO!C58=0," ",COUNTRY_INFO!C58)) -> Sandleni | D58: =IF(AND(INTRO!$E$37="Non-endemic",INTRO!$E$41="Non-endemic"),0,IF(AND(OR(COUNTRY_INFO!$H58=0,COUNTRY_INFO!$H58=4,COUNTRY_INFO!$H58=99),OR(COUNTRY_INFO!$I58=0,COUNTRY_INFO!$I58=4)),0,COUNTRY_INFO!$E58)) -> 1757 | E58: =IF(AND(INTRO!$E$37="Non-endemic",INTRO!$E$41="Non-endemic"),0,IF(AND(OR(COUNTRY_INFO!$H58=0,COUNTRY_INFO!$H58=4,COUNTRY_INFO!$H58=99),OR(COUNTRY_INFO!$I58=0,COUNTRY_INFO!$I58=4)),0,COUNTRY_INFO!$F58)) -> 3078 | F58: 4835 | G58: =IF(AND(INTRO!$E$37="Non-endemic",INTRO!$E$41="Non-endemic"),0,COUNTRY_INFO!N58) -> 0 | H58: =IF(AND(INTRO!$E$37="Non-endemic",INTRO!$E$41="Non-endemic"),0,COUNTRY_INFO!O58) -> 1 | I58: =IF($G58=1,DEC!I58,0) -> 0 | J58: ALB | K58: 1757 | L58: 3078 | M58: =IF(INTRO!$E$50="","",ROUND($D58*INTRO!$E$50,0)) -> 1114 | N58: 5949 | O58: 0 | P58: 0 | R58: 0 | T58: 0 | U58: 0 | W58: 3078 | X58: 16 | Z58: 0 | AA58: 0
A59: =IF(AND(INTRO!$E$37="Non-endemic",INTRO!$E$41="Non-endemic")," ",IF(COUNTRY_INFO!A59=0," ",COUNTRY_INFO!A59)) -> Swaziland | B59: =IF(AND(INTRO!$E$37="Non-endemic",INTRO!$E$41="Non-endemic")," ",IF(COUNTRY_INFO!B59=0," ",COUNTRY_INFO!B59)) -> Shiselweni | C59: =IF(AND(INTRO!$E$37="Non-endemic",INTRO!$E$41="Non-endemic")," ",IF(COUNTRY_INFO!C59=0," ",COUNTRY_INFO!C59)) -> Shiselweni 1 | D59: =IF(AND(INTRO!$E$37="Non-endemic",INTRO!$E$41="Non-endemic"),0,IF(AND(OR(COUNTRY_INFO!$H59=0,COUNTRY_INFO!$H59=4,COUNTRY_INFO!$H59=99),OR(COUNTRY_INFO!$I59=0,COUNTRY_INFO!$I59=4)),0,COUNTRY_INFO!$E59)) -> 1705 | E59: =IF(AND(INTRO!$E$37="Non-endemic",INTRO!$E$41="Non-endemic"),0,IF(AND(OR(COUNTRY_INFO!$H59=0,COUNTRY_INFO!$H59=4,COUNTRY_INFO!$H59=99),OR(COUNTRY_INFO!$I59=0,COUNTRY_INFO!$I59=4)),0,COUNTRY_INFO!$F59)) -> 2988 | F59: 4693 | G59: =IF(AND(INTRO!$E$37="Non-endemic",INTRO!$E$41="Non-endemic"),0,COUNTRY_INFO!N59) -> 0 | H59: =IF(AND(INTRO!$E$37="Non-endemic",INTRO!$E$41="Non-endemic"),0,COUNTRY_INFO!O59) -> 1 | I59: =IF($G59=1,DEC!I59,0) -> 0 | J59: ALB | K59: 1705 | L59: 2988 | M59: =IF(INTRO!$E$50="","",ROUND($D59*INTRO!$E$50,0)) -> 1081 | N59: 5774 | O59: 0 | P59: 0 | R59: 0 | T59: 0 | U59: 0 | W59: 2988 | X59: 15 | Z59: 0 | AA59: 0
A60: =IF(AND(INTRO!$E$37="Non-endemic",INTRO!$E$41="Non-endemic")," ",IF(COUNTRY_INFO!A60=0," ",COUNTRY_INFO!A60)) -> Swaziland | B60: =IF(AND(INTRO!$E$37="Non-endemic",INTRO!$E$41="Non-endemic")," ",IF(COUNTRY_INFO!B60=0," ",COUNTRY_INFO!B60)) -> Shiselweni | C60: =IF(AND(INTRO!$E$37="Non-endemic",INTRO!$E$41="Non-endemic")," ",IF(COUNTRY_INFO!C60=0," ",COUNTRY_INFO!C60)) -> Shiselweni 2 | D60: =IF(AND(INTRO!$E$37="Non-endemic",INTRO!$E$41="Non-endemic"),0,IF(AND(OR(COUNTRY_INFO!$H60=0,COUNTRY_INFO!$H60=4,COUNTRY_INFO!$H60=99),OR(COUNTRY_INFO!$I60=0,COUNTRY_INFO!$I60=4)),0,COUNTRY_INFO!$E60)) -> 3467 | E60: =IF(AND(INTRO!$E$37="Non-endemic",INTRO!$E$41="Non-endemic"),0,IF(AND(OR(COUNTRY_INFO!$H60=0,COUNTRY_INFO!$H60=4,COUNTRY_INFO!$H60=99),OR(COUNTRY_INFO!$I60=0,COUNTRY_INFO!$I60=4)),0,COUNTRY_INFO!$F60)) -> 6074 | F60: 9541 | G60: =IF(AND(INTRO!$E$37="Non-endemic",INTRO!$E$41="Non-endemic"),0,COUNTRY_INFO!N60) -> 0 | H60: =IF(AND(INTRO!$E$37="Non-endemic",INTRO!$E$41="Non-endemic"),0,COUNTRY_INFO!O60) -> 1 | I60: =IF($G60=1,DEC!I60,0) -> 0 | J60: ALB | K60: 3467 | L60: 6074 | M60: =IF(INTRO!$E$50="","",ROUND($D60*INTRO!$E$50,0)) -> 2198 | N60: 11739 | O60: 0 | P60: 0 | R60: 0 | T60: 0 | U60: 0 | W60: 6074 | X60: 31 | Z60: 0 | AA60: 0
A61: =IF(AND(INTRO!$E$37="Non-endemic",INTRO!$E$41="Non-endemic")," ",IF(COUNTRY_INFO!A61=0," ",COUNTRY_INFO!A61)) -> Swaziland | B61: =IF(AND(INTRO!$E$37="Non-endemic",INTRO!$E$41="Non-endemic")," ",IF(COUNTRY_INFO!B61=0," ",COUNTRY_INFO!B61)) -> Shiselweni | C61: =IF(AND(INTRO!$E$37="Non-endemic",INTRO!$E$41="Non-endemic")," ",IF(COUNTRY_INFO!C61=0," ",COUNTRY_INFO!C61)) -> Sigwe | D61: =IF(AND(INTRO!$E$37="Non-endemic",INTRO!$E$41="Non-endemic"),0,IF(AND(OR(COUNTRY_INFO!$H61=0,COUNTRY_INFO!$H61=4,COUNTRY_INFO!$H61=99),OR(COUNTRY_INFO!$I61=0,COUNTRY_INFO!$I61=4)),0,COUNTRY_INFO!$E61)) -> 1566 | E61: =IF(AND(INTRO!$E$37="Non-endemic",INTRO!$E$41="Non-endemic"),0,IF(AND(OR(COUNTRY_INFO!$H61=0,COUNTRY_INFO!$H61=4,COUNTRY_INFO!$H61=99),OR(COUNTRY_INFO!$I61=0,COUNTRY_INFO!$I61=4)),0,COUNTRY_INFO!$F61)) -> 2744 | F61: 4310 | G61: =IF(AND(INTRO!$E$37="Non-endemic",INTRO!$E$41="Non-endemic"),0,COUNTRY_INFO!N61) -> 0 | H61: =IF(AND(INTRO!$E$37="Non-endemic",INTRO!$E$41="Non-endemic"),0,COUNTRY_INFO!O61) -> 1 | I61: =IF($G61=1,DEC!I61,0) -> 0 | J61: ALB | K61: 1566 | L61: 2744 | M61: =IF(INTRO!$E$50="","",ROUND($D61*INTRO!$E$50,0)) -> 993 | N61: 5303 | O61: 0 | P61: 0 | R61: 0 | T61: 0 | U61: 0 | W61: 2744 | X61: 14 | Z61: 0 | AA61: 0
A62: =IF(AND(INTRO!$E$37="Non-endemic",INTRO!$E$41="Non-endemic")," ",IF(COUNTRY_INFO!A62=0," ",COUNTRY_INFO!A62)) -> Swaziland | B62: =IF(AND(INTRO!$E$37="Non-endemic",INTRO!$E$41="Non-endemic")," ",IF(COUNTRY_INFO!B62=0," ",COUNTRY_INFO!B62)) -> Shiselweni | C62: =IF(AND(INTRO!$E$37="Non-endemic",INTRO!$E$41="Non-endemic")," ",IF(COUNTRY_INFO!C62=0," ",COUNTRY_INFO!C62)) -> Somntongo | D62: =IF(AND(INTRO!$E$37="Non-endemic",INTRO!$E$41="Non-endemic"),0,IF(AND(OR(COUNTRY_INFO!$H62=0,COUNTRY_INFO!$H62=4,COUNTRY_INFO!$H62=99),OR(COUNTRY_INFO!$I62=0,COUNTRY_INFO!$I62=4)),0,COUNTRY_INFO!$E62)) -> 726 | E62: =IF(AND(INTRO!$E$37="Non-endemic",INTRO!$E$41="Non-endemic"),0,IF(AND(OR(COUNTRY_INFO!$H62=0,COUNTRY_INFO!$H62=4,COUNTRY_INFO!$H62=99),OR(COUNTRY_INFO!$I62=0,COUNTRY_INFO!$I62=4)),0,COUNTRY_INFO!$F62)) -> 1271 | F62: 1997 | G62: =IF(AND(INTRO!$E$37="Non-endemic",INTRO!$E$41="Non-endemic"),0,COUNTRY_INFO!N62) -> 0 | H62: =IF(AND(INTRO!$E$37="Non-endemic",INTRO!$E$41="Non-endemic"),0,COUNTRY_INFO!O62) -> 1 | I62: =IF($G62=1,DEC!I62,0) -> 0 | J62: ALB | K62: 726 | L62: 1271 | M62: =IF(INTRO!$E$50="","",ROUND($D62*INTRO!$E$50,0)) -> 460 | N62: 2457 | O62: 0 | P62: 0 | R62: 0 | T62: 0 | U62: 0 | W62: 1271 | X62: 7 | Z62: 0 | AA62: 0
A63: =IF(AND(INTRO!$E$37="Non-endemic",INTRO!$E$41="Non-endemic")," ",IF(COUNTRY_INFO!A63=0," ",COUNTRY_INFO!A63)) -> Swaziland | B63: =IF(AND(INTRO!$E$37="Non-endemic",INTRO!$E$41="Non-endemic")," ",IF(COUNTRY_INFO!B63=0," ",COUNTRY_INFO!B63)) -> Shiselweni | C63: =IF(AND(INTRO!$E$37="Non-endemic",INTRO!$E$41="Non-endemic")," ",IF(COUNTRY_INFO!C63=0," ",COUNTRY_INFO!C63)) -> Zombodze Emuva | D63: =IF(AND(INTRO!$E$37="Non-endemic",INTRO!$E$41="Non-endemic"),0,IF(AND(OR(COUNTRY_INFO!$H63=0,COUNTRY_INFO!$H63=4,COUNTRY_INFO!$H63=99),OR(COUNTRY_INFO!$I63=0,COUNTRY_INFO!$I63=4)),0,COUNTRY_INFO!$E63)) -> 2137 | E63: =IF(AND(INTRO!$E$37="Non-endemic",INTRO!$E$41="Non-endemic"),0,IF(AND(OR(COUNTRY_INFO!$H63=0,COUNTRY_INFO!$H63=4,COUNTRY_INFO!$H63=99),OR(COUNTRY_INFO!$I63=0,COUNTRY_INFO!$I63=4)),0,COUNTRY_INFO!$F63)) -> 3744 | F63: 5881 | G63: =IF(AND(INTRO!$E$37="Non-endemic",INTRO!$E$41="Non-endemic"),0,COUNTRY_INFO!N63) -> 0 | H63: =IF(AND(INTRO!$E$37="Non-endemic",INTRO!$E$41="Non-endemic"),0,COUNTRY_INFO!O63) -> 1 | I63: =IF($G63=1,DEC!I63,0) -> 0 | J63: ALB | K63: 2137 | L63: 3744 | M63: =IF(INTRO!$E$50="","",ROUND($D63*INTRO!$E$50,0)) -> 1355 | N63: 7236 | O63: 0 | P63: 0 | R63: 0 | T63: 0 | U63: 0 | W63: 3744 | X63: 19 | Z63: 0 | AA63: 0

Sheet PZQ
A1: Praziquantel (PZQ)
A2: Administrative structure, eligible population by age group, treatment plan and information about tablets
A4: TOTAL | D4: =SUM(D$9:D$1000) -> 105036.55 | E4: =SUM(E$9:E$1000) -> 85557 | F4: =SUM(F$9:F$1000) -> 190593.55 | I4: =SUM(I$9:I$1000) -> 237302 | J4: 0 | K4: 85557 | L4: 322859 | M4: 593255 | N4: 256671 | O4: 593255 | P4: 0 | Q4: 593255 | R4: 621
A6: Country administrative structure | D6: Population requiring treatment with PZQ | G6: Treatment plan | I6: Target population | M6: Praziquantel (PZQ)
A7: Country | B7: Province/State | C7: District | D7: SAC | E7: Adults | F7: Total | G7: SCH | H7: All SAC targeted? | I7: SAC | J7: SAC at lower level | K7: Adults | L7: Total | M7: SAC | N7: Adults | O7: Total required for SAC | P7: Remaining in stock | Q7: Tablets to be procured | R7: Bottle (600 mg) 1000 tablets
A9: =IF(INTRO!$E$43="Non-endemic"," ", IF(COUNTRY_INFO!A9=0," ",COUNTRY_INFO!A9)) -> Swaziland | B9: =IF(INTRO!$E$43="Non-endemic"," ", IF(COUNTRY_INFO!B9=0," ",COUNTRY_INFO!B9)) -> Hhohho | C9: =IF(INTRO!$E$43="Non-endemic"," ", IF(COUNTRY_INFO!C9=0," ",COUNTRY_INFO!C9)) -> Hhukwini | D9: =IF(INTRO!$E$43="Non-endemic", 0, IF(COUNTRY_INFO!$J9>0, IF(COUNTRY_INFO!$J9=4, 0, IF(COUNTRY_INFO!$J9=1, COUNTRY_INFO!$F9*0.33, IF(COUNTRY_INFO!$J9=2, COUNTRY_INFO!$F9*0.5, COUNTRY_INFO!$F9))), 0)) -> 756.36 | E9: =IF(INTRO!$E$43="Non-endemic", 0, IF(COUNTRY_INFO!$J9>0, IF(COUNTRY_INFO!$J9=4, 0, IF(COUNTRY_INFO!$J9=1, 0, IF(COUNTRY_INFO!$J9=2, COUNTRY_INFO!$G9*0.2, COUNTRY_INFO!$G9))), 0)) -> 0 | F9: =SUM(D9:E9) -> 756.36 | G9: =IF(INTRO!$E$43="Non-endemic", "Not required", COUNTRY_INFO!P9) -> 1 | H9: Yes | I9: =IF($D9=0,0,IF(AND($G9>0,$H9<>"Yes"),D9,IF(AND($G9>0,$H9="Yes"),COUNTRY_INFO!$F9,0))) -> 2292 | K9: =IF($G9>0,E9, 0) -> 0 | L9: =IF($J9=0,SUM(I9,K9),SUM(J9,K9)) -> 2292 | M9: =IF($J9=0,$I9*2.5,$J9*2.5) -> 5730 | N9: =$K9*3 -> 0 | O9: =M9 -> 5730 | Q9: =IF($O9>$P9,O9-P9,0) -> 5730 | R9: =ROUNDUP($O9/1000,0) -> 6
A10: =IF(INTRO!$E$43="Non-endemic"," ", IF(COUNTRY_INFO!A10=0," ",COUNTRY_INFO!A10)) -> Swaziland | B10: =IF(INTRO!$E$43="Non-endemic"," ", IF(COUNTRY_INFO!B10=0," ",COUNTRY_INFO!B10)) -> Hhohho | C10: =IF(INTRO!$E$43="Non-endemic"," ", IF(COUNTRY_INFO!C10=0," ",COUNTRY_INFO!C10)) -> Lobamba | D10: =IF(INTRO!$E$43="Non-endemic", 0, IF(COUNTRY_INFO!$J10>0, IF(COUNTRY_INFO!$J10=4, 0, IF(COUNTRY_INFO!$J10=1, COUNTRY_INFO!$F10*0.33, IF(COUNTRY_INFO!$J10=2, COUNTRY_INFO!$F10*0.5, COUNTRY_INFO!$F10))), 0)) -> 1996.83 | E10: =IF(INTRO!$E$43="Non-endemic", 0, IF(COUNTRY_INFO!$J10>0, IF(COUNTRY_INFO!$J10=4, 0, IF(COUNTRY_INFO!$J10=1, 0, IF(COUNTRY_INFO!$J10=2, COUNTRY_INFO!$G10*0.2, COUNTRY_INFO!$G10))), 0)) -> 0 | F10: 1996.83 | G10: =IF(INTRO!$E$43="Non-endemic", "Not required", COUNTRY_INFO!P10) -> 1 | H10: Yes | I10: =IF($D10=0,0,IF(AND($G10>0,$H10<>"Yes"),D10,IF(AND($G10>0,$H10="Yes"),COUNTRY_INFO!$F10,0))) -> 6051 | K10: 0 | L10: 6051 | M10: 15127.5 | N10: 0 | O10: 15127.5 | Q10: 15127.5 | R10: 16
A11: =IF(INTRO!$E$43="Non-endemic"," ", IF(COUNTRY_INFO!A11=0," ",COUNTRY_INFO!A11)) -> Swaziland | B11: =IF(INTRO!$E$43="Non-endemic"," ", IF(COUNTRY_INFO!B11=0," ",COUNTRY_INFO!B11)) -> Hhohho | C11: =IF(INTRO!$E$43="Non-endemic"," ", IF(COUNTRY_INFO!C11=0," ",COUNTRY_INFO!C11)) -> Mandlangempisi | D11: =IF(INTRO!$E$43="Non-endemic", 0, IF(COUNTRY_INFO!$J11>0, IF(COUNTRY_INFO!$J11=4, 0, IF(COUNTRY_INFO!$J11=1, COUNTRY_INFO!$F11*0.33, IF(COUNTRY_INFO!$J11=2, COUNTRY_INFO!$F11*0.5, COUNTRY_INFO!$F11))), 0)) -> 1304.82 | E11: =IF(INTRO!$E$43="Non-endemic", 0, IF(COUNTRY_INFO!$J11>0, IF(COUNTRY_INFO!$J11=4, 0, IF(COUNTRY_INFO!$J11=1, 0, IF(COUNTRY_INFO!$J11=2, COUNTRY_INFO!$G11*0.2, COUNTRY_INFO!$G11))), 0)) -> 0 | F11: 1304.82 | G11: =IF(INTRO!$E$43="Non-endemic", "Not required", COUNTRY_INFO!P11) -> 1 | H11: Yes | I11: =IF($D11=0,0,IF(AND($G11>0,$H11<>"Yes"),D11,IF(AND($G11>0,$H11="Yes"),COUNTRY_INFO!$F11,0))) -> 3954 | K11: 0 | L11: 3954 | M11: 9885 | N11: 0 | O11: 9885 | Q11: 9885 | R11: 10
A12: =IF(INTRO!$E$43="Non-endemic"," ", IF(COUNTRY_INFO!A12=0," ",COUNTRY_INFO!A12)) -> Swaziland | B12: =IF(INTRO!$E$43="Non-endemic"," ", IF(COUNTRY_INFO!B12=0," ",COUNTRY_INFO!B12)) -> Hhohho | C12: =IF(INTRO!$E$43="Non-endemic"," ", IF(COUNTRY_INFO!C12=0," ",COUNTRY_INFO!C12)) -> Maphalaleni | D12: =IF(INTRO!$E$43="Non-endemic", 0, IF(COUNTRY_INFO!$J12>0, IF(COUNTRY_INFO!$J12=4, 0, IF(COUNTRY_INFO!$J12=1, COUNTRY_INFO!$F12*0.33, IF(COUNTRY_INFO!$J12=2, COUNTRY_INFO!$F12*0.5, COUNTRY_INFO!$F12))), 0)) -> 2266.5 | E12: =IF(INTRO!$E$43="Non-endemic", 0, IF(COUNTRY_INFO!$J12>0, IF(COUNTRY_INFO!$J12=4, 0, IF(COUNTRY_INFO!$J12=1, 0, IF(COUNTRY_INFO!$J12=2, COUNTRY_INFO!$G12*0.2, COUNTRY_INFO!$G12))), 0)) -> 2466.8 | F12: 4733.3 | G12: =IF(INTRO!$E$43="Non-endemic", "Not required", COUNTRY_INFO!P12) -> 1 | H12: Yes | I12: =IF($D12=0,0,IF(AND($G12>0,$H12<>"Yes"),D12,IF(AND($G12>0,$H12="Yes"),COUNTRY_INFO!$F12,0))) -> 4533 | K12: 2466.8 | L12: 6999.8 | M12: 11332.5 | N12: 7400.4 | O12: 11332.5 | Q12: 11332.5 | R12: 12
A13: =IF(INTRO!$E$43="Non-endemic"," ", IF(COUNTRY_INFO!A13=0," ",COUNTRY_INFO!A13)) -> Swaziland | B13: =IF(INTRO!$E$43="Non-endemic"," ", IF(COUNTRY_INFO!B13=0," ",COUNTRY_INFO!B13)) -> Hhohho | C13: =IF(INTRO!$E$43="Non-endemic"," ", IF(COUNTRY_INFO!C13=0," ",COUNTRY_INFO!C13)) -> Mayiwane | D13: =IF(INTRO!$E$43="Non-endemic", 0, IF(COUNTRY_INFO!$J13>0, IF(COUNTRY_INFO!$J13=4, 0, IF(COUNTRY_INFO!$J13=1, COUNTRY_INFO!$F13*0.33, IF(COUNTRY_INFO!$J13=2, COUNTRY_INFO!$F13*0.5, COUNTRY_INFO!$F13))), 0)) -> 1761.5 | E13: =IF(INTRO!$E$43="Non-endemic", 0, IF(COUNTRY_INFO!$J13>0, IF(COUNTRY_INFO!$J13=4, 0, IF(COUNTRY_INFO!$J13=1, 0, IF(COUNTRY_INFO!$J13=2, COUNTRY_INFO!$G13*0.2, COUNTRY_INFO!$G13))), 0)) -> 1917.2 | F13: 3678.7 | G13: =IF(INTRO!$E$43="Non-endemic", "Not required", COUNTRY_INFO!P13) -> 1 | H13: Yes | I13: =IF($D13=0,0,IF(AND($G13>0,$H13<>"Yes"),D13,IF(AND($G13>0,$H13="Yes"),COUNTRY_INFO!$F13,0))) -> 3523 | K13: 1917.2 | L13: 5440.2 | M13: 8807.5 | N13: 5751.6 | O13: 8807.5 | Q13: 8807.5 | R13: 9
A14: =IF(INTRO!$E$43="Non-endemic"," ", IF(COUNTRY_INFO!A14=0," ",COUNTRY_INFO!A14)) -> Swaziland | B14: =IF(INTRO!$E$43="Non-endemic"," ", IF(COUNTRY_INFO!B14=0," ",COUNTRY_INFO!B14)) -> Hhohho | C14: =IF(INTRO!$E$43="Non-endemic"," ", IF(COUNTRY_INFO!C14=0," ",COUNTRY_INFO!C14)) -> Mbabane East | D14: =IF(INTRO!$E$43="Non-endemic", 0, IF(COUNTRY_INFO!$J14>0, IF(COUNTRY_INFO!$J14=4, 0, IF(COUNTRY_INFO!$J14=1, COUNTRY_INFO!$F14*0.33, IF(COUNTRY_INFO!$J14=2, COUNTRY_INFO!$F14*0.5, COUNTRY_INFO!$F14))), 0)) -> 2829.09 | E14: =IF(INTRO!$E$43="Non-endemic", 0, IF(COUNTRY_INFO!$J14>0, IF(COUNTRY_INFO!$J14=4, 0, IF(COUNTRY_INFO!$J14=1, 0, IF(COUNTRY_INFO!$J14=2, COUNTRY_INFO!$G14*0.2, COUNTRY_INFO!$G14))), 0)) -> 0 | F14: 2829.09 | G14: =IF(INTRO!$E$43="Non-endemic", "Not required", COUNTRY_INFO!P14) -> 1 | H14: Yes | I14: =IF($D14=0,0,IF(AND($G14>0,$H14<>"Yes"),D14,IF(AND($G14>0,$H14="Yes"),COUNTRY_INFO!$F14,0))) -> 8573 | K14: 0 | L14: 8573 | M14: 21432.5 | N14: 0 | O14: 21432.5 | Q14: 21432.5 | R14: 22
A15: =IF(INTRO!$E$43="Non-endemic"," ", IF(COUNTRY_INFO!A15=0," ",COUNTRY_INFO!A15)) -> Swaziland | B15: =IF(INTRO!$E$43="Non-endemic"," ", IF(COUNTRY_INFO!B15=0," ",COUNTRY_INFO!B15)) -> Hhohho | C15: =IF(INTRO!$E$43="Non-endemic"," ", IF(COUNTRY_INFO!C15=0," ",COUNTRY_INFO!C15)) -> Mbabane West | D15: =IF(INTRO!$E$43="Non-endemic", 0, IF(COUNTRY_INFO!$J15>0, IF(COUNTRY_INFO!$J15=4, 0, IF(COUNTRY_INFO!$J15=1, COUNTRY_INFO!$F15*0.33, IF(COUNTRY_INFO!$J15=2, COUNTRY_INFO!$F15*0.5, COUNTRY_INFO!$F15))), 0)) -> 1806.09 | E15: =IF(INTRO!$E$43="Non-endemic", 0, IF(COUNTRY_INFO!$J15>0, IF(COUNTRY_INFO!$J15=4, 0, IF(COUNTRY_INFO!$J15=1, 0, IF(COUNTRY_INFO!$J15=2, COUNTRY_INFO!$G15*0.2, COUNTRY_INFO!$G15))), 0)) -> 0 | F15: 1806.09 | G15: =IF(INTRO!$E$43="Non-endemic", "Not required", COUNTRY_INFO!P15) -> 1 | H15: Yes | I15: =IF($D15=0,0,IF(AND($G15>0,$H15<>"Yes"),D15,IF(AND($G15>0,$H15="Yes"),COUNTRY_INFO!$F15,0))) -> 5473 | K15: 0 | L15: 5473 | M15: 13682.5 | N15: 0 | O15: 13682.5 | Q15: 13682.5 | R15: 14
A16: =IF(INTRO!$E$43="Non-endemic"," ", IF(COUNTRY_INFO!A16=0," ",COUNTRY_INFO!A16)) -> Swaziland | B16: =IF(INTRO!$E$43="Non-endemic"," ", IF(COUNTRY_INFO!B16=0," ",COUNTRY_INFO!B16)) -> Hhohho | C16: =IF(INTRO!$E$43="Non-endemic"," ", IF(COUNTRY_INFO!C16=0," ",COUNTRY_INFO!C16)) -> Mhlangatane | D16: =IF(INTRO!$E$43="Non-endemic", 0, IF(COUNTRY_INFO!$J16>0, IF(COUNTRY_INFO!$J16=4, 0, IF(COUNTRY_INFO!$J16=1, COUNTRY_INFO!$F16*0.33, IF(COUNTRY_INFO!$J16=2, COUNTRY_INFO!$F16*0.5, COUNTRY_INFO!$F16))), 0)) -> 2612 | E16: =IF(INTRO!$E$43="Non-endemic", 0, IF(COUNTRY_INFO!$J16>0, IF(COUNTRY_INFO!$J16=4, 0, IF(COUNTRY_INFO!$J16=1, 0, IF(COUNTRY_INFO!$J16=2, COUNTRY_INFO!$G16*0.2, COUNTRY_INFO!$G16))), 0)) -> 2843 | F16: 5455 | G16: =IF(INTRO!$E$43="Non-endemic", "Not required", COUNTRY_INFO!P16) -> 1 | H16: Yes | I16: =IF($D16=0,0,IF(AND($G16>0,$H16<>"Yes"),D16,IF(AND($G16>0,$H16="Yes"),COUNTRY_INFO!$F16,0))) -> 5224 | K16: 2843 | L16: 8067 | M16: 13060 | N16: 8529 | O16: 13060 | Q16: 13060 | R16: 14
A17: =IF(INTRO!$E$43="Non-endemic"," ", IF(COUNTRY_INFO!A17=0," ",COUNTRY_INFO!A17)) -> Swaziland | B17: =IF(INTRO!$E$43="Non-endemic"," ", IF(COUNTRY_INFO!B17=0," ",COUNTRY_INFO!B17)) -> Hhohho | C17: =IF(INTRO!$E$43="Non-endemic"," ", IF(COUNTRY_INFO!C17=0," ",COUNTRY_INFO!C17)) -> Motjane | D17: =IF(INTRO!$E$43="Non-endemic", 0, IF(COUNTRY_INFO!$J17>0, IF(COUNTRY_INFO!$J17=4, 0, IF(COUNTRY_INFO!$J17=1, COUNTRY_INFO!$F17*0.33, IF(COUNTRY_INFO!$J17=2, COUNTRY_INFO!$F17*0.5, COUNTRY_INFO!$F17))), 0)) -> 2375.01 | E17: =IF(INTRO!$E$43="Non-endemic", 0, IF(COUNTRY_INFO!$J17>0, IF(COUNTRY_INFO!$J17=4, 0, IF(COUNTRY_INFO!$J17=1, 0, IF(COUNTRY_INFO!$J17=2, COUNTRY_INFO!$G17*0.2, COUNTRY_INFO!$G17))), 0)) -> 0 | F17: 2375.01 | G17: =IF(INTRO!$E$43="Non-endemic", "Not required", COUNTRY_INFO!P17) -> 1 | H17: Yes | I17: =IF($D17=0,0,IF(AND($G17>0,$H17<>"Yes"),D17,IF(AND($G17>0,$H17="Yes"),COUNTRY_INFO!$F17,0))) -> 7197 | K17: 0 | L17: 7197 | M17: 17992.5 | N17: 0 | O17: 17992.5 | Q17: 17992.5 | R17: 18
A18: =IF(INTRO!$E$43="Non-endemic"," ", IF(COUNTRY_INFO!A18=0," ",COUNTRY_INFO!A18)) -> Swaziland | B18: =IF(INTRO!$E$43="Non-endemic"," ", IF(COUNTRY_INFO!B18=0," ",COUNTRY_INFO!B18)) -> Hhohho | C18: =IF(INTRO!$E$43="Non-endemic"," ", IF(COUNTRY_INFO!C18=0," ",COUNTRY_INFO!C18)) -> Ndzingeni | D18: =IF(INTRO!$E$43="Non-endemic", 0, IF(COUNTRY_INFO!$J18>0, IF(COUNTRY_INFO!$J18=4, 0, IF(COUNTRY_INFO!$J18=1, COUNTRY_INFO!$F18*0.33, IF(COUNTRY_INFO!$J18=2, COUNTRY_INFO!$F18*0.5, COUNTRY_INFO!$F18))), 0)) -> 1469.82 | E18: =IF(INTRO!$E$43="Non-endemic", 0, IF(COUNTRY_INFO!$J18>0, IF(COUNTRY_INFO!$J18=4, 0, IF(COUNTRY_INFO!$J18=1, 0, IF(COUNTRY_INFO!$J18=2, COUNTRY_INFO!$G18*0.2, COUNTRY_INFO!$G18))), 0)) -> 0 | F18: 1469.82 | G18: =IF(INTRO!$E$43="Non-endemic", "Not required", COUNTRY_INFO!P18) -> 1 | H18: Yes | I18: =IF($D18=0,0,IF(AND($G18>0,$H18<>"Yes"),D18,IF(AND($G18>0,$H18="Yes"),COUNTRY_INFO!$F18,0))) -> 4454 | K18: 0 | L18: 4454 | M18: 11135 | N18: 0 | O18: 11135 | Q18: 11135 | R18: 12
A19: =IF(INTRO!$E$43="Non-endemic"," ", IF(COUNTRY_INFO!A19=0," ",COUNTRY_INFO!A19)) -> Swaziland | B19: =IF(INTRO!$E$43="Non-endemic"," ", IF(COUNTRY_INFO!B19=0," ",COUNTRY_INFO!B19)) -> Hhohho | C19: =IF(INTRO!$E$43="Non-endemic"," ", IF(COUNTRY_INFO!C19=0," ",COUNTRY_INFO!C19)) -> Nkhaba | D19: =IF(INTRO!$E$43="Non-endemic", 0, IF(COUNTRY_INFO!$J19>0, IF(COUNTRY_INFO!$J19=4, 0, IF(COUNTRY_INFO!$J19=1, COUNTRY_INFO!$F19*0.33, IF(COUNTRY_INFO!$J19=2, COUNTRY_INFO!$F19*0.5, COUNTRY_INFO!$F19))), 0)) -> 1207.47 | E19: =IF(INTRO!$E$43="Non-endemic", 0, IF(COUNTRY_INFO!$J19>0, IF(COUNTRY_INFO!$J19=4, 0, IF(COUNTRY_INFO!$J19=1, 0, IF(COUNTRY_INFO!$J19=2, COUNTRY_INFO!$G19*0.2, COUNTRY_INFO!$G19))), 0)) -> 0 | F19: 1207.47 | G19: =IF(INTRO!$E$43="Non-endemic", "Not required", COUNTRY_INFO!P19) -> 1 | H19: Yes | I19: =IF($D19=0,0,IF(AND($G19>0,$H19<>"Yes"),D19,IF(AND($G19>0,$H19="Yes"),COUNTRY_INFO!$F19,0))) -> 3659 | K19: 0 | L19: 3659 | M19: 9147.5 | N19: 0 | O19: 9147.5 | Q19: 9147.5 | R19: 10
A20: =IF(INTRO!$E$43="Non-endemic"," ", IF(COUNTRY_INFO!A20=0," ",COUNTRY_INFO!A20)) -> Swaziland | B20: =IF(INTRO!$E$43="Non-endemic"," ", IF(COUNTRY_INFO!B20=0," ",COUNTRY_INFO!B20)) -> Hhohho | C20: =IF(INTRO!$E$43="Non-endemic"," ", IF(COUNTRY_INFO!C20=0," ",COUNTRY_INFO!C20)) -> Ntfonjeni | D20: =IF(INTRO!$E$43="Non-endemic", 0, IF(COUNTRY_INFO!$J20>0, IF(COUNTRY_INFO!$J20=4, 0, IF(COUNTRY_INFO!$J20=1, COUNTRY_INFO!$F20*0.33, IF(COUNTRY_INFO!$J20=2, COUNTRY_INFO!$F20*0.5, COUNTRY_INFO!$F20))), 0)) -> 1625.58 | E20: =IF(INTRO!$E$43="Non-endemic", 0, IF(COUNTRY_INFO!$J20>0, IF(COUNTRY_INFO!$J20=4, 0, IF(COUNTRY_INFO!$J20=1, 0, IF(COUNTRY_INFO!$J20=2, COUNTRY_INFO!$G20*0.2, COUNTRY_INFO!$G20))), 0)) -> 0 | F20: 1625.58 | G20: =IF(INTRO!$E$43="Non-endemic", "Not required", COUNTRY_INFO!P20) -> 1 | H20: Yes | I20: =IF($D20=0,0,IF(AND($G20>0,$H20<>"Yes"),D20,IF(AND($G20>0,$H20="Yes"),COUNTRY_INFO!$F20,0))) -> 4926 | K20: 0 | L20: 4926 | M20: 12315 | N20: 0 | O20: 12315 | Q20: 12315 | R20: 13
A21: =IF(INTRO!$E$43="Non-endemic"," ", IF(COUNTRY_INFO!A21=0," ",COUNTRY_INFO!A21)) -> Swaziland | B21: =IF(INTRO!$E$43="Non-endemic"," ", IF(COUNTRY_INFO!B21=0," ",COUNTRY_INFO!B21)) -> Hhohho | C21: =IF(INTRO!$E$43="Non-endemic"," ", IF(COUNTRY_INFO!C21=0," ",COUNTRY_INFO!C21)) -> Pigg's Peak | D21: =IF(INTRO!$E$43="Non-endemic", 0, IF(COUNTRY_INFO!$J21>0, IF(COUNTRY_INFO!$J21=4, 0, IF(COUNTRY_INFO!$J21=1, COUNTRY_INFO!$F21*0.33, IF(COUNTRY_INFO!$J21=2, COUNTRY_INFO!$F21*0.5, COUNTRY_INFO!$F21))), 0)) -> 1334.85 | E21: =IF(INTRO!$E$43="Non-endemic", 0, IF(COUNTRY_INFO!$J21>0, IF(COUNTRY_INFO!$J21=4, 0, IF(COUNTRY_INFO!$J21=1, 0, IF(COUNTRY_INFO!$J21=2, COUNTRY_INFO!$G21*0.2, COUNTRY_INFO!$G21))), 0)) -> 0 | F21: 1334.85 | G21: =IF(INTRO!$E$43="Non-endemic", "Not required", COUNTRY_INFO!P21) -> 1 | H21: Yes | I21: =IF($D21=0,0,IF(AND($G21>0,$H21<>"Yes"),D21,IF(AND($G21>0,$H21="Yes"),COUNTRY_INFO!$F21,0))) -> 4045 | K21: 0 | L21: 4045 | M21: 10112.5 | N21: 0 | O21: 10112.5 | Q21: 10112.5 | R21: 11
A22: =IF(INTRO!$E$43="Non-endemic"," ", IF(COUNTRY_INFO!A22=0," ",COUNTRY_INFO!A22)) -> Swaziland | B22: =IF(INTRO!$E$43="Non-endemic"," ", IF(COUNTRY_INFO!B22=0," ",COUNTRY_INFO!B22)) -> Hhohho | C22: =IF(INTRO!$E$43="Non-endemic"," ", IF(COUNTRY_INFO!C22=0," ",COUNTRY_INFO!C22)) -> Timphisini | D22: =IF(INTRO!$E$43="Non-endemic", 0, IF(COUNTRY_INFO!$J22>0, IF(COUNTRY_INFO!$J22=4, 0, IF(COUNTRY_INFO!$J22=1, COUNTRY_INFO!$F22*0.33, IF(COUNTRY_INFO!$J22=2, COUNTRY_INFO!$F22*0.5, COUNTRY_INFO!$F22))), 0)) -> 987 | E22: =IF(INTRO!$E$43="Non-endemic", 0, IF(COUNTRY_INFO!$J22>0, IF(COUNTRY_INFO!$J22=4, 0, IF(COUNTRY_INFO!$J22=1, 0, IF(COUNTRY_INFO!$J22=2, COUNTRY_INFO!$G22*0.2, COUNTRY_INFO!$G22))), 0)) -> 1074.2 | F22: 2061.2 | G22: =IF(INTRO!$E$43="Non-endemic", "Not required", COUNTRY_INFO!P22) -> 1 | H22: Yes | I22: =IF($D22=0,0,IF(AND($G22>0,$H22<>"Yes"),D22,IF(AND($G22>0,$H22="Yes"),COUNTRY_INFO!$F22,0))) -> 1974 | K22: 1074.2 | L22: 3048.2 | M22: 4935 | N22: 3222.6 | O22: 4935 | Q22: 4935 | R22: 5
A23: =IF(INTRO!$E$43="Non-endemic"," ", IF(COUNTRY_INFO!A23=0," ",COUNTRY_INFO!A23)) -> Swaziland | B23: =IF(INTRO!$E$43="Non-endemic"," ", IF(COUNTRY_INFO!B23=0," ",COUNTRY_INFO!B23)) -> Lubombo | C23: =IF(INTRO!$E$43="Non-endemic"," ", IF(COUNTRY_INFO!C23=0," ",COUNTRY_INFO!C23)) -> Dvokodvweni | D23: =IF(INTRO!$E$43="Non-endemic", 0, IF(COUNTRY_INFO!$J23>0, IF(COUNTRY_INFO!$J23=4, 0, IF(COUNTRY_INFO!$J23=1, COUNTRY_INFO!$F23*0.33, IF(COUNTRY_INFO!$J23=2, COUNTRY_INFO!$F23*0.5, COUNTRY_INFO!$F23))), 0)) -> 2172.39 | E23: =IF(INTRO!$E$43="Non-endemic", 0, IF(COUNTRY_INFO!$J23>0, IF(COUNTRY_INFO!$J23=4, 0, IF(COUNTRY_INFO!$J23=1, 0, IF(COUNTRY_INFO!$J23=2, COUNTRY_INFO!$G23*0.2, COUNTRY_INFO!$G23))), 0)) -> 0 | F23: 2172.39 | G23: =IF(INTRO!$E$43="Non-endemic", "Not required", COUNTRY_INFO!P23) -> 1 | H23: Yes | I23: =IF($D23=0,0,IF(AND($G23>0,$H23<>"Yes"),D23,IF(AND($G23>0,$H23="Yes"),COUNTRY_INFO!$F23,0))) -> 6583 | K23: 0 | L23: 6583 | M23: 16457.5 | N23: 0 | O23: 16457.5 | Q23: 16457.5 | R23: 17
A24: =IF(INTRO!$E$43="Non-endemic"," ", IF(COUNTRY_INFO!A24=0," ",COUNTRY_INFO!A24)) -> Swaziland | B24: =IF(INTRO!$E$43="Non-endemic"," ", IF(COUNTRY_INFO!B24=0," ",COUNTRY_INFO!B24)) -> Lubombo | C24: =IF(INTRO!$E$43="Non-endemic"," ", IF(COUNTRY_INFO!C24=0," ",COUNTRY_INFO!C24)) -> Hlane | D24: =IF(INTRO!$E$43="Non-endemic", 0, IF(COUNTRY_INFO!$J24>0, IF(COUNTRY_INFO!$J24=4, 0, IF(COUNTRY_INFO!$J24=1, COUNTRY_INFO!$F24*0.33, IF(COUNTRY_INFO!$J24=2, COUNTRY_INFO!$F24*0.5, COUNTRY_INFO!$F24))), 0)) -> 826 | E24: =IF(INTRO!$E$43="Non-endemic", 0, IF(COUNTRY_INFO!$J24>0, IF(COUNTRY_INFO!$J24=4, 0, IF(COUNTRY_INFO!$J24=1, 0, IF(COUNTRY_INFO!$J24=2, COUNTRY_INFO!$G24*0.2, COUNTRY_INFO!$G24))), 0)) -> 899.2 | F24: 1725.2 | G24: =IF(INTRO!$E$43="Non-endemic", "Not required", COUNTRY_INFO!P24) -> 1 | H24: Yes | I24: =IF($D24=0,0,IF(AND($G24>0,$H24<>"Yes"),D24,IF(AND($G24>0,$H24="Yes"),COUNTRY_INFO!$F24,0))) -> 1652 | K24: 899.2 | L24: 2551.2 | M24: 4130 | N24: 2697.6 | O24: 4130 | Q24: 4130 | R24: 5
A25: =IF(INTRO!$E$43="Non-endemic"," ", IF(COUNTRY_INFO!A25=0," ",COUNTRY_INFO!A25)) -> Swaziland | B25: =IF(INTRO!$E$43="Non-endemic"," ", IF(COUNTRY_INFO!B25=0," ",COUNTRY_INFO!B25)) -> Lubombo | C25: =IF(INTRO!$E$43="Non-endemic"," ", IF(COUNTRY_INFO!C25=0," ",COUNTRY_INFO!C25)) -> Lomahasha | D25: =IF(INTRO!$E$43="Non-endemic", 0, IF(COUNTRY_INFO!$J25>0, IF(COUNTRY_INFO!$J25=4, 0, IF(COUNTRY_INFO!$J25=1, COUNTRY_INFO!$F25*0.33, IF(COUNTRY_INFO!$J25=2, COUNTRY_INFO!$F25*0.5, COUNTRY_INFO!$F25))), 0)) -> 2591 | E25: =IF(INTRO!$E$43="Non-endemic", 0, IF(COUNTRY_INFO!$J25>0, IF(COUNTRY_INFO!$J25=4, 0, IF(COUNTRY_INFO!$J25=1, 0, IF(COUNTRY_INFO!$J25=2, COUNTRY_INFO!$G25*0.2, COUNTRY_INFO!$G25))), 0)) -> 2820 | F25: 5411 | G25: =IF(INTRO!$E$43="Non-endemic", "Not required", COUNTRY_INFO!P25) -> 1 | H25: Yes | I25: =IF($D25=0,0,IF(AND($G25>0,$H25<>"Yes"),D25,IF(AND($G25>0,$H25="Yes"),COUNTRY_INFO!$F25,0))) -> 5182 | K25: 2820 | L25: 8002 | M25: 12955 | N25: 8460 | O25: 12955 | Q25: 12955 | R25: 13
A26: =IF(INTRO!$E$43="Non-endemic"," ", IF(COUNTRY_INFO!A26=0," ",COUNTRY_INFO!A26)) -> Swaziland | B26: =IF(INTRO!$E$43="Non-endemic"," ", IF(COUNTRY_INFO!B26=0," ",COUNTRY_INFO!B26)) -> Lubombo | C26: =IF(INTRO!$E$43="Non-endemic"," ", IF(COUNTRY_INFO!C26=0," ",COUNTRY_INFO!C26)) -> Lubuli | D26: =IF(INTRO!$E$43="Non-endemic", 0, IF(COUNTRY_INFO!$J26>0, IF(COUNTRY_INFO!$J26=4, 0, IF(COUNTRY_INFO!$J26=1, COUNTRY_INFO!$F26*0.33, IF(COUNTRY_INFO!$J26=2, COUNTRY_INFO!$F26*0.5, COUNTRY_INFO!$F26))), 0)) -> 1108.8 | E26: =IF(INTRO!$E$43="Non-endemic", 0, IF(COUNTRY_INFO!$J26>0, IF(COUNTRY_INFO!$J26=4, 0, IF(COUNTRY_INFO!$J26=1, 0, IF(COUNTRY_INFO!$J26=2, COUNTRY_INFO!$G26*0.2, COUNTRY_INFO!$G26))), 0)) -> 0 | F26: 1108.8 | G26: =IF(INTRO!$E$43="Non-endemic", "Not required", COUNTRY_INFO!P26) -> 1 | H26: Yes | I26: =IF($D26=0,0,IF(AND($G26>0,$H26<>"Yes"),D26,IF(AND($G26>0,$H26="Yes"),COUNTRY_INFO!$F26,0))) -> 3360 | K26: 0 | L26: 3360 | M26: 8400 | N26: 0 | O26: 8400 | Q26: 8400 | R26: 9
A27: =IF(INTRO!$E$43="Non-endemic"," ", IF(COUNTRY_INFO!A27=0," ",COUNTRY_INFO!A27)) -> Swaziland | B27: =IF(INTRO!$E$43="Non-endemic"," ", IF(COUNTRY_INFO!B27=0," ",COUNTRY_INFO!B27)) -> Lubombo | C27: =IF(INTRO!$E$43="Non-endemic"," ", IF(COUNTRY_INFO!C27=0," ",COUNTRY_INFO!C27)) -> Lugongolweni | D27: =IF(INTRO!$E$43="Non-endemic", 0, IF(COUNTRY_INFO!$J27>0, IF(COUNTRY_INFO!$J27=4, 0, IF(COUNTRY_INFO!$J27=1, COUNTRY_INFO!$F27*0.33, IF(COUNTRY_INFO!$J27=2, COUNTRY_INFO!$F27*0.5, COUNTRY_INFO!$F27))), 0)) -> 1808 | E27: =IF(INTRO!$E$43="Non-endemic", 0, IF(COUNTRY_INFO!$J27>0, IF(COUNTRY_INFO!$J27=4, 0, IF(COUNTRY_INFO!$J27=1, 0, IF(COUNTRY_INFO!$J27=2, COUNTRY_INFO!$G27*0.2, COUNTRY_INFO!$G27))), 0)) -> 1967.8 | F27: 3775.8 | G27: =IF(INTRO!$E$43="Non-endemic", "Not required", COUNTRY_INFO!P27) -> 1 | H27: Yes | I27: =IF($D27=0,0,IF(AND($G27>0,$H27<>"Yes"),D27,IF(AND($G27>0,$H27="Yes"),COUNTRY_INFO!$F27,0))) -> 3616 | K27: 1967.8 | L27: 5583.8 | M27: 9040 | N27: 5903.4 | O27: 9040 | Q27: 9040 | R27: 10
A28: =IF(INTRO!$E$43="Non-endemic"," ", IF(COUNTRY_INFO!A28=0," ",COUNTRY_INFO!A28)) -> Swaziland | B28: =IF(INTRO!$E$43="Non-endemic"," ", IF(COUNTRY_INFO!B28=0," ",COUNTRY_INFO!B28)) -> Lubombo | C28: =IF(INTRO!$E$43="Non-endemic"," ", IF(COUNTRY_INFO!C28=0," ",COUNTRY_INFO!C28)) -> Matsanjeni North | D28: =IF(INTRO!$E$43="Non-endemic", 0, IF(COUNTRY_INFO!$J28>0, IF(COUNTRY_INFO!$J28=4, 0, IF(COUNTRY_INFO!$J28=1, COUNTRY_INFO!$F28*0.33, IF(COUNTRY_INFO!$J28=2, COUNTRY_INFO!$F28*0.5, COUNTRY_INFO!$F28))), 0)) -> 1507.5 | E28: =IF(INTRO!$E$43="Non-endemic", 0, IF(COUNTRY_INFO!$J28>0, IF(COUNTRY_INFO!$J28=4, 0, IF(COUNTRY_INFO!$J28=1, 0, IF(COUNTRY_INFO!$J28=2, COUNTRY_INFO!$G28*0.2, COUNTRY_INFO!$G28))), 0)) -> 1640.8 | F28: 3148.3 | G28: =IF(INTRO!$E$43="Non-endemic", "Not required", COUNTRY_INFO!P28) -> 1 | H28: Yes | I28: =IF($D28=0,0,IF(AND($G28>0,$H28<>"Yes"),D28,IF(AND($G28>0,$H28="Yes"),COUNTRY_INFO!$F28,0))) -> 3015 | K28: 1640.8 | L28: 4655.8 | M28: 7537.5 | N28: 4922.4 | O28: 7537.5 | Q28: 7537.5 | R28: 8
A29: =IF(INTRO!$E$43="Non-endemic"," ", IF(COUNTRY_INFO!A29=0," ",COUNTRY_INFO!A29)) -> Swaziland | B29: =IF(INTRO!$E$43="Non-endemic"," ", IF(COUNTRY_INFO!B29=0," ",COUNTRY_INFO!B29)) -> Lubombo | C29: =IF(INTRO!$E$43="Non-endemic"," ", IF(COUNTRY_INFO!C29=0," ",COUNTRY_INFO!C29)) -> Mhlume | D29: =IF(INTRO!$E$43="Non-endemic", 0, IF(COUNTRY_INFO!$J29>0, IF(COUNTRY_INFO!$J29=4, 0, IF(COUNTRY_INFO!$J29=1, COUNTRY_INFO!$F29*0.33, IF(COUNTRY_INFO!$J29=2, COUNTRY_INFO!$F29*0.5, COUNTRY_INFO!$F29))), 0)) -> 1978.5 | E29: =IF(INTRO!$E$43="Non-endemic", 0, IF(COUNTRY_INFO!$J29>0, IF(COUNTRY_INFO!$J29=4, 0, IF(COUNTRY_INFO!$J29=1, 0, IF(COUNTRY_INFO!$J29=2, COUNTRY_INFO!$G29*0.2, COUNTRY_INFO!$G29))), 0)) -> 2153.2 | F29: 4131.7 | G29: =IF(INTRO!$E$43="Non-endemic", "Not required", COUNTRY_INFO!P29) -> 1 | H29: Yes | I29: =IF($D29=0,0,IF(AND($G29>0,$H29<>"Yes"),D29,IF(AND($G29>0,$H29="Yes"),COUNTRY_INFO!$F29,0))) -> 3957 | K29: 2153.2 | L29: 6110.2 | M29: 9892.5 | N29: 6459.6 | O29: 9892.5 | Q29: 9892.5 | R29: 10
A30: =IF(INTRO!$E$43="Non-endemic"," ", IF(COUNTRY_INFO!A30=0," ",COUNTRY_INFO!A30)) -> Swaziland | B30: =IF(INTRO!$E$43="Non-endemic"," ", IF(COUNTRY_INFO!B30=0," ",COUNTRY_INFO!B30)) -> Lubombo | C30: =IF(INTRO!$E$43="Non-endemic"," ", IF(COUNTRY_INFO!C30=0," ",COUNTRY_INFO!C30)) -> Mpolonjeni | D30: =IF(INTRO!$E$43="Non-endemic", 0, IF(COUNTRY_INFO!$J30>0, IF(COUNTRY_INFO!$J30=4, 0, IF(COUNTRY_INFO!$J30=1, COUNTRY_INFO!$F30*0.33, IF(COUNTRY_INFO!$J30=2, COUNTRY_INFO!$F30*0.5, COUNTRY_INFO!$F30))), 0)) -> 2395.5 | E30: =IF(INTRO!$E$43="Non-endemic", 0, IF(COUNTRY_INFO!$J30>0, IF(COUNTRY_INFO!$J30=4, 0, IF(COUNTRY_INFO!$J30=1, 0, IF(COUNTRY_INFO!$J30=2, COUNTRY_INFO!$G30*0.2, COUNTRY_INFO!$G30))), 0)) -> 2607.4 | F30: 5002.9 | G30: =IF(INTRO!$E$43="Non-endemic", "Not required", COUNTRY_INFO!P30) -> 1 | H30: Yes | I30: =IF($D30=0,0,IF(AND($G30>0,$H30<>"Yes"),D30,IF(AND($G30>0,$H30="Yes"),COUNTRY_INFO!$F30,0))) -> 4791 | K30: 2607.4 | L30: 7398.4 | M30: 11977.5 | N30: 7822.2 | O30: 11977.5 | Q30: 11977.5 | R30: 12
A31: =IF(INTRO!$E$43="Non-endemic"," ", IF(COUNTRY_INFO!A31=0," ",COUNTRY_INFO!A31)) -> Swaziland | B31: =IF(INTRO!$E$43="Non-endemic"," ", IF(COUNTRY_INFO!B31=0," ",COUNTRY_INFO!B31)) -> Lubombo | C31: =IF(INTRO!$E$43="Non-endemic"," ", IF(COUNTRY_INFO!C31=0," ",COUNTRY_INFO!C31)) -> Nkilongo | D31: =IF(INTRO!$E$43="Non-endemic", 0, IF(COUNTRY_INFO!$J31>0, IF(COUNTRY_INFO!$J31=4, 0, IF(COUNTRY_INFO!$J31=1, COUNTRY_INFO!$F31*0.33, IF(COUNTRY_INFO!$J31=2, COUNTRY_INFO!$F31*0.5, COUNTRY_INFO!$F31))), 0)) -> 1853 | E31: =IF(INTRO!$E$43="Non-endemic", 0, IF(COUNTRY_INFO!$J31>0, IF(COUNTRY_INFO!$J31=4, 0, IF(COUNTRY_INFO!$J31=1, 0, IF(COUNTRY_INFO!$J31=2, COUNTRY_INFO!$G31*0.2, COUNTRY_INFO!$G31))), 0)) -> 2017 | F31: 3870 | G31: =IF(INTRO!$E$43="Non-endemic", "Not required", COUNTRY_INFO!P31) -> 1 | H31: Yes | I31: =IF($D31=0,0,IF(AND($G31>0,$H31<>"Yes"),D31,IF(AND($G31>0,$H31="Yes"),COUNTRY_INFO!$F31,0))) -> 3706 | K31: 2017 | L31: 5723 | M31: 9265 | N31: 6051 | O31: 9265 | Q31: 9265 | R31: 10
A32: =IF(INTRO!$E$43="Non-endemic"," ", IF(COUNTRY_INFO!A32=0," ",COUNTRY_INFO!A32)) -> Swaziland | B32: =IF(INTRO!$E$43="Non-endemic"," ", IF(COUNTRY_INFO!B32=0," ",COUNTRY_INFO!B32)) -> Lubombo | C32: =IF(INTRO!$E$43="Non-endemic"," ", IF(COUNTRY_INFO!C32=0," ",COUNTRY_INFO!C32)) -> Siphofaneni | D32: =IF(INTRO!$E$43="Non-endemic", 0, IF(COUNTRY_INFO!$J32>0, IF(COUNTRY_INFO!$J32=4, 0, IF(COUNTRY_INFO!$J32=1, COUNTRY_INFO!$F32*0.33, IF(COUNTRY_INFO!$J32=2, COUNTRY_INFO!$F32*0.5, COUNTRY_INFO!$F32))), 0)) -> 2736.5 | E32: =IF(INTRO!$E$43="Non-endemic", 0, IF(COUNTRY_INFO!$J32>0, IF(COUNTRY_INFO!$J32=4, 0, IF(COUNTRY_INFO!$J32=1, 0, IF(COUNTRY_INFO!$J32=2, COUNTRY_INFO!$G32*0.2, COUNTRY_INFO!$G32))), 0)) -> 2978.2 | F32: 5714.7 | G32: =IF(INTRO!$E$43="Non-endemic", "Not required", COUNTRY_INFO!P32) -> 1 | H32: Yes | I32: =IF($D32=0,0,IF(AND($G32>0,$H32<>"Yes"),D32,IF(AND($G32>0,$H32="Yes"),COUNTRY_INFO!$F32,0))) -> 5473 | K32: 2978.2 | L32: 8451.2 | M32: 13682.5 | N32: 8934.6 | O32: 13682.5 | Q32: 13682.5 | R32: 14
A33: =IF(INTRO!$E$43="Non-endemic"," ", IF(COUNTRY_INFO!A33=0," ",COUNTRY_INFO!A33)) -> Swaziland | B33: =IF(INTRO!$E$43="Non-endemic"," ", IF(COUNTRY_INFO!B33=0," ",COUNTRY_INFO!B33)) -> Lubombo | C33: =IF(INTRO!$E$43="Non-endemic"," ", IF(COUNTRY_INFO!C33=0," ",COUNTRY_INFO!C33)) -> Sithobela | D33: =IF(INTRO!$E$43="Non-endemic", 0, IF(COUNTRY_INFO!$J33>0, IF(COUNTRY_INFO!$J33=4, 0, IF(COUNTRY_INFO!$J33=1, COUNTRY_INFO!$F33*0.33, IF(COUNTRY_INFO!$J33=2, COUNTRY_INFO!$F33*0.5, COUNTRY_INFO!$F33))), 0)) -> 3533.5 | E33: =IF(INTRO!$E$43="Non-endemic", 0, IF(COUNTRY_INFO!$J33>0, IF(COUNTRY_INFO!$J33=4, 0, IF(COUNTRY_INFO!$J33=1, 0, IF(COUNTRY_INFO!$J33=2, COUNTRY_INFO!$G33*0.2, COUNTRY_INFO!$G33))), 0)) -> 3846 | F33: 7379.5 | G33: =IF(INTRO!$E$43="Non-endemic", "Not required", COUNTRY_INFO!P33) -> 1 | H33: Yes | I33: =IF($D33=0,0,IF(AND($G33>0,$H33<>"Yes"),D33,IF(AND($G33>0,$H33="Yes"),COUNTRY_INFO!$F33,0))) -> 7067 | K33: 3846 | L33: 10913 | M33: 17667.5 | N33: 11538 | O33: 17667.5 | Q33: 17667.5 | R33: 18
A34: =IF(INTRO!$E$43="Non-endemic"," ", IF(COUNTRY_INFO!A34=0," ",COUNTRY_INFO!A34)) -> Swaziland | B34: =IF(INTRO!$E$43="Non-endemic"," ", IF(COUNTRY_INFO!B34=0," ",COUNTRY_INFO!B34)) -> Manzini | C34: =IF(INTRO!$E$43="Non-endemic"," ", IF(COUNTRY_INFO!C34=0," ",COUNTRY_INFO!C34)) -> Kukhanyeni | D34: =IF(INTRO!$E$43="Non-endemic", 0, IF(COUNTRY_INFO!$J34>0, IF(COUNTRY_INFO!$J34=4, 0, IF(COUNTRY_INFO!$J34=1, COUNTRY_INFO!$F34*0.33, IF(COUNTRY_INFO!$J34=2, COUNTRY_INFO!$F34*0.5, COUNTRY_INFO!$F34))), 0)) -> 2107 | E34: =IF(INTRO!$E$43="Non-endemic", 0, IF(COUNTRY_INFO!$J34>0, IF(COUNTRY_INFO!$J34=4, 0, IF(COUNTRY_INFO!$J34=1, 0, IF(COUNTRY_INFO!$J34=2, COUNTRY_INFO!$G34*0.2, COUNTRY_INFO!$G34))), 0)) -> 2293.2 | F34: 4400.2 | G34: =IF(INTRO!$E$43="Non-endemic", "Not required", COUNTRY_INFO!P34) -> 1 | H34: Yes | I34: =IF($D34=0,0,IF(AND($G34>0,$H34<>"Yes"),D34,IF(AND($G34>0,$H34="Yes"),COUNTRY_INFO!$F34,0))) -> 4214 | K34: 2293.2 | L34: 6507.2 | M34: 10535 | N34: 6879.6 | O34: 10535 | Q34: 10535 | R34: 11
A35: =IF(INTRO!$E$43="Non-endemic"," ", IF(COUNTRY_INFO!A35=0," ",COUNTRY_INFO!A35)) -> Swaziland | B35: =IF(INTRO!$E$43="Non-endemic"," ", IF(COUNTRY_INFO!B35=0," ",COUNTRY_INFO!B35)) -> Manzini | C35: =IF(INTRO!$E$43="Non-endemic"," ", IF(COUNTRY_INFO!C35=0," ",COUNTRY_INFO!C35)) -> Kwaluseni | D35: =IF(INTRO!$E$43="Non-endemic", 0, IF(COUNTRY_INFO!$J35>0, IF(COUNTRY_INFO!$J35=4, 0, IF(COUNTRY_INFO!$J35=1, COUNTRY_INFO!$F35*0.33, IF(COUNTRY_INFO!$J35=2, COUNTRY_INFO!$F35*0.5, COUNTRY_INFO!$F35))), 0)) -> 4867.5 | E35: =IF(INTRO!$E$43="Non-endemic", 0, IF(COUNTRY_INFO!$J35>0, IF(COUNTRY_INFO!$J35=4, 0, IF(COUNTRY_INFO!$J35=1, 0, IF(COUNTRY_INFO!$J35=2, COUNTRY_INFO!$G35*0.2, COUNTRY_INFO!$G35))), 0)) -> 5297.8 | F35: 10165.3 | G35: =IF(INTRO!$E$43="Non-endemic", "Not required", COUNTRY_INFO!P35) -> 1 | H35: Yes | I35: =IF($D35=0,0,IF(AND($G35>0,$H35<>"Yes"),D35,IF(AND($G35>0,$H35="Yes"),COUNTRY_INFO!$F35,0))) -> 9735 | K35: 5297.8 | L35: 15032.8 | M35: 24337.5 | N35: 15893.4 | O35: 24337.5 | Q35: 24337.5 | R35: 25
A36: =IF(INTRO!$E$43="Non-endemic"," ", IF(COUNTRY_INFO!A36=0," ",COUNTRY_INFO!A36)) -> Swaziland | B36: =IF(INTRO!$E$43="Non-endemic"," ", IF(COUNTRY_INFO!B36=0," ",COUNTRY_INFO!B36)) -> Manzini | C36: =IF(INTRO!$E$43="Non-endemic"," ", IF(COUNTRY_INFO!C36=0," ",COUNTRY_INFO!C36)) -> La-Mgabhi | D36: =IF(INTRO!$E$43="Non-endemic", 0, IF(COUNTRY_INFO!$J36>0, IF(COUNTRY_INFO!$J36=4, 0, IF(COUNTRY_INFO!$J36=1, COUNTRY_INFO!$F36*0.33, IF(COUNTRY_INFO!$J36=2, COUNTRY_INFO!$F36*0.5, COUNTRY_INFO!$F36))), 0)) -> 1389 | E36: =IF(INTRO!$E$43="Non-endemic", 0, IF(COUNTRY_INFO!$J36>0, IF(COUNTRY_INFO!$J36=4, 0, IF(COUNTRY_INFO!$J36=1, 0, IF(COUNTRY_INFO!$J36=2, COUNTRY_INFO!$G36*0.2, COUNTRY_INFO!$G36))), 0)) -> 1512 | F36: 2901 | G36: =IF(INTRO!$E$43="Non-endemic", "Not required", COUNTRY_INFO!P36) -> 1 | H36: Yes | I36: =IF($D36=0,0,IF(AND($G36>0,$H36<>"Yes"),D36,IF(AND($G36>0,$H36="Yes"),COUNTRY_INFO!$F36,0))) -> 2778 | K36: 1512 | L36: 4290 | M36: 6945 | N36: 4536 | O36: 6945 | Q36: 6945 | R36: 7
A37: =IF(INTRO!$E$43="Non-endemic"," ", IF(COUNTRY_INFO!A37=0," ",COUNTRY_INFO!A37)) -> Swaziland | B37: =IF(INTRO!$E$43="Non-endemic"," ", IF(COUNTRY_INFO!B37=0," ",COUNTRY_INFO!B37)) -> Manzini | C37: =IF(INTRO!$E$43="Non-endemic"," ", IF(COUNTRY_INFO!C37=0," ",COUNTRY_INFO!C37)) -> Lobamba Lomdzala | D37: =IF(INTRO!$E$43="Non-endemic", 0, IF(COUNTRY_INFO!$J37>0, IF(COUNTRY_INFO!$J37=4, 0, IF(COUNTRY_INFO!$J37=1, COUNTRY_INFO!$F37*0.33, IF(COUNTRY_INFO!$J37=2, COUNTRY_INFO!$F37*0.5, COUNTRY_INFO!$F37))), 0)) -> 2190 | E37: =IF(INTRO!$E$43="Non-endemic", 0, IF(COUNTRY_INFO!$J37>0, IF(COUNTRY_INFO!$J37=4, 0, IF(COUNTRY_INFO!$J37=1, 0, IF(COUNTRY_INFO!$J37=2, COUNTRY_INFO!$G37*0.2, COUNTRY_INFO!$G37))), 0)) -> 2383.4 | F37: 4573.4 | G37: =IF(INTRO!$E$43="Non-endemic", "Not required", COUNTRY_INFO!P37) -> 1 | H37: Yes | I37: =IF($D37=0,0,IF(AND($G37>0,$H37<>"Yes"),D37,IF(AND($G37>0,$H37="Yes"),COUNTRY_INFO!$F37,0))) -> 4380 | K37: 2383.4 | L37: 6763.4 | M37: 10950 | N37: 7150.2 | O37: 10950 | Q37: 10950 | R37: 11
A38: =IF(INTRO!$E$43="Non-endemic"," ", IF(COUNTRY_INFO!A38=0," ",COUNTRY_INFO!A38)) -> Swaziland | B38: =IF(INTRO!$E$43="Non-endemic"," ", IF(COUNTRY_INFO!B38=0," ",COUNTRY_INFO!B38)) -> Manzini | C38: =IF(INTRO!$E$43="Non-endemic"," ", IF(COUNTRY_INFO!C38=0," ",COUNTRY_INFO!C38)) -> Ludzeludze | D38: =IF(INTRO!$E$43="Non-endemic", 0, IF(COUNTRY_INFO!$J38>0, IF(COUNTRY_INFO!$J38=4, 0, IF(COUNTRY_INFO!$J38=1, COUNTRY_INFO!$F38*0.33, IF(COUNTRY_INFO!$J38=2, COUNTRY_INFO!$F38*0.5, COUNTRY_INFO!$F38))), 0)) -> 3303.5 | E38: =IF(INTRO!$E$43="Non-endemic", 0, IF(COUNTRY_INFO!$J38>0, IF(COUNTRY_INFO!$J38=4, 0, IF(COUNTRY_INFO!$J38=1, 0, IF(COUNTRY_INFO!$J38=2, COUNTRY_INFO!$G38*0.2, COUNTRY_INFO!$G38))), 0)) -> 3595.4 | F38: 6898.9 | G38: =IF(INTRO!$E$43="Non-endemic", "Not required", COUNTRY_INFO!P38) -> 1 | H38: Yes | I38: =IF($D38=0,0,IF(AND($G38>0,$H38<>"Yes"),D38,IF(AND($G38>0,$H38="Yes"),COUNTRY_INFO!$F38,0))) -> 6607 | K38: 3595.4 | L38: 10202.4 | M38: 16517.5 | N38: 10786.2 | O38: 16517.5 | Q38: 16517.5 | R38: 17
A39: =IF(INTRO!$E$43="Non-endemic"," ", IF(COUNTRY_INFO!A39=0," ",COUNTRY_INFO!A39)) -> Swaziland | B39: =IF(INTRO!$E$43="Non-endemic"," ", IF(COUNTRY_INFO!B39=0," ",COUNTRY_INFO!B39)) -> Manzini | C39: =IF(INTRO!$E$43="Non-endemic"," ", IF(COUNTRY_INFO!C39=0," ",COUNTRY_INFO!C39)) -> Mafutseni | D39: =IF(INTRO!$E$43="Non-endemic", 0, IF(COUNTRY_INFO!$J39>0, IF(COUNTRY_INFO!$J39=4, 0, IF(COUNTRY_INFO!$J39=1, COUNTRY_INFO!$F39*0.33, IF(COUNTRY_INFO!$J39=2, COUNTRY_INFO!$F39*0.5, COUNTRY_INFO!$F39))), 0)) -> 1814.5 | E39: =IF(INTRO!$E$43="Non-endemic", 0, IF(COUNTRY_INFO!$J39>0, IF(COUNTRY_INFO!$J39=4, 0, IF(COUNTRY_INFO!$J39=1, 0, IF(COUNTRY_INFO!$J39=2, COUNTRY_INFO!$G39*0.2, COUNTRY_INFO!$G39))), 0)) -> 1974.6 | F39: 3789.1 | G39: =IF(INTRO!$E$43="Non-endemic", "Not required", COUNTRY_INFO!P39) -> 1 | H39: Yes | I39: =IF($D39=0,0,IF(AND($G39>0,$H39<>"Yes"),D39,IF(AND($G39>0,$H39="Yes"),COUNTRY_INFO!$F39,0))) -> 3629 | K39: 1974.6 | L39: 5603.6 | M39: 9072.5 | N39: 5923.8 | O39: 9072.5 | Q39: 9072.5 | R39: 10
A40: =IF(INTRO!$E$43="Non-endemic"," ", IF(COUNTRY_INFO!A40=0," ",COUNTRY_INFO!A40)) -> Swaziland | B40: =IF(INTRO!$E$43="Non-endemic"," ", IF(COUNTRY_INFO!B40=0," ",COUNTRY_INFO!B40)) -> Manzini | C40: =IF(INTRO!$E$43="Non-endemic"," ", IF(COUNTRY_INFO!C40=0," ",COUNTRY_INFO!C40)) -> Mahlangatsha | D40: =IF(INTRO!$E$43="Non-endemic", 0, IF(COUNTRY_INFO!$J40>0, IF(COUNTRY_INFO!$J40=4, 0, IF(COUNTRY_INFO!$J40=1, COUNTRY_INFO!$F40*0.33, IF(COUNTRY_INFO!$J40=2, COUNTRY_INFO!$F40*0.5, COUNTRY_INFO!$F40))), 0)) -> 1444.74 | E40: =IF(INTRO!$E$43="Non-endemic", 0, IF(COUNTRY_INFO!$J40>0, IF(COUNTRY_INFO!$J40=4, 0, IF(COUNTRY_INFO!$J40=1, 0, IF(COUNTRY_INFO!$J40=2, COUNTRY_INFO!$G40*0.2, COUNTRY_INFO!$G40))), 0)) -> 0 | F40: 1444.74 | G40: =IF(INTRO!$E$43="Non-endemic", "Not required", COUNTRY_INFO!P40) -> 1 | H40: Yes | I40: =IF($D40=0,0,IF(AND($G40>0,$H40<>"Yes"),D40,IF(AND($G40>0,$H40="Yes"),COUNTRY_INFO!$F40,0))) -> 4378 | K40: 0 | L40: 4378 | M40: 10945 | N40: 0 | O40: 10945 | Q40: 10945 | R40: 11
A41: =IF(INTRO!$E$43="Non-endemic"," ", IF(COUNTRY_INFO!A41=0," ",COUNTRY_INFO!A41)) -> Swaziland | B41: =IF(INTRO!$E$43="Non-endemic"," ", IF(COUNTRY_INFO!B41=0," ",COUNTRY_INFO!B41)) -> Manzini | C41: =IF(INTRO!$E$43="Non-endemic"," ", IF(COUNTRY_INFO!C41=0," ",COUNTRY_INFO!C41)) -> Mangcongco | D41: =IF(INTRO!$E$43="Non-endemic", 0, IF(COUNTRY_INFO!$J41>0, IF(COUNTRY_INFO!$J41=4, 0, IF(COUNTRY_INFO!$J41=1, COUNTRY_INFO!$F41*0.33, IF(COUNTRY_INFO!$J41=2, COUNTRY_INFO!$F41*0.5, COUNTRY_INFO!$F41))), 0)) -> 769 | E41: =IF(INTRO!$E$43="Non-endemic", 0, IF(COUNTRY_INFO!$J41>0, IF(COUNTRY_INFO!$J41=4, 0, IF(COUNTRY_INFO!$J41=1, 0, IF(COUNTRY_INFO!$J41=2, COUNTRY_INFO!$G41*0.2, COUNTRY_INFO!$G41))), 0)) -> 837.2 | F41: =SUM(D41:E41) -> 1606.2 | G41: =IF(INTRO!$E$43="Non-endemic", "Not required", COUNTRY_INFO!P41) -> 1 | H41: Yes | I41: =IF($D41=0,0,IF(AND($G41>0,$H41<>"Yes"),D41,IF(AND($G41>0,$H41="Yes"),COUNTRY_INFO!$F41,0))) -> 1538 | K41: =IF($G41>0,E41, 0) -> 837.2 | L41: =IF($J41=0,SUM(I41,K41),SUM(J41,K41)) -> 2375.2 | M41: =IF($J41=0,$I41*2.5,$J41*2.5) -> 3845 | N41: =$K41*3 -> 2511.6 | O41: =M41 -> 3845 | Q41: =IF($O41>$P41,O41-P41,0) -> 3845 | R41: =ROUNDUP($O41/1000,0) -> 4
A42: =IF(INTRO!$E$43="Non-endemic"," ", IF(COUNTRY_INFO!A42=0," ",COUNTRY_INFO!A42)) -> Swaziland | B42: =IF(INTRO!$E$43="Non-endemic"," ", IF(COUNTRY_INFO!B42=0," ",COUNTRY_INFO!B42)) -> Manzini | C42: =IF(INTRO!$E$43="Non-endemic"," ", IF(COUNTRY_INFO!C42=0," ",COUNTRY_INFO!C42)) -> Manzini North | D42: =IF(INTRO!$E$43="Non-endemic", 0, IF(COUNTRY_INFO!$J42>0, IF(COUNTRY_INFO!$J42=4, 0, IF(COUNTRY_INFO!$J42=1, COUNTRY_INFO!$F42*0.33, IF(COUNTRY_INFO!$J42=2, COUNTRY_INFO!$F42*0.5, COUNTRY_INFO!$F42))), 0)) -> 4605 | E42: =IF(INTRO!$E$43="Non-endemic", 0, IF(COUNTRY_INFO!$J42>0, IF(COUNTRY_INFO!$J42=4, 0, IF(COUNTRY_INFO!$J42=1, 0, IF(COUNTRY_INFO!$J42=2, COUNTRY_INFO!$G42*0.2, COUNTRY_INFO!$G42))), 0)) -> 5012.2 | F42: 9617.2 | G42: =IF(INTRO!$E$43="Non-endemic", "Not required", COUNTRY_INFO!P42) -> 1 | H42: Yes | I42: =IF($D42=0,0,IF(AND($G42>0,$H42<>"Yes"),D42,IF(AND($G42>0,$H42="Yes"),COUNTRY_INFO!$F42,0))) -> 9210 | K42: 5012.2 | L42: 14222.2 | M42: 23025 | N42: 15036.6 | O42: 23025 | Q42: 23025 | R42: 24
A43: =IF(INTRO!$E$43="Non-endemic"," ", IF(COUNTRY_INFO!A43=0," ",COUNTRY_INFO!A43)) -> Swaziland | B43: =IF(INTRO!$E$43="Non-endemic"," ", IF(COUNTRY_INFO!B43=0," ",COUNTRY_INFO!B43)) -> Manzini | C43: =IF(INTRO!$E$43="Non-endemic"," ", IF(COUNTRY_INFO!C43=0," ",COUNTRY_INFO!C43)) -> Manzini South | D43: =IF(INTRO!$E$43="Non-endemic", 0, IF(COUNTRY_INFO!$J43>0, IF(COUNTRY_INFO!$J43=4, 0, IF(COUNTRY_INFO!$J43=1, COUNTRY_INFO!$F43*0.33, IF(COUNTRY_INFO!$J43=2, COUNTRY_INFO!$F43*0.5, COUNTRY_INFO!$F43))), 0)) -> 1796 | E43: =IF(INTRO!$E$43="Non-endemic", 0, IF(COUNTRY_INFO!$J43>0, IF(COUNTRY_INFO!$J43=4, 0, IF(COUNTRY_INFO!$J43=1, 0, IF(COUNTRY_INFO!$J43=2, COUNTRY_INFO!$G43*0.2, COUNTRY_INFO!$G43))), 0)) -> 1954.8 | F43: 3750.8 | G43: =IF(INTRO!$E$43="Non-endemic", "Not required", COUNTRY_INFO!P43) -> 1 | H43: Yes | I43: =IF($D43=0,0,IF(AND($G43>0,$H43<>"Yes"),D43,IF(AND($G43>0,$H43="Yes"),COUNTRY_INFO!$F43,0))) -> 3592 | K43: 1954.8 | L43: 5546.8 | M43: 8980 | N43: 5864.4 | O43: 8980 | Q43: 8980 | R43: 9
A44: =IF(INTRO!$E$43="Non-endemic"," ", IF(COUNTRY_INFO!A44=0," ",COUNTRY_INFO!A44)) -> Swaziland | B44: =IF(INTRO!$E$43="Non-endemic"," ", IF(COUNTRY_INFO!B44=0," ",COUNTRY_INFO!B44)) -> Manzini | C44: =IF(INTRO!$E$43="Non-endemic"," ", IF(COUNTRY_INFO!C44=0," ",COUNTRY_INFO!C44)) -> Mhlambanyatsi | D44: =IF(INTRO!$E$43="Non-endemic", 0, IF(COUNTRY_INFO!$J44>0, IF(COUNTRY_INFO!$J44=4, 0, IF(COUNTRY_INFO!$J44=1, COUNTRY_INFO!$F44*0.33, IF(COUNTRY_INFO!$J44=2, COUNTRY_INFO!$F44*0.5, COUNTRY_INFO!$F44))), 0)) -> 690.69 | E44: =IF(INTRO!$E$43="Non-endemic", 0, IF(COUNTRY_INFO!$J44>0, IF(COUNTRY_INFO!$J44=4, 0, IF(COUNTRY_INFO!$J44=1, 0, IF(COUNTRY_INFO!$J44=2, COUNTRY_INFO!$G44*0.2, COUNTRY_INFO!$G44))), 0)) -> 0 | F44: 690.69 | G44: =IF(INTRO!$E$43="Non-endemic", "Not required", COUNTRY_INFO!P44) -> 1 | H44: Yes | I44: =IF($D44=0,0,IF(AND($G44>0,$H44<>"Yes"),D44,IF(AND($G44>0,$H44="Yes"),COUNTRY_INFO!$F44,0))) -> 2093 | K44: 0 | L44: 2093 | M44: 5232.5 | N44: 0 | O44: 5232.5 | Q44: 5232.5 | R44: 6
A45: =IF(INTRO!$E$43="Non-endemic"," ", IF(COUNTRY_INFO!A45=0," ",COUNTRY_INFO!A45)) -> Swaziland | B45: =IF(INTRO!$E$43="Non-endemic"," ", IF(COUNTRY_INFO!B45=0," ",COUNTRY_INFO!B45)) -> Manzini | C45: =IF(INTRO!$E$43="Non-endemic"," ", IF(COUNTRY_INFO!C45=0," ",COUNTRY_INFO!C45)) -> Mkhiweni | D45: =IF(INTRO!$E$43="Non-endemic", 0, IF(COUNTRY_INFO!$J45>0, IF(COUNTRY_INFO!$J45=4, 0, IF(COUNTRY_INFO!$J45=1, COUNTRY_INFO!$F45*0.33, IF(COUNTRY_INFO!$J45=2, COUNTRY_INFO!$F45*0.5, COUNTRY_INFO!$F45))), 0)) -> 1839.75 | E45: =IF(INTRO!$E$43="Non-endemic", 0, IF(COUNTRY_INFO!$J45>0, IF(COUNTRY_INFO!$J45=4, 0, IF(COUNTRY_INFO!$J45=1, 0, IF(COUNTRY_INFO!$J45=2, COUNTRY_INFO!$G45*0.2, COUNTRY_INFO!$G45))), 0)) -> 0 | F45: 1839.75 | G45: =IF(INTRO!$E$43="Non-endemic", "Not required", COUNTRY_INFO!P45) -> 1 | H45: Yes | I45: =IF($D45=0,0,IF(AND($G45>0,$H45<>"Yes"),D45,IF(AND($G45>0,$H45="Yes"),COUNTRY_INFO!$F45,0))) -> 5575 | K45: 0 | L45: 5575 | M45: 13937.5 | N45: 0 | O45: 13937.5 | Q45: 13937.5 | R45: 14
A46: =IF(INTRO!$E$43="Non-endemic"," ", IF(COUNTRY_INFO!A46=0," ",COUNTRY_INFO!A46)) -> Swaziland | B46: =IF(INTRO!$E$43="Non-endemic"," ", IF(COUNTRY_INFO!B46=0," ",COUNTRY_INFO!B46)) -> Manzini | C46: =IF(INTRO!$E$43="Non-endemic"," ", IF(COUNTRY_INFO!C46=0," ",COUNTRY_INFO!C46)) -> Mtfongwaneni | D46: =IF(INTRO!$E$43="Non-endemic", 0, IF(COUNTRY_INFO!$J46>0, IF(COUNTRY_INFO!$J46=4, 0, IF(COUNTRY_INFO!$J46=1, COUNTRY_INFO!$F46*0.33, IF(COUNTRY_INFO!$J46=2, COUNTRY_INFO!$F46*0.5, COUNTRY_INFO!$F46))), 0)) -> 1330.23 | E46: =IF(INTRO!$E$43="Non-endemic", 0, IF(COUNTRY_INFO!$J46>0, IF(COUNTRY_INFO!$J46=4, 0, IF(COUNTRY_INFO!$J46=1, 0, IF(COUNTRY_INFO!$J46=2, COUNTRY_INFO!$G46*0.2, COUNTRY_INFO!$G46))), 0)) -> 0 | F46: 1330.23 | G46: =IF(INTRO!$E$43="Non-endemic", "Not required", COUNTRY_INFO!P46) -> 1 | H46: Yes | I46: =IF($D46=0,0,IF(AND($G46>0,$H46<>"Yes"),D46,IF(AND($G46>0,$H46="Yes"),COUNTRY_INFO!$F46,0))) -> 4031 | K46: 0 | L46: 4031 | M46: 10077.5 | N46: 0 | O46: 10077.5 | Q46: 10077.5 | R46: 11
A47: =IF(INTRO!$E$43="Non-endemic"," ", IF(COUNTRY_INFO!A47=0," ",COUNTRY_INFO!A47)) -> Swaziland | B47: =IF(INTRO!$E$43="Non-endemic"," ", IF(COUNTRY_INFO!B47=0," ",COUNTRY_INFO!B47)) -> Manzini | C47: =IF(INTRO!$E$43="Non-endemic"," ", IF(COUNTRY_INFO!C47=0," ",COUNTRY_INFO!C47)) -> Ngwempisi | D47: =IF(INTRO!$E$43="Non-endemic", 0, IF(COUNTRY_INFO!$J47>0, IF(COUNTRY_INFO!$J47=4, 0, IF(COUNTRY_INFO!$J47=1, COUNTRY_INFO!$F47*0.33, IF(COUNTRY_INFO!$J47=2, COUNTRY_INFO!$F47*0.5, COUNTRY_INFO!$F47))), 0)) -> 3172.5 | E47: =IF(INTRO!$E$43="Non-endemic", 0, IF(COUNTRY_INFO!$J47>0, IF(COUNTRY_INFO!$J47=4, 0, IF(COUNTRY_INFO!$J47=1, 0, IF(COUNTRY_INFO!$J47=2, COUNTRY_INFO!$G47*0.2, COUNTRY_INFO!$G47))), 0)) -> 3453 | F47: 6625.5 | G47: =IF(INTRO!$E$43="Non-endemic", "Not required", COUNTRY_INFO!P47) -> 1 | H47: Yes | I47: =IF($D47=0,0,IF(AND($G47>0,$H47<>"Yes"),D47,IF(AND($G47>0,$H47="Yes"),COUNTRY_INFO!$F47,0))) -> 6345 | K47: 3453 | L47: 9798 | M47: 15862.5 | N47: 10359 | O47: 15862.5 | Q47: 15862.5 | R47: 16
A48: =IF(INTRO!$E$43="Non-endemic"," ", IF(COUNTRY_INFO!A48=0," ",COUNTRY_INFO!A48)) -> Swaziland | B48: =IF(INTRO!$E$43="Non-endemic"," ", IF(COUNTRY_INFO!B48=0," ",COUNTRY_INFO!B48)) -> Manzini | C48: =IF(INTRO!$E$43="Non-endemic"," ", IF(COUNTRY_INFO!C48=0," ",COUNTRY_INFO!C48)) -> Nhlambeni | D48: =IF(INTRO!$E$43="Non-endemic", 0, IF(COUNTRY_INFO!$J48>0, IF(COUNTRY_INFO!$J48=4, 0, IF(COUNTRY_INFO!$J48=1, COUNTRY_INFO!$F48*0.33, IF(COUNTRY_INFO!$J48=2, COUNTRY_INFO!$F48*0.5, COUNTRY_INFO!$F48))), 0)) -> 1452.5 | E48: =IF(INTRO!$E$43="Non-endemic", 0, IF(COUNTRY_INFO!$J48>0, IF(COUNTRY_INFO!$J48=4, 0, IF(COUNTRY_INFO!$J48=1, 0, IF(COUNTRY_INFO!$J48=2, COUNTRY_INFO!$G48*0.2, COUNTRY_INFO!$G48))), 0)) -> 1580.6 | F48: 3033.1 | G48: =IF(INTRO!$E$43="Non-endemic", "Not required", COUNTRY_INFO!P48) -> 1 | H48: Yes | I48: =IF($D48=0,0,IF(AND($G48>0,$H48<>"Yes"),D48,IF(AND($G48>0,$H48="Yes"),COUNTRY_INFO!$F48,0))) -> 2905 | K48: 1580.6 | L48: 4485.6 | M48: 7262.5 | N48: 4741.8 | O48: 7262.5 | Q48: 7262.5 | R48: 8
A49: =IF(INTRO!$E$43="Non-endemic"," ", IF(COUNTRY_INFO!A49=0," ",COUNTRY_INFO!A49)) -> Swaziland | B49: =IF(INTRO!$E$43="Non-endemic"," ", IF(COUNTRY_INFO!B49=0," ",COUNTRY_INFO!B49)) -> Manzini | C49: =IF(INTRO!$E$43="Non-endemic"," ", IF(COUNTRY_INFO!C49=0," ",COUNTRY_INFO!C49)) -> Ntondozi | D49: =IF(INTRO!$E$43="Non-endemic", 0, IF(COUNTRY_INFO!$J49>0, IF(COUNTRY_INFO!$J49=4, 0, IF(COUNTRY_INFO!$J49=1, COUNTRY_INFO!$F49*0.33, IF(COUNTRY_INFO!$J49=2, COUNTRY_INFO!$F49*0.5, COUNTRY_INFO!$F49))), 0)) -> 1135.53 | E49: =IF(INTRO!$E$43="Non-endemic", 0, IF(COUNTRY_INFO!$J49>0, IF(COUNTRY_INFO!$J49=4, 0, IF(COUNTRY_INFO!$J49=1, 0, IF(COUNTRY_INFO!$J49=2, COUNTRY_INFO!$G49*0.2, COUNTRY_INFO!$G49))), 0)) -> 0 | F49: 1135.53 | G49: =IF(INTRO!$E$43="Non-endemic", "Not required", COUNTRY_INFO!P49) -> 1 | H49: Yes | I49: =IF($D49=0,0,IF(AND($G49>0,$H49<>"Yes"),D49,IF(AND($G49>0,$H49="Yes"),COUNTRY_INFO!$F49,0))) -> 3441 | K49: 0 | L49: 3441 | M49: 8602.5 | N49: 0 | O49: 8602.5 | Q49: 8602.5 | R49: 9
A50: =IF(INTRO!$E$43="Non-endemic"," ", IF(COUNTRY_INFO!A50=0," ",COUNTRY_INFO!A50)) -> Swaziland | B50: =IF(INTRO!$E$43="Non-endemic"," ", IF(COUNTRY_INFO!B50=0," ",COUNTRY_INFO!B50)) -> Shiselweni | C50: =IF(INTRO!$E$43="Non-endemic"," ", IF(COUNTRY_INFO!C50=0," ",COUNTRY_INFO!C50)) -> Gege | D50: =IF(INTRO!$E$43="Non-endemic", 0, IF(COUNTRY_INFO!$J50>0, IF(COUNTRY_INFO!$J50=4, 0, IF(COUNTRY_INFO!$J50=1, COUNTRY_INFO!$F50*0.33, IF(COUNTRY_INFO!$J50=2, COUNTRY_INFO!$F50*0.5, COUNTRY_INFO!$F50))), 0)) -> 2120 | E50: =IF(INTRO!$E$43="Non-endemic", 0, IF(COUNTRY_INFO!$J50>0, IF(COUNTRY_INFO!$J50=4, 0, IF(COUNTRY_INFO!$J50=1, 0, IF(COUNTRY_INFO!$J50=2, COUNTRY_INFO!$G50*0.2, COUNTRY_INFO!$G50))), 0)) -> 2307.2 | F50: 4427.2 | G50: =IF(INTRO!$E$43="Non-endemic", "Not required", COUNTRY_INFO!P50) -> 1 | H50: Yes | I50: =IF($D50=0,0,IF(AND($G50>0,$H50<>"Yes"),D50,IF(AND($G50>0,$H50="Yes"),COUNTRY_INFO!$F50,0))) -> 4240 | K50: 2307.2 | L50: 6547.2 | M50: 10600 | N50: 6921.6 | O50: 10600 | Q50: 10600 | R50: 11
A51: =IF(INTRO!$E$43="Non-endemic"," ", IF(COUNTRY_INFO!A51=0," ",COUNTRY_INFO!A51)) -> Swaziland | B51: =IF(INTRO!$E$43="Non-endemic"," ", IF(COUNTRY_INFO!B51=0," ",COUNTRY_INFO!B51)) -> Shiselweni | C51: =IF(INTRO!$E$43="Non-endemic"," ", IF(COUNTRY_INFO!C51=0," ",COUNTRY_INFO!C51)) -> Hosea | D51: =IF(INTRO!$E$43="Non-endemic", 0, IF(COUNTRY_INFO!$J51>0, IF(COUNTRY_INFO!$J51=4, 0, IF(COUNTRY_INFO!$J51=1, COUNTRY_INFO!$F51*0.33, IF(COUNTRY_INFO!$J51=2, COUNTRY_INFO!$F51*0.5, COUNTRY_INFO!$F51))), 0)) -> 2284.5 | E51: =IF(INTRO!$E$43="Non-endemic", 0, IF(COUNTRY_INFO!$J51>0, IF(COUNTRY_INFO!$J51=4, 0, IF(COUNTRY_INFO!$J51=1, 0, IF(COUNTRY_INFO!$J51=2, COUNTRY_INFO!$G51*0.2, COUNTRY_INFO!$G51))), 0)) -> 2486.2 | F51: 4770.7 | G51: =IF(INTRO!$E$43="Non-endemic", "Not required", COUNTRY_INFO!P51) -> 1 | H51: Yes | I51: =IF($D51=0,0,IF(AND($G51>0,$H51<>"Yes"),D51,IF(AND($G51>0,$H51="Yes"),COUNTRY_INFO!$F51,0))) -> 4569 | K51: 2486.2 | L51: 7055.2 | M51: 11422.5 | N51: 7458.6 | O51: 11422.5 | Q51: 11422.5 | R51: 12
A52: =IF(INTRO!$E$43="Non-endemic"," ", IF(COUNTRY_INFO!A52=0," ",COUNTRY_INFO!A52)) -> Swaziland | B52: =IF(INTRO!$E$43="Non-endemic"," ", IF(COUNTRY_INFO!B52=0," ",COUNTRY_INFO!B52)) -> Shiselweni | C52: =IF(INTRO!$E$43="Non-endemic"," ", IF(COUNTRY_INFO!C52=0," ",COUNTRY_INFO!C52)) -> Kubuta | D52: =IF(INTRO!$E$43="Non-endemic", 0, IF(COUNTRY_INFO!$J52>0, IF(COUNTRY_INFO!$J52=4, 0, IF(COUNTRY_INFO!$J52=1, COUNTRY_INFO!$F52*0.33, IF(COUNTRY_INFO!$J52=2, COUNTRY_INFO!$F52*0.5, COUNTRY_INFO!$F52))), 0)) -> 806.5 | E52: =IF(INTRO!$E$43="Non-endemic", 0, IF(COUNTRY_INFO!$J52>0, IF(COUNTRY_INFO!$J52=4, 0, IF(COUNTRY_INFO!$J52=1, 0, IF(COUNTRY_INFO!$J52=2, COUNTRY_INFO!$G52*0.2, COUNTRY_INFO!$G52))), 0)) -> 877.8 | F52: 1684.3 | G52: =IF(INTRO!$E$43="Non-endemic", "Not required", COUNTRY_INFO!P52) -> 1 | H52: Yes | I52: =IF($D52=0,0,IF(AND($G52>0,$H52<>"Yes"),D52,IF(AND($G52>0,$H52="Yes"),COUNTRY_INFO!$F52,0))) -> 1613 | K52: 877.8 | L52: 2490.8 | M52: 4032.5 | N52: 2633.4 | O52: 4032.5 | Q52: 4032.5 | R52: 5
A53: =IF(INTRO!$E$43="Non-endemic"," ", IF(COUNTRY_INFO!A53=0," ",COUNTRY_INFO!A53)) -> Swaziland | B53: =IF(INTRO!$E$43="Non-endemic"," ", IF(COUNTRY_INFO!B53=0," ",COUNTRY_INFO!B53)) -> Shiselweni | C53: =IF(INTRO!$E$43="Non-endemic"," ", IF(COUNTRY_INFO!C53=0," ",COUNTRY_INFO!C53)) -> Maseyisini | D53: =IF(INTRO!$E$43="Non-endemic", 0, IF(COUNTRY_INFO!$J53>0, IF(COUNTRY_INFO!$J53=4, 0, IF(COUNTRY_INFO!$J53=1, COUNTRY_INFO!$F53*0.33, IF(COUNTRY_INFO!$J53=2, COUNTRY_INFO!$F53*0.5, COUNTRY_INFO!$F53))), 0)) -> 3258 | E53: =IF(INTRO!$E$43="Non-endemic", 0, IF(COUNTRY_INFO!$J53>0, IF(COUNTRY_INFO!$J53=4, 0, IF(COUNTRY_INFO!$J53=1, 0, IF(COUNTRY_INFO!$J53=2, COUNTRY_INFO!$G53*0.2, COUNTRY_INFO!$G53))), 0)) -> 3546.2 | F53: 6804.2 | G53: =IF(INTRO!$E$43="Non-endemic", "Not required", COUNTRY_INFO!P53) -> 1 | H53: Yes | I53: =IF($D53=0,0,IF(AND($G53>0,$H53<>"Yes"),D53,IF(AND($G53>0,$H53="Yes"),COUNTRY_INFO!$F53,0))) -> 6516 | K53: 3546.2 | L53: 10062.2 | M53: 16290 | N53: 10638.6 | O53: 16290 | Q53: 16290 | R53: 17
A54: =IF(INTRO!$E$43="Non-endemic"," ", IF(COUNTRY_INFO!A54=0," ",COUNTRY_INFO!A54)) -> Swaziland | B54: =IF(INTRO!$E$43="Non-endemic"," ", IF(COUNTRY_INFO!B54=0," ",COUNTRY_INFO!B54)) -> Shiselweni | C54: =IF(INTRO!$E$43="Non-endemic"," ", IF(COUNTRY_INFO!C54=0," ",COUNTRY_INFO!C54)) -> Matsanjeni South | D54: =IF(INTRO!$E$43="Non-endemic", 0, IF(COUNTRY_INFO!$J54>0, IF(COUNTRY_INFO!$J54=4, 0, IF(COUNTRY_INFO!$J54=1, COUNTRY_INFO!$F54*0.33, IF(COUNTRY_INFO!$J54=2, COUNTRY_INFO!$F54*0.5, COUNTRY_INFO!$F54))), 0)) -> 1891.5 | E54: =IF(INTRO!$E$43="Non-endemic", 0, IF(COUNTRY_INFO!$J54>0, IF(COUNTRY_INFO!$J54=4, 0, IF(COUNTRY_INFO!$J54=1, 0, IF(COUNTRY_INFO!$J54=2, COUNTRY_INFO!$G54*0.2, COUNTRY_INFO!$G54))), 0)) -> 2059 | F54: 3950.5 | G54: =IF(INTRO!$E$43="Non-endemic", "Not required", COUNTRY_INFO!P54) -> 1 | H54: Yes | I54: =IF($D54=0,0,IF(AND($G54>0,$H54<>"Yes"),D54,IF(AND($G54>0,$H54="Yes"),COUNTRY_INFO!$F54,0))) -> 3783 | K54: 2059 | L54: 5842 | M54: 9457.5 | N54: 6177 | O54: 9457.5 | Q54: 9457.5 | R54: 10
A55: =IF(INTRO!$E$43="Non-endemic"," ", IF(COUNTRY_INFO!A55=0," ",COUNTRY_INFO!A55)) -> Swaziland | B55: =IF(INTRO!$E$43="Non-endemic"," ", IF(COUNTRY_INFO!B55=0," ",COUNTRY_INFO!B55)) -> Shiselweni | C55: =IF(INTRO!$E$43="Non-endemic"," ", IF(COUNTRY_INFO!C55=0," ",COUNTRY_INFO!C55)) -> Mtsambama | D55: =IF(INTRO!$E$43="Non-endemic", 0, IF(COUNTRY_INFO!$J55>0, IF(COUNTRY_INFO!$J55=4, 0, IF(COUNTRY_INFO!$J55=1, COUNTRY_INFO!$F55*0.33, IF(COUNTRY_INFO!$J55=2, COUNTRY_INFO!$F55*0.5, COUNTRY_INFO!$F55))), 0)) -> 2202 | E55: =IF(INTRO!$E$43="Non-endemic", 0, IF(COUNTRY_INFO!$J55>0, IF(COUNTRY_INFO!$J55=4, 0, IF(COUNTRY_INFO!$J55=1, 0, IF(COUNTRY_INFO!$J55=2, COUNTRY_INFO!$G55*0.2, COUNTRY_INFO!$G55))), 0)) -> 2396.6 | F55: 4598.6 | G55: =IF(INTRO!$E$43="Non-endemic", "Not required", COUNTRY_INFO!P55) -> 1 | H55: Yes | I55: =IF($D55=0,0,IF(AND($G55>0,$H55<>"Yes"),D55,IF(AND($G55>0,$H55="Yes"),COUNTRY_INFO!$F55,0))) -> 4404 | K55: 2396.6 | L55: 6800.6 | M55: 11010 | N55: 7189.8 | O55: 11010 | Q55: 11010 | R55: 12
A56: =IF(INTRO!$E$43="Non-endemic"," ", IF(COUNTRY_INFO!A56=0," ",COUNTRY_INFO!A56)) -> Swaziland | B56: =IF(INTRO!$E$43="Non-endemic"," ", IF(COUNTRY_INFO!B56=0," ",COUNTRY_INFO!B56)) -> Shiselweni | C56: =IF(INTRO!$E$43="Non-endemic"," ", IF(COUNTRY_INFO!C56=0," ",COUNTRY_INFO!C56)) -> Ngudzeni | D56: =IF(INTRO!$E$43="Non-endemic", 0, IF(COUNTRY_INFO!$J56>0, IF(COUNTRY_INFO!$J56=4, 0, IF(COUNTRY_INFO!$J56=1, COUNTRY_INFO!$F56*0.33, IF(COUNTRY_INFO!$J56=2, COUNTRY_INFO!$F56*0.5, COUNTRY_INFO!$F56))), 0)) -> 938.5 | E56: =IF(INTRO!$E$43="Non-endemic", 0, IF(COUNTRY_INFO!$J56>0, IF(COUNTRY_INFO!$J56=4, 0, IF(COUNTRY_INFO!$J56=1, 0, IF(COUNTRY_INFO!$J56=2, COUNTRY_INFO!$G56*0.2, COUNTRY_INFO!$G56))), 0)) -> 1021.6 | F56: 1960.1 | G56: =IF(INTRO!$E$43="Non-endemic", "Not required", COUNTRY_INFO!P56) -> 1 | H56: Yes | I56: =IF($D56=0,0,IF(AND($G56>0,$H56<>"Yes"),D56,IF(AND($G56>0,$H56="Yes"),COUNTRY_INFO!$F56,0))) -> 1877 | K56: 1021.6 | L56: 2898.6 | M56: 4692.5 | N56: 3064.8 | O56: 4692.5 | Q56: 4692.5 | R56: 5
A57: =IF(INTRO!$E$43="Non-endemic"," ", IF(COUNTRY_INFO!A57=0," ",COUNTRY_INFO!A57)) -> Swaziland | B57: =IF(INTRO!$E$43="Non-endemic"," ", IF(COUNTRY_INFO!B57=0," ",COUNTRY_INFO!B57)) -> Shiselweni | C57: =IF(INTRO!$E$43="Non-endemic"," ", IF(COUNTRY_INFO!C57=0," ",COUNTRY_INFO!C57)) -> Nkwene | D57: =IF(INTRO!$E$43="Non-endemic", 0, IF(COUNTRY_INFO!$J57>0, IF(COUNTRY_INFO!$J57=4, 0, IF(COUNTRY_INFO!$J57=1, COUNTRY_INFO!$F57*0.33, IF(COUNTRY_INFO!$J57=2, COUNTRY_INFO!$F57*0.5, COUNTRY_INFO!$F57))), 0)) -> 835 | E57: =IF(INTRO!$E$43="Non-endemic", 0, IF(COUNTRY_INFO!$J57>0, IF(COUNTRY_INFO!$J57=4, 0, IF(COUNTRY_INFO!$J57=1, 0, IF(COUNTRY_INFO!$J57=2, COUNTRY_INFO!$G57*0.2, COUNTRY_INFO!$G57))), 0)) -> 908.8 | F57: 1743.8 | G57: =IF(INTRO!$E$43="Non-endemic", "Not required", COUNTRY_INFO!P57) -> 1 | H57: Yes | I57: =IF($D57=0,0,IF(AND($G57>0,$H57<>"Yes"),D57,IF(AND($G57>0,$H57="Yes"),COUNTRY_INFO!$F57,0))) -> 1670 | K57: 908.8 | L57: 2578.8 | M57: 4175 | N57: 2726.4 | O57: 4175 | Q57: 4175 | R57: 5
A58: =IF(INTRO!$E$43="Non-endemic"," ", IF(COUNTRY_INFO!A58=0," ",COUNTRY_INFO!A58)) -> Swaziland | B58: =IF(INTRO!$E$43="Non-endemic"," ", IF(COUNTRY_INFO!B58=0," ",COUNTRY_INFO!B58)) -> Shiselweni | C58: =IF(INTRO!$E$43="Non-endemic"," ", IF(COUNTRY_INFO!C58=0," ",COUNTRY_INFO!C58)) -> Sandleni | D58: =IF(INTRO!$E$43="Non-endemic", 0, IF(COUNTRY_INFO!$J58>0, IF(COUNTRY_INFO!$J58=4, 0, IF(COUNTRY_INFO!$J58=1, COUNTRY_INFO!$F58*0.33, IF(COUNTRY_INFO!$J58=2, COUNTRY_INFO!$F58*0.5, COUNTRY_INFO!$F58))), 0)) -> 1539 | E58: =IF(INTRO!$E$43="Non-endemic", 0, IF(COUNTRY_INFO!$J58>0, IF(COUNTRY_INFO!$J58=4, 0, IF(COUNTRY_INFO!$J58=1, 0, IF(COUNTRY_INFO!$J58=2, COUNTRY_INFO!$G58*0.2, COUNTRY_INFO!$G58))), 0)) -> 1675 | F58: 3214 | G58: =IF(INTRO!$E$43="Non-endemic", "Not required", COUNTRY_INFO!P58) -> 1 | H58: Yes | I58: =IF($D58=0,0,IF(AND($G58>0,$H58<>"Yes"),D58,IF(AND($G58>0,$H58="Yes"),COUNTRY_INFO!$F58,0))) -> 3078 | K58: 1675 | L58: 4753 | M58: 7695 | N58: 5025 | O58: 7695 | Q58: 7695 | R58: 8
A59: =IF(INTRO!$E$43="Non-endemic"," ", IF(COUNTRY_INFO!A59=0," ",COUNTRY_INFO!A59)) -> Swaziland | B59: =IF(INTRO!$E$43="Non-endemic"," ", IF(COUNTRY_INFO!B59=0," ",COUNTRY_INFO!B59)) -> Shiselweni | C59: =IF(INTRO!$E$43="Non-endemic"," ", IF(COUNTRY_INFO!C59=0," ",COUNTRY_INFO!C59)) -> Shiselweni 1 | D59: =IF(INTRO!$E$43="Non-endemic", 0, IF(COUNTRY_INFO!$J59>0, IF(COUNTRY_INFO!$J59=4, 0, IF(COUNTRY_INFO!$J59=1, COUNTRY_INFO!$F59*0.33, IF(COUNTRY_INFO!$J59=2, COUNTRY_INFO!$F59*0.5, COUNTRY_INFO!$F59))), 0)) -> 1494 | E59: =IF(INTRO!$E$43="Non-endemic", 0, IF(COUNTRY_INFO!$J59>0, IF(COUNTRY_INFO!$J59=4, 0, IF(COUNTRY_INFO!$J59=1, 0, IF(COUNTRY_INFO!$J59=2, COUNTRY_INFO!$G59*0.2, COUNTRY_INFO!$G59))), 0)) -> 1626 | F59: 3120 | G59: =IF(INTRO!$E$43="Non-endemic", "Not required", COUNTRY_INFO!P59) -> 1 | H59: Yes | I59: =IF($D59=0,0,IF(AND($G59>0,$H59<>"Yes"),D59,IF(AND($G59>0,$H59="Yes"),COUNTRY_INFO!$F59,0))) -> 2988 | K59: 1626 | L59: 4614 | M59: 7470 | N59: 4878 | O59: 7470 | Q59: 7470 | R59: 8
A60: =IF(INTRO!$E$43="Non-endemic"," ", IF(COUNTRY_INFO!A60=0," ",COUNTRY_INFO!A60)) -> Swaziland | B60: =IF(INTRO!$E$43="Non-endemic"," ", IF(COUNTRY_INFO!B60=0," ",COUNTRY_INFO!B60)) -> Shiselweni | C60: =IF(INTRO!$E$43="Non-endemic"," ", IF(COUNTRY_INFO!C60=0," ",COUNTRY_INFO!C60)) -> Shiselweni 2 | D60: =IF(INTRO!$E$43="Non-endemic", 0, IF(COUNTRY_INFO!$J60>0, IF(COUNTRY_INFO!$J60=4, 0, IF(COUNTRY_INFO!$J60=1, COUNTRY_INFO!$F60*0.33, IF(COUNTRY_INFO!$J60=2, COUNTRY_INFO!$F60*0.5, COUNTRY_INFO!$F60))), 0)) -> 3037 | E60: =IF(INTRO!$E$43="Non-endemic", 0, IF(COUNTRY_INFO!$J60>0, IF(COUNTRY_INFO!$J60=4, 0, IF(COUNTRY_INFO!$J60=1, 0, IF(COUNTRY_INFO!$J60=2, COUNTRY_INFO!$G60*0.2, COUNTRY_INFO!$G60))), 0)) -> 3305.2 | F60: 6342.2 | G60: =IF(INTRO!$E$43="Non-endemic", "Not required", COUNTRY_INFO!P60) -> 1 | H60: Yes | I60: =IF($D60=0,0,IF(AND($G60>0,$H60<>"Yes"),D60,IF(AND($G60>0,$H60="Yes"),COUNTRY_INFO!$F60,0))) -> 6074 | K60: 3305.2 | L60: 9379.2 | M60: 15185 | N60: 9915.6 | O60: 15185 | Q60: 15185 | R60: 16
A61: =IF(INTRO!$E$43="Non-endemic"," ", IF(COUNTRY_INFO!A61=0," ",COUNTRY_INFO!A61)) -> Swaziland | B61: =IF(INTRO!$E$43="Non-endemic"," ", IF(COUNTRY_INFO!B61=0," ",COUNTRY_INFO!B61)) -> Shiselweni | C61: =IF(INTRO!$E$43="Non-endemic"," ", IF(COUNTRY_INFO!C61=0," ",COUNTRY_INFO!C61)) -> Sigwe | D61: =IF(INTRO!$E$43="Non-endemic", 0, IF(COUNTRY_INFO!$J61>0, IF(COUNTRY_INFO!$J61=4, 0, IF(COUNTRY_INFO!$J61=1, COUNTRY_INFO!$F61*0.33, IF(COUNTRY_INFO!$J61=2, COUNTRY_INFO!$F61*0.5, COUNTRY_INFO!$F61))), 0)) -> 1372 | E61: =IF(INTRO!$E$43="Non-endemic", 0, IF(COUNTRY_INFO!$J61>0, IF(COUNTRY_INFO!$J61=4, 0, IF(COUNTRY_INFO!$J61=1, 0, IF(COUNTRY_INFO!$J61=2, COUNTRY_INFO!$G61*0.2, COUNTRY_INFO!$G61))), 0)) -> 1493.2 | F61: 2865.2 | G61: =IF(INTRO!$E$43="Non-endemic", "Not required", COUNTRY_INFO!P61) -> 1 | H61: Yes | I61: =IF($D61=0,0,IF(AND($G61>0,$H61<>"Yes"),D61,IF(AND($G61>0,$H61="Yes"),COUNTRY_INFO!$F61,0))) -> 2744 | K61: 1493.2 | L61: 4237.2 | M61: 6860 | N61: 4479.6 | O61: 6860 | Q61: 6860 | R61: 7
A62: =IF(INTRO!$E$43="Non-endemic"," ", IF(COUNTRY_INFO!A62=0," ",COUNTRY_INFO!A62)) -> Swaziland | B62: =IF(INTRO!$E$43="Non-endemic"," ", IF(COUNTRY_INFO!B62=0," ",COUNTRY_INFO!B62)) -> Shiselweni | C62: =IF(INTRO!$E$43="Non-endemic"," ", IF(COUNTRY_INFO!C62=0," ",COUNTRY_INFO!C62)) -> Somntongo | D62: =IF(INTRO!$E$43="Non-endemic", 0, IF(COUNTRY_INFO!$J62>0, IF(COUNTRY_INFO!$J62=4, 0, IF(COUNTRY_INFO!$J62=1, COUNTRY_INFO!$F62*0.33, IF(COUNTRY_INFO!$J62=2, COUNTRY_INFO!$F62*0.5, COUNTRY_INFO!$F62))), 0)) -> 635.5 | E62: =IF(INTRO!$E$43="Non-endemic", 0, IF(COUNTRY_INFO!$J62>0, IF(COUNTRY_INFO!$J62=4, 0, IF(COUNTRY_INFO!$J62=1, 0, IF(COUNTRY_INFO!$J62=2, COUNTRY_INFO!$G62*0.2, COUNTRY_INFO!$G62))), 0)) -> 692 | F62: 1327.5 | G62: =IF(INTRO!$E$43="Non-endemic", "Not required", COUNTRY_INFO!P62) -> 1 | H62: Yes | I62: =IF($D62=0,0,IF(AND($G62>0,$H62<>"Yes"),D62,IF(AND($G62>0,$H62="Yes"),COUNTRY_INFO!$F62,0))) -> 1271 | K62: 692 | L62: 1963 | M62: 3177.5 | N62: 2076 | O62: 3177.5 | Q62: 3177.5 | R62: 4
A63: =IF(INTRO!$E$43="Non-endemic"," ", IF(COUNTRY_INFO!A63=0," ",COUNTRY_INFO!A63)) -> Swaziland | B63: =IF(INTRO!$E$43="Non-endemic"," ", IF(COUNTRY_INFO!B63=0," ",COUNTRY_INFO!B63)) -> Shiselweni | C63: =IF(INTRO!$E$43="Non-endemic"," ", IF(COUNTRY_INFO!C63=0," ",COUNTRY_INFO!C63)) -> Zombodze Emuva | D63: =IF(INTRO!$E$43="Non-endemic", 0, IF(COUNTRY_INFO!$J63>0, IF(COUNTRY_INFO!$J63=4, 0, IF(COUNTRY_INFO!$J63=1, COUNTRY_INFO!$F63*0.33, IF(COUNTRY_INFO!$J63=2, COUNTRY_INFO!$F63*0.5, COUNTRY_INFO!$F63))), 0)) -> 1872 | E63: =IF(INTRO!$E$43="Non-endemic", 0, IF(COUNTRY_INFO!$J63>0, IF(COUNTRY_INFO!$J63=4, 0, IF(COUNTRY_INFO!$J63=1, 0, IF(COUNTRY_INFO!$J63=2, COUNTRY_INFO!$G63*0.2, COUNTRY_INFO!$G63))), 0)) -> 2037.2 | F63: 3909.2 | G63: =IF(INTRO!$E$43="Non-endemic", "Not required", COUNTRY_INFO!P63) -> 1 | H63: Yes | I63: =IF($D63=0,0,IF(AND($G63>0,$H63<>"Yes"),D63,IF(AND($G63>0,$H63="Yes"),COUNTRY_INFO!$F63,0))) -> 3744 | K63: 2037.2 | L63: 5781.2 | M63: 9360 | N63: 6111.6 | O63: 9360 | Q63: 9360 | R63: 10

Sheet SUMMARY
B1: The current version should be used in countries non-endemic for onchocerciasis
B2: Joint request for selected PC medicines
B4: This form constitutes an official government request to WHO for the supply of the PC medicines. It can be submitted any time before 15 August of the current year for distribution of medicines during the following year, but at least 6-8 months before the planned PC intervention(s) to allow time for reviewing and approval of the request, placing order, manufacturing PC medicines and shipment to the country.
B6: Country | C6: =IF(INTRO!$E$33<>0,INTRO!$E$33," ") -> Swaziland | G6: Year | H6: =IF(INTRO!$E$35<>0,INTRO!$E$35," ") -> 2018
B8: Information on PC medicines requested to WHO
B10: PC medicine | C10: Number of tablets | G10: Total number of bottles
C11: Required | D11: In stock | E11: In pipeline | F11: Requested | G11: Required | H11: Requested
B12: Albendazole for STH (SAC) | C12: 228290 | D12: 0 | E12: 0 | F12: =IF(C12>(D12+E12),C12-D12-E12, 0) -> 228290 | G12: =IF($C12=0,0, IF($B12="Albendazole for LF", IF($C12=ALB_MBD!$I$4,ALB_MBD!$U$4,ROUNDUP($C12/200,0)), IF($B12="Albendazole for STH (SAC)", IF($C12=ALB_MBD!$L$4,ALB_MBD!$X$4,ROUNDUP($C12/200,0)), IF($B12="Mebendazole (SAC)", IF($C12=ALB_MBD!$P$4,ALB_MBD!$AA$4,ROUNDUP($C12/150,0)), IF($B12="Diethylcarbamazine citrate", IF($C12=DEC!$J$4,DEC!$M$4,ROUNDUP($C12/1000,0)), IF($B12="Praziquantel (SAC)", IF($C12=PZQ!$O$4,PZQ!$R$4,ROUNDUP($C12/1000,0)))))))) -> 1167 | H12: =IF($F12=0,0,IF(OR($B12="Albendazole for LF",$B12="Albendazole for STH (SAC)"),$G12-ROUNDUP(($E12+$D12)/200,0),IF($B12="Mebendazole (SAC)",$G12-ROUNDUP(($E12+$D12)/150,0),$G12-ROUNDUP(($E12+$D12)/1000,0)))) -> 1167
B13: Praziquantel (SAC) | C13: 593255 | D13: 0 | E13: 0 | F13: 593255 | G13: =IF($C13=0,0, IF($B13="Albendazole for LF", IF($C13=ALB_MBD!$I$4,ALB_MBD!$U$4,ROUNDUP($C13/200,0)), IF($B13="Albendazole for STH (SAC)", IF($C13=ALB_MBD!$L$4,ALB_MBD!$X$4,ROUNDUP($C13/200,0)), IF($B13="Mebendazole (SAC)", IF($C13=ALB_MBD!$P$4,ALB_MBD!$AA$4,ROUNDUP($C13/150,0)), IF($B13="Diethylcarbamazine citrate", IF($C13=DEC!$J$4,DEC!$M$4,ROUNDUP($C13/1000,0)), IF($B13="Praziquantel (SAC)", IF($C13=PZQ!$O$4,PZQ!$R$4,ROUNDUP($C13/1000,0)))))))) -> 621 | H13: 621
C14: 0 | D14: 0 | E14: 0 | F14: 0 | G14: =IF($C14=0,0, IF($B14="Albendazole for LF", IF($C14=ALB_MBD!$I$4,ALB_MBD!$U$4,ROUNDUP($C14/200,0)), IF($B14="Albendazole for STH (SAC)", IF($C14=ALB_MBD!$L$4,ALB_MBD!$X$4,ROUNDUP($C14/200,0)), IF($B14="Mebendazole (SAC)", IF($C14=ALB_MBD!$P$4,ALB_MBD!$AA$4,ROUNDUP($C14/150,0)), IF($B14="Diethylcarbamazine citrate", IF($C14=DEC!$J$4,DEC!$M$4,ROUNDUP($C14/1000,0)), IF($B14="Praziquantel (SAC)", IF($C14=PZQ!$O$4,PZQ!$R$4,ROUNDUP($C14/1000,0)))))))) -> 0 | H14: 0
C15: 0 | D15: 0 | E15: 0 | F15: 0 | G15: =IF($C15=0,0, IF($B15="Albendazole for LF", IF($C15=ALB_MBD!$I$4,ALB_MBD!$U$4,ROUNDUP($C15/200,0)), IF($B15="Albendazole for STH (SAC)", IF($C15=ALB_MBD!$L$4,ALB_MBD!$X$4,ROUNDUP($C15/200,0)), IF($B15="Mebendazole (SAC)", IF($C15=ALB_MBD!$P$4,ALB_MBD!$AA$4,ROUNDUP($C15/150,0)), IF($B15="Diethylcarbamazine citrate", IF($C15=DEC!$J$4,DEC!$M$4,ROUNDUP($C15/1000,0)), IF($B15="Praziquantel (SAC)", IF($C15=PZQ!$O$4,PZQ!$R$4,ROUNDUP($C15/1000,0)))))))) -> 0 | H15: 0
C16: 0 | D16: 0 | E16: 0 | F16: 0 | G16: =IF($C16=0,0, IF($B16="Albendazole for LF", IF($C16=ALB_MBD!$I$4,ALB_MBD!$U$4,ROUNDUP($C16/200,0)), IF($B16="Albendazole for STH (SAC)", IF($C16=ALB_MBD!$L$4,ALB_MBD!$X$4,ROUNDUP($C16/200,0)), IF($B16="Mebendazole (SAC)", IF($C16=ALB_MBD!$P$4,ALB_MBD!$AA$4,ROUNDUP($C16/150,0)), IF($B16="Diethylcarbamazine citrate", IF($C16=DEC!$J$4,DEC!$M$4,ROUNDUP($C16/1000,0)), IF($B16="Praziquantel (SAC)", IF($C16=PZQ!$O$4,PZQ!$R$4,ROUNDUP($C16/1000,0)))))))) -> 0 | H16: 0
C17: 0 | D17: 0 | E17: 0 | F17: 0 | G17: =IF($C17=0,0, IF($B17="Albendazole for LF", IF($C17=ALB_MBD!$I$4,ALB_MBD!$U$4,ROUNDUP($C17/200,0)), IF($B17="Albendazole for STH (SAC)", IF($C17=ALB_MBD!$L$4,ALB_MBD!$X$4,ROUNDUP($C17/200,0)), IF($B17="Mebendazole (SAC)", IF($C17=ALB_MBD!$P$4,ALB_MBD!$AA$4,ROUNDUP($C17/150,0)), IF($B17="Diethylcarbamazine citrate", IF($C17=DEC!$J$4,DEC!$M$4,ROUNDUP($C17/1000,0)), IF($B17="Praziquantel (SAC)", IF($C17=PZQ!$O$4,PZQ!$R$4,ROUNDUP($C17/1000,0)))))))) -> 0 | H17: 0
B19: Number of people to be treated with donated medicine ( see User Guide for details )
B21: Disease | G21: Round 1 | H21: Round 2
B22: Soil-transmitted helminthiases | C22: These figures are estimated only for targeted age groups to be treated with donated medicines in areas where treatment for specific disease is required | H22: 228290
B23: Schistosomiasis | H23: 593255
B29: Information on planned PC interventions
B31: PC medicine | C31: Planned date of the 1st round of PC | E31: Planned date of the 2nd round of PC | G31: Date by which the medicine should arrive to the national warehouse
B32: Praziquantel | C32: June | D32: 2018 | E32: June | F32: 2020 | G32: March | H32: 2018
B33: Praziquantel | C33: June | D33: 2018 | E33: June | F33: 2020 | G33: March | H33: 2018
B39: Information on PC medicines for treatment of population not targeted with current donation through WHO
B41: PC medicine | C41: Age group | D41: # of people | E41: # of tablets | F41: Specify source | H41: Status
B42: Albendazole for STH | C42: PreSAC | D42: 135454 | E42: 272000 | F42: Government of Swaziland | H42: Required
B43: Albendazole for STH | C43: WCBA | D43: 274981 | E43: 550000 | F43: Government of Swaziland | H43: Required
B44: Albendazole for STH | C44: Adults | D44: 645697 | E44: 1300000 | F44: Government of Swaziland | H44: Required
B53: Checklist
B54: Submission
B55: What should be submitted?
B56: The supply of the requested medicines should be based on up-to-date epidemiological data, specific usage plans, and capacity for implementation. The following checklist ensures that all necessary forms and information are provided to WHO (in electronic format).
B57: Joint request for selected PC medicines
B58: Joint reporting form
B59: PC epidemiological data reporting form
B61: Availability of funding for implementation
B63: Financial resources secured for the implementation in the year for which the medicines are requested
B64: Not available
B68: Who should fill in the form?
B69: National NTD coordinator should compile all required information needed to complete the request form. In the absence of such a coordinator, specific programme managers should coordinate their respective part. The final single request must be approved by the Ministry of Health.
B71: Information on person(s) who has filled in the form
B73: Title | C73: Name | E73: Phone | G73: Email | H73: Date
B74: NTD/PC Coordinator | C74: Precious Dlamini | E74: (+268) 76332909 | G74: bilharzia@swazi.net | H74: 2017-03-23
B75: MandE Focal Point | C75: Thabo Motsa | E75: (+268) 76128095 | G75: tmotsa98@gmail.com | H75: 2017-03-23
B79: The WHO recommends that all serious adverse events suspected to be associated with use of PC medicines should be reported in accordance with national Pharmacovigilance guidelines. In the absence of a national Pharmacovigilance system, contact the WHO Neglected Tropical Disease department for guidance.
B80: The WHO is committed to facilitate PC medicines donation with a free-of-charge supply of a) albendazole, mebendazole and praziquantel to the MoH’s national warehouse; and b) diethylcarbamazine citrate to the entry port/airport of recipient countries.
B81: The institution submitting the present request is responsible for a) arranging the offloading of the medicines from the truck and storing it in the national warehouse and subsequent shipment to the final distribution centres; b) for registering the donated medicine, if required, by the relevant national regulatory authorities; and c) for informing about any changes of their PC campaigns (e.g. postpone of the planned MDA date, replacement of NTD coordinator, etc.).
B82: Name and signature of NTD coordinator or Ministry of Health representative | C82: Precious Dlamini - NTD Coordinator - Ministry of Health
B83: Date: | C83: 23rd March, 2017
B85: Please complete information on shipment and consignee in the workshsheet SHIPMENT
B86: Please send the national request (signed and in electronic format) to the concerned WR with copy to:
B88: WHO headquarters | C88: PC_JointForms@who.int
B89: WHO Regional Office | C89: Regional Advisor for NTD
B91: Please note that your request will be reviewed by an independent panel before approval. The information in this form, joint reporting form and PC epidemiological data reporting form are essential for WHO to ensure efficient usage of medicines. As part of its ongoing monitoring and evaluation activities, and to meet its contractual obligations to donors and other partners, WHO and its appointed agents reserve the right to periodically inspect stocks of the medicines at country level.

Sheet SHIPMENT
B2: Joint request for selected PC medicines
B4: Country | C4: =IF(INTRO!$E$33<>0,INTRO!$E$33," ") -> Swaziland | G4: Year | H4: =IF(INTRO!$E$35<>0,INTRO!$E$35," ") -> 2018
B6: Information on shipment and consignee
B8: Albendazole for STH | C8: Consignee | F8: Delivery point / Final recipient if different from the consignee
B9: Name | C9: Dr Tigest Ketsela Mengestu | F9: World Health Organization
B10: Department/Unit | C10: WHO Representative | F10: 2nd Floor Lilunga House
B11: Organization | C11: World Health Organization | F11: Somhlolo Road
B12: Phone | C12: 26824042928 | F12: Mbabane
B13: Fax | C13: 26824044566 | F13: Swaziland
B14: E-mail | C14: ketselat@who.int
B15: Mailing address | C15: 2nd Floor Liliunga House, Somhlolo Road, Mbabane, Swaziland
B17: Praziquantel | C17: Consignee | F17: Delivery point / Final recipient if different from the consignee
B18: Name | C18: Dr Tigest Ketsela Mengestu | F18: World Health Organization
B19: Department/Unit | C19: WHO Representative | F19: 2nd Floor Lilunga House
B20: Organization | C20: World Health Organization | F20: Somhlolo Road
B21: Phone | C21: 26824042928 | F21: Mbabane
B22: Fax | C22: 26824044566 | F22: Swaziland
B23: E-mail | C23: ketselat@who.int
B24: Mailing address | C24: 2nd Floor Liliunga House, Somhlolo Road, Mbabane, Swaziland
C26: Consignee | F26: Delivery point / Final recipient if different from the consignee
B27: Name
B28: Department/Unit
B29: Organization
B30: Phone
B31: Fax
B32: E-mail
B33: Mailing address
B35: Information on import requirements
B37: Is the Import Permit required?
B38: How long does it take to obtain the Import Permit?
B39: Do you require any documents to be submitted together with the Import Permit application?
B40: If YES, please specify here
B41: Does the consignee have to get customs clearance before the shipment can proceed?
B42: Is there any additional information may be helpful in ensuring timely clearance and delivery of medicines to your country?
B43: If YES, please specify here
B45: Additional information
